Workbook

Sheet Instructions
A1: Instructions - Highway Revenue Assessment Tool
B2: ="Version " & TEXT(MAX(Version[Version]), "#,##0.00") -> Version 1.50
B3: ="Last Updated: " & TEXT(MAX(Version[Date]), "m/d/yyyy") -> Last Updated: 11/10/2021
A5: Input Definitions | E5: Model Overview
C7: User-entered inputs
C9: Default assumptions that can be overwritten by user
C11: Default custom scenario that can be overwritten by user
C13: Calculations or assumptions that cannot be altered

Sheet Tool
A1: Highway Revenue Assessment Tool | D1: ** DEFAULT INPUTS ** | E1: ** DEFAULT INPUTS **
D2: Market & Vehicle | E2: Revenue
A3: User Input
A4: Select fields from the Required Input section to determine what state or scenario to analyze over a set period. Use Optional Market and Vehicle Settings to customize the analysis on fuel use and other market factors, like inflation. Use Optional Revenue Settings to explore ways to change how revenue is collected and the state gasoline tax is set. Note, changing the number of EVs will change the number of gasoline vehicles; the model assumes the absolute number of vehicles is the same as the default settings. Vehicle Type: The light truck category includes pickups, vans (full-size and mini), utility-type vehicles, as well as other vehicles (panel trucks and delivery vans generally of 10,000 pounds or less gross vehicle weight).
A5: Required Input | F5: Optional Market and Vehicle Settings | K5: Optional Revenue Settings
A6: State | B6: Massachusetts | D6: =AVERAGE(Calculations!E69:AJ69) -> 0.02340136122 | E6: =SUMIFS(Motor_Fuel_Taxes[Gasoline Tax ($/gallon)],Motor_Fuel_Taxes[State], Input_State_Modeled, Motor_Fuel_Taxes[Year], "1/1/" & Input_Base_Year_Modeled) -> 0.24 | F6: Annual Inflation Rate (%) | I6: 0.02340136122 | K6: Baseline Gasoline Tax ($/gallon) | N6: 0.24
A7: Vehicle Type | B7: Light-Duty Vehicles | D7: =Calculations!E114 -> 0.863541169 | E7: =SUMIFS(Motor_Fuel_Taxes[Diesel Tax ($/gallon)],Motor_Fuel_Taxes[State], Input_State_Modeled, Motor_Fuel_Taxes[Year], "1/1/" & Input_Base_Year_Modeled) -> 0.24 | F7: Share of Motor Fuel Tax Revenue from Gasoline Tax (%) | I7: 0.863541169 | K7: Baseline Diesel Tax ($/gallon) | N7: 0.24
A8: Scenario from U.S. EIA Annual Energy Outlook | B8: Reference case | D8: =Calculations!E70/Calculations!E91*Calculations!E95 -> 10682.15151 | E8: =AVERAGE(Calculations!E83:AJ83) -> 129.2431276 | F8: Baseline Battery Electric Vehicles | I8: 10682.15151 | K8: Electric Vehicle Fuel Economy Equivalent (MPGe) | N8: 129.2431276
A9: Inflation Index | B9: CPI | D9: =(Calculations!E72)/Calculations!E91*Calculations!E95 -> 3784.969986 | E9: No | F9: Baseline Plug-in 10 Gasoline Hybrid Vehicles | I9: 3784.969986 | K9: Index Motor Fuel Tax to Inflation (Yes/No) | N9: No
A10: End Year for Analysis | B10: 2030 | D10: =(Calculations!E74)/Calculations!E91*Calculations!E95 -> 4064.759765 | E10: No | F10: Baseline Plug-in 40 Gasoline Hybrid Vehicles | I10: 4064.759765 | K10: Index Motor Fuel Tax to Fuel Use (Yes/No) | N10: No
A11: Baseline Year for Analysis | B11: 2019 | D11: =AVERAGE(Calculations!E71:OFFSET(Calculations!E71, 0,Input_End_Year_Modeled-Input_Baseline_Year_Modeled)) -> 0.193816443 | F11: Annual Battery Electric Vehicle Growth Rate (%) | I11: 0.193816443
D12: =AVERAGE(Calculations!E73:OFFSET(Calculations!E73, 0,Input_End_Year_Modeled-Input_Baseline_Year_Modeled)) -> 0.0006428377937 | E12: None | F12: Annual Plug-in 10 Gasoline Hybrid Vehicle Growth Rate (%) | I12: 0.0006428377937 | K12: Electric Vehicle Annual Fee | N12: Fixed
D13: =AVERAGE(Calculations!E75:AJ75) -> 0.06824960042 | E13: 0 | F13: Annual Plug-in 40 Gasoline Hybrid Vehicle Growth Rate (%) | I13: 0.06824960042 | K13: Annual Battery Electric Vehicle Fee | N13: 75
D14: 0.23 | E14: 0 | F14: Plug-In 10 Gasoline Hybrid Share of Electric Miles (%) | I14: 0.23 | K14: Annual Plug-In Hybrid Electric Vehicle Fee | N14: 50
D15: 0.63 | F15: Plug-In 40 Gasoline Hybrid Share of Electric Miles (%) | I15: 0.63
D16: =AVERAGE(Calculations!E85:AJ85) -> 0.01306524749 | F16: Annual Change in Vehicle Stock Fuel Economy (MPG) (%) | I16: 0.01306524749
D17: =AVERAGE(Calculations!E87:AJ87) -> 0.001437726429 | F17: Annual Change in VMT (%) | I17: 0.001437726429
A20: Tool Results
A21: Results are shown in summary statstics and three graphs. See the Calculations tab for detailed results.
A23: Revenue Summary and Mechanisms
B25: =Input_Baseline_Year_Modeled+1 -> 2020 | C25: =Input_End_Year_Modeled -> 2030 | K25: Total Change | L25: Absolute Change in % | M25: Average Annual Change in %
A27: Baseline Revenue (Motor Fuel Tax only) does not include any Optional Settings
A28: ="Baseline Motor Fuel Tax Revenue (Nominal), "& Input_Baseline_Year_Modeled+1 &"-" & Input_End_Year_Modeled &" ($)" -> Baseline Motor Fuel Tax Revenue (Nominal), 2020-2030 ($) | B28: =(INDEX(Calculations!$E$111:$AJ$149,MATCH(Calculations!$A$116,Calculations!$A$111:$A$149,0),Input_Baseline_Year_Modeled+1-Calculations!$E$111+1)) -> 405895474.1 | C28: =(INDEX(Calculations!$E$111:$AJ$149,MATCH(Calculations!$A$116,Calculations!$A$111:$A$149,0),Input_End_Year_Modeled-Calculations!$E$111+1)) -> 337849875 | G28: ="Change in Baseline Motor Fuel Tax Revenue (Nominal), "& Input_Baseline_Year_Modeled+1&"-"&Input_End_Year_Modeled& " ($), (%)" -> Change in Baseline Motor Fuel Tax Revenue (Nominal), 2020-2030 ($), (%) | K28: =C28-B28 -> -68045599.09 | L28: =IFERROR((C28-B28)/B28, 0) -> -0.167643158 | M28: =IFERROR(AVERAGE(Calculations!F117:AJ117), 0) -> -0.01742873084
A31: Revenue Breakdown (Motor Fuel Tax and Electric Vehicle Fees) considering Optional Settings
A32: Motor Fuel Tax Revenue ($) | B32: =(INDEX(Calculations!$E$111:$AJ$149,MATCH(Calculations!$A$124,Calculations!$A$111:$A$149,0),Input_Baseline_Year_Modeled+1-Calculations!$E$111+1)) -> 415268785.1 | C32: =(INDEX(Calculations!$E$111:$AJ$149,MATCH(Calculations!$A$124,Calculations!$A$111:$A$149,0),Input_End_Year_Modeled-Calculations!$E$111+1)) -> 345516847.5 | G32: ="Change in Motor Fuel Tax Revenue, "& Input_Baseline_Year_Modeled+1&"-"&Input_End_Year_Modeled&" ($), (%)" -> Change in Motor Fuel Tax Revenue, 2020-2030 ($), (%) | K32: =C32-B32 -> -69751937.62 | L32: =IFERROR((C32-B32)/B32, 0) -> -0.1679681693 | M32: =IFERROR(AVERAGE(Calculations!F125:AJ125), 0) -> -0.01539994398
A33: Electric Vehicle Fee Revenue (Nominal) ($) | B33: =(INDEX(Calculations!$E$111:$AJ$149,MATCH(Calculations!$A$129,Calculations!$A$111:$A$149,0),Input_Baseline_Year_Modeled+1-Calculations!$E$111+1)) -> 1577600 | C33: =(INDEX(Calculations!$E$111:$AJ$149,MATCH(Calculations!$A$129,Calculations!$A$111:$A$149,0),Input_End_Year_Modeled-Calculations!$E$111+1)) -> 7256175 | G33: ="Change in Electric Vehicle Fee Revenue (Nominal), "& Input_Baseline_Year_Modeled+1&"-"&Input_End_Year_Modeled&" ($), (%)" -> Change in Electric Vehicle Fee Revenue (Nominal), 2020-2030 ($), (%) | K33: =C33-B33 -> 5678575 | L33: =IFERROR((C33-B33)/B33, 0) -> 3.599502409 | M33: =IFERROR(AVERAGE(Calculations!F130:AJ130), 0) -> 0.1498201743
A35: Revenue Mechanisms
A36: Gasoline Tax ($/gallon) | B36: =(INDEX(Calculations!$E$111:$AJ$149,MATCH(Calculations!$A$145,Calculations!$A$111:$A$149,0),Input_Baseline_Year_Modeled+1-Calculations!$E$111+1)) -> 0.24 | C36: =(INDEX(Calculations!$E$111:$AJ$149,MATCH(Calculations!$A$145,Calculations!$A$111:$A$149,0),Input_End_Year_Modeled-Calculations!$E$111+1)) -> 0.24 | G36: ="Change in Gasoline Tax, "& Input_Baseline_Year_Modeled+1&"-"&Input_End_Year_Modeled&" ($), (%)" -> Change in Gasoline Tax, 2020-2030 ($), (%) | K36: =C36-B36 -> 0 | L36: =IFERROR((C36-B36)/B36, 0) -> 0 | M36: =IFERROR(AVERAGE(Calculations!F146:AJ146), 0) -> 0
A37: Annual Battery Electric Vehicle Fee (Nominal) ($/vehicle) | B37: =(INDEX(Calculations!$E$111:$AJ$149,MATCH(Calculations!$A$147,Calculations!$A$111:$A$149,0),Input_Baseline_Year_Modeled+1-Calculations!$E$111+1)) -> 75 | C37: =(INDEX(Calculations!$E$111:$AJ$149,MATCH(Calculations!$A$147,Calculations!$A$111:$A$149,0),Input_End_Year_Modeled-Calculations!$E$111+1)) -> 75 | G37: ="Change in Annual Battery Electric Vehicle Fee (Nominal), "& Input_Baseline_Year_Modeled+1&"-"&Input_End_Year_Modeled&" ($), (%)" -> Change in Annual Battery Electric Vehicle Fee (Nominal), 2020-2030 ($), (%) | K37: =C37-B37 -> 0 | L37: =IFERROR((C37-B37)/B37, 0) -> 0 | M37: =IFERROR(AVERAGE(Calculations!F148:AJ148), 0) -> 0
A38: Annual Plug-In Hybrid Electric Vehicle Fee (Nominal) ($/vehicle) | B38: =(INDEX(Calculations!$E$111:$AJ$149,MATCH(Calculations!$A$149,Calculations!$A$111:$A$149,0),Input_Baseline_Year_Modeled+1-Calculations!$E$111+1)) -> 50 | C38: =(INDEX(Calculations!$E$111:$AJ$149,MATCH(Calculations!$A$149,Calculations!$A$111:$A$149,0),Input_End_Year_Modeled-Calculations!$E$111+1)) -> 50 | G38: ="Change in Annual Plug-in Hybrid Electric Vehicle Fee (Nominal), "& Input_Baseline_Year_Modeled+1&"-"&Input_End_Year_Modeled&" ($), (%)" -> Change in Annual Plug-in Hybrid Electric Vehicle Fee (Nominal), 2020-2030 ($), (%) | K38: =C38-B38 -> 0 | L38: =IFERROR((C38-B38)/B38, 0) -> 0 | M38: =IFERROR(AVERAGE(Calculations!F150:AJ150), 0) -> 0
A40: Vehicle Market, Travel, and Fuel Use
A41: Inflation | B41: =(INDEX(Calculations!$E$88:$AJ$149,MATCH(Calculations!$A$88,Calculations!$A$88:$A$149,0),Input_Baseline_Year_Modeled+1-Calculations!$E$111+1)) -> 0.0230929183 | C41: =(INDEX(Calculations!$E$88:$AJ$149,MATCH(Calculations!$A$88,Calculations!$A$88:$A$149,0),Input_End_Year_Modeled-Calculations!$E$111+1)) -> 0.02269343002 | G41: ="Change in Inflation, "& Input_Baseline_Year_Modeled+1&"-"&Input_End_Year_Modeled&" (%)" -> Change in Inflation, 2020-2030 (%) | K41: =C41-B41 -> -0.000399488284 | L41: =IFERROR((C41-B41)/B41, 0) -> -0.01729916846 | M41: =IFERROR(AVERAGE(Calculations!F89:AJ89), 0) -> -0.01226004271
A42: Gasoline Consumption (gallons) | B42: =(INDEX(Calculations!$E$88:$AJ$149,MATCH(Calculations!$A$107,Calculations!$A$88:$A$149,0),Input_Baseline_Year_Modeled+1-Calculations!$E$111+1)) -> 1691231142 | C42: =(INDEX(Calculations!$E$88:$AJ$149,MATCH(Calculations!$A$107,Calculations!$A$88:$A$149,0),Input_End_Year_Modeled-Calculations!$E$111+1)) -> 1407707813 | G42: ="Change in Gasoline Consumption, "& Input_Baseline_Year_Modeled+1&"-"&Input_End_Year_Modeled&" (gallons), (%)" -> Change in Gasoline Consumption, 2020-2030 (gallons), (%) | K42: =C42-B42 -> -283523329.6 | L42: =IFERROR((C42-B42)/B42, 0) -> -0.167643158 | M42: =IFERROR(AVERAGE(Calculations!F108:AJ108), 0) -> -0.01742873084
A43: Gasoline Vehicle Stock (vehicles) | B43: =(INDEX(Calculations!$E$88:$AJ$149,MATCH(Calculations!$A$95,Calculations!$A$88:$A$149,0),Input_Baseline_Year_Modeled+1-Calculations!$E$111+1)) -> 3121870 | C43: =(INDEX(Calculations!$E$88:$AJ$149,MATCH(Calculations!$A$95,Calculations!$A$88:$A$149,0),Input_End_Year_Modeled-Calculations!$E$111+1)) -> 3238048 | G43: ="Change in Gasoline Vehicle Stock, "& Input_Baseline_Year_Modeled+1&"-"&Input_End_Year_Modeled & " (vehicles), (%)" -> Change in Gasoline Vehicle Stock, 2020-2030 (vehicles), (%) | K43: 116178 | L43: 0.03721423378 | M43: =IFERROR(AVERAGE(Calculations!F96:AJ96), 0) -> 0.003724215482
A44: Gasoline Vehicle Stock Fuel Economy (MPG) | B44: =(INDEX(Calculations!$E$88:$AJ$149,MATCH(Calculations!$A$103,Calculations!$A$88:$A$149,0),Input_Baseline_Year_Modeled+1-Calculations!$E$111+1)) -> 23.745687 | C44: =(INDEX(Calculations!$E$88:$AJ$149,MATCH(Calculations!$A$103,Calculations!$A$88:$A$149,0),Input_End_Year_Modeled-Calculations!$E$111+1)) -> 29.705198 | G44: ="Change in Vehicle Fuel Economy, "& Input_Baseline_Year_Modeled+1&"-"&Input_End_Year_Modeled & " (MPG), (%)" -> Change in Vehicle Fuel Economy, 2020-2030 (MPG), (%) | K44: 5.959511 | L44: 0.2509723555 | M44: =IFERROR(AVERAGE(Calculations!F104:AJ104), 0) -> 0.02191591022
A45: Electric Vehicle Stock (vehicles) | B45: =(INDEX(Calculations!$E$88:$AJ$149,MATCH(Calculations!$A$100,Calculations!$A$88:$A$149,0),Input_Baseline_Year_Modeled+1-Calculations!$E$111+1)) -> 24018 | C45: =(INDEX(Calculations!$E$88:$AJ$149,MATCH(Calculations!$A$100,Calculations!$A$88:$A$149,0),Input_End_Year_Modeled-Calculations!$E$111+1)) -> 102631 | G45: ="Change in Electric Vehicle Stock, "& Input_Baseline_Year_Modeled+1&"-"&Input_End_Year_Modeled & " (vehicles), (%)" -> Change in Electric Vehicle Stock, 2020-2030 (vehicles), (%) | K45: 78613 | L45: 3.273086852 | M45: =IFERROR(AVERAGE(Calculations!F101:AJ101), 0) -> 0.1428749669
A46: Annual VMT (miles) | B46: =(INDEX(Calculations!$E$88:$AJ$149,MATCH(Calculations!$A$105,Calculations!$A$88:$A$149,0),Input_Baseline_Year_Modeled+1-Calculations!$E$111+1)) -> 12863.907 | C46: =(INDEX(Calculations!$E$88:$AJ$149,MATCH(Calculations!$A$105,Calculations!$A$88:$A$149,0),Input_End_Year_Modeled-Calculations!$E$111+1)) -> 12914.027 | G46: ="Change in Annual VMT, "& Input_Baseline_Year_Modeled+1&"-"&Input_End_Year_Modeled & " (miles), (%)" -> Change in Annual VMT, 2020-2030 (miles), (%) | K46: 50.12 | L46: 0.003896172446 | M46: =IFERROR(AVERAGE(Calculations!F106:AJ106), 0) -> 0.001155867365
A50: This graph estimates revenue losses compared to the baseline (first year) from several factors (negative losses are revenue increases); this graph is not affected by changes to Optional Revenue Settings. That is, this graph is intended to model business as usual if no revenue changes are made (i.e., the gasoline tax stays constant and no electric vehicle fees are implemented). | H50: ="This graph shows the changes in a number of factors scaled to " & Input_Baseline_Year_Modeled & " levels allowing for an apple-to-apples comparison of factors with different units of measurement." -> This graph shows the changes in a number of factors scaled to 2019 levels allowing for an apple-to-apples comparison of factors with different units of measurement.
A74: This graph shows total revenue and revenue losses/gains considering all inputs, including Optional Revenue Settings. When an EV fee is selected, the revenue shown will be broken down by fuel tax revenue and EV fee revenue. | H74: This graph shows the deployment of electric and conventional vehicles over time.

Sheet Calculations
A1: Calculations - Highway Revenue Assessment Tool
A2: Model Input
A3: Vehicle Stock (millions)
A4: Vehicle Type | B4: Technology Type | C4: Fuel | D4: Type | E4: =MIN(Vehicle_Projections[Year]) -> 2019 | F4: =E4+1 -> 2020 | G4: 2021 | H4: 2022 | I4: 2023 | J4: 2024 | K4: 2025 | L4: 2026 | M4: 2027 | N4: 2028 | O4: 2029 | P4: 2030 | Q4: 2031 | R4: 2032 | S4: 2033 | T4: 2034 | U4: 2035 | V4: 2036 | W4: 2037 | X4: 2038 | Y4: 2039 | Z4: 2040 | AA4: 2041 | AB4: 2042 | AC4: 2043 | AD4: 2044 | AE4: 2045 | AF4: 2046 | AG4: 2047 | AH4: 2048 | AI4: 2049 | AJ4: 2050
A5: Passenger Cars | B5: Gasoline ICE Vehicles | C5: Gasoline | D5: Stock | E5: =IF(Input_Scenario_Modeled="Custom", SUMIFS(Custom_Stock_MPG[Vehicle Stock],Custom_Stock_MPG[Year],Calculations!E$4, Custom_Stock_MPG[[ Technology Type]], $B5, Custom_Stock_MPG[Vehicle Type], $A5, Custom_Stock_MPG[Scenario], Input_Scenario_Modeled), SUMIFS(Vehicle_Projections[Vehicle Stock],Vehicle_Projections[Year],Calculations!E$4,Vehicle_Projections[Technology Type], $B5, Vehicle_Projections[Vehicle Type], $A5, Vehicle_Projections[Scenario], Input_Scenario_Modeled)) -> 122.923538 | F5: =IF(Input_Scenario_Modeled="Custom", SUMIFS(Custom_Stock_MPG[Vehicle Stock],Custom_Stock_MPG[Year],Calculations!F$4, Custom_Stock_MPG[[ Technology Type]], $B5, Custom_Stock_MPG[Vehicle Type], $A5, Custom_Stock_MPG[Scenario], Input_Scenario_Modeled), SUMIFS(Vehicle_Projections[Vehicle Stock],Vehicle_Projections[Year],Calculations!F$4,Vehicle_Projections[Technology Type], $B5, Vehicle_Projections[Vehicle Type], $A5, Vehicle_Projections[Scenario], Input_Scenario_Modeled)) -> 122.725891 | G5: =IF(Input_Scenario_Modeled="Custom", SUMIFS(Custom_Stock_MPG[Vehicle Stock],Custom_Stock_MPG[Year],Calculations!G$4, Custom_Stock_MPG[[ Technology Type]], $B5, Custom_Stock_MPG[Vehicle Type], $A5, Custom_Stock_MPG[Scenario], Input_Scenario_Modeled), SUMIFS(Vehicle_Projections[Vehicle Stock],Vehicle_Projections[Year],Calculations!G$4,Vehicle_Projections[Technology Type], $B5, Vehicle_Projections[Vehicle Type], $A5, Vehicle_Projections[Scenario], Input_Scenario_Modeled)) -> 122.30687 | H5: =IF(Input_Scenario_Modeled="Custom", SUMIFS(Custom_Stock_MPG[Vehicle Stock],Custom_Stock_MPG[Year],Calculations!H$4, Custom_Stock_MPG[[ Technology Type]], $B5, Custom_Stock_MPG[Vehicle Type], $A5, Custom_Stock_MPG[Scenario], Input_Scenario_Modeled), SUMIFS(Vehicle_Projections[Vehicle Stock],Vehicle_Projections[Year],Calculations!H$4,Vehicle_Projections[Technology Type], $B5, Vehicle_Projections[Vehicle Type], $A5, Vehicle_Projections[Scenario], Input_Scenario_Modeled)) -> 121.813004 | I5: =IF(Input_Scenario_Modeled="Custom", SUMIFS(Custom_Stock_MPG[Vehicle Stock],Custom_Stock_MPG[Year],Calculations!I$4, Custom_Stock_MPG[[ Technology Type]], $B5, Custom_Stock_MPG[Vehicle Type], $A5, Custom_Stock_MPG[Scenario], Input_Scenario_Modeled), SUMIFS(Vehicle_Projections[Vehicle Stock],Vehicle_Projections[Year],Calculations!I$4,Vehicle_Projections[Technology Type], $B5, Vehicle_Projections[Vehicle Type], $A5, Vehicle_Projections[Scenario], Input_Scenario_Modeled)) -> 121.386841 | J5: =IF(Input_Scenario_Modeled="Custom", SUMIFS(Custom_Stock_MPG[Vehicle Stock],Custom_Stock_MPG[Year],Calculations!J$4, Custom_Stock_MPG[[ Technology Type]], $B5, Custom_Stock_MPG[Vehicle Type], $A5, Custom_Stock_MPG[Scenario], Input_Scenario_Modeled), SUMIFS(Vehicle_Projections[Vehicle Stock],Vehicle_Projections[Year],Calculations!J$4,Vehicle_Projections[Technology Type], $B5, Vehicle_Projections[Vehicle Type], $A5, Vehicle_Projections[Scenario], Input_Scenario_Modeled)) -> 120.9935 | K5: =IF(Input_Scenario_Modeled="Custom", SUMIFS(Custom_Stock_MPG[Vehicle Stock],Custom_Stock_MPG[Year],Calculations!K$4, Custom_Stock_MPG[[ Technology Type]], $B5, Custom_Stock_MPG[Vehicle Type], $A5, Custom_Stock_MPG[Scenario], Input_Scenario_Modeled), SUMIFS(Vehicle_Projections[Vehicle Stock],Vehicle_Projections[Year],Calculations!K$4,Vehicle_Projections[Technology Type], $B5, Vehicle_Projections[Vehicle Type], $A5, Vehicle_Projections[Scenario], Input_Scenario_Modeled)) -> 120.690643 | L5: =IF(Input_Scenario_Modeled="Custom", SUMIFS(Custom_Stock_MPG[Vehicle Stock],Custom_Stock_MPG[Year],Calculations!L$4, Custom_Stock_MPG[[ Technology Type]], $B5, Custom_Stock_MPG[Vehicle Type], $A5, Custom_Stock_MPG[Scenario], Input_Scenario_Modeled), SUMIFS(Vehicle_Projections[Vehicle Stock],Vehicle_Projections[Year],Calculations!L$4,Vehicle_Projections[Technology Type], $B5, Vehicle_Projections[Vehicle Type], $A5, Vehicle_Projections[Scenario], Input_Scenario_Modeled)) -> 120.400482 | M5: =IF(Input_Scenario_Modeled="Custom", SUMIFS(Custom_Stock_MPG[Vehicle Stock],Custom_Stock_MPG[Year],Calculations!M$4, Custom_Stock_MPG[[ Technology Type]], $B5, Custom_Stock_MPG[Vehicle Type], $A5, Custom_Stock_MPG[Scenario], Input_Scenario_Modeled), SUMIFS(Vehicle_Projections[Vehicle Stock],Vehicle_Projections[Year],Calculations!M$4,Vehicle_Projections[Technology Type], $B5, Vehicle_Projections[Vehicle Type], $A5, Vehicle_Projections[Scenario], Input_Scenario_Modeled)) -> 120.139923 | N5: =IF(Input_Scenario_Modeled="Custom", SUMIFS(Custom_Stock_MPG[Vehicle Stock],Custom_Stock_MPG[Year],Calculations!N$4, Custom_Stock_MPG[[ Technology Type]], $B5, Custom_Stock_MPG[Vehicle Type], $A5, Custom_Stock_MPG[Scenario], Input_Scenario_Modeled), SUMIFS(Vehicle_Projections[Vehicle Stock],Vehicle_Projections[Year],Calculations!N$4,Vehicle_Projections[Technology Type], $B5, Vehicle_Projections[Vehicle Type], $A5, Vehicle_Projections[Scenario], Input_Scenario_Modeled)) -> 119.830246 | O5: =IF(Input_Scenario_Modeled="Custom", SUMIFS(Custom_Stock_MPG[Vehicle Stock],Custom_Stock_MPG[Year],Calculations!O$4, Custom_Stock_MPG[[ Technology Type]], $B5, Custom_Stock_MPG[Vehicle Type], $A5, Custom_Stock_MPG[Scenario], Input_Scenario_Modeled), SUMIFS(Vehicle_Projections[Vehicle Stock],Vehicle_Projections[Year],Calculations!O$4,Vehicle_Projections[Technology Type], $B5, Vehicle_Projections[Vehicle Type], $A5, Vehicle_Projections[Scenario], Input_Scenario_Modeled)) -> 119.47908 | P5: =IF(Input_Scenario_Modeled="Custom", SUMIFS(Custom_Stock_MPG[Vehicle Stock],Custom_Stock_MPG[Year],Calculations!P$4, Custom_Stock_MPG[[ Technology Type]], $B5, Custom_Stock_MPG[Vehicle Type], $A5, Custom_Stock_MPG[Scenario], Input_Scenario_Modeled), SUMIFS(Vehicle_Projections[Vehicle Stock],Vehicle_Projections[Year],Calculations!P$4,Vehicle_Projections[Technology Type], $B5, Vehicle_Projections[Vehicle Type], $A5, Vehicle_Projections[Scenario], Input_Scenario_Modeled)) -> 119.113518 | Q5: =IF(Input_Scenario_Modeled="Custom", SUMIFS(Custom_Stock_MPG[Vehicle Stock],Custom_Stock_MPG[Year],Calculations!Q$4, Custom_Stock_MPG[[ Technology Type]], $B5, Custom_Stock_MPG[Vehicle Type], $A5, Custom_Stock_MPG[Scenario], Input_Scenario_Modeled), SUMIFS(Vehicle_Projections[Vehicle Stock],Vehicle_Projections[Year],Calculations!Q$4,Vehicle_Projections[Technology Type], $B5, Vehicle_Projections[Vehicle Type], $A5, Vehicle_Projections[Scenario], Input_Scenario_Modeled)) -> 118.698387 | R5: =IF(Input_Scenario_Modeled="Custom", SUMIFS(Custom_Stock_MPG[Vehicle Stock],Custom_Stock_MPG[Year],Calculations!R$4, Custom_Stock_MPG[[ Technology Type]], $B5, Custom_Stock_MPG[Vehicle Type], $A5, Custom_Stock_MPG[Scenario], Input_Scenario_Modeled), SUMIFS(Vehicle_Projections[Vehicle Stock],Vehicle_Projections[Year],Calculations!R$4,Vehicle_Projections[Technology Type], $B5, Vehicle_Projections[Vehicle Type], $A5, Vehicle_Projections[Scenario], Input_Scenario_Modeled)) -> 118.266998 | S5: =IF(Input_Scenario_Modeled="Custom", SUMIFS(Custom_Stock_MPG[Vehicle Stock],Custom_Stock_MPG[Year],Calculations!S$4, Custom_Stock_MPG[[ Technology Type]], $B5, Custom_Stock_MPG[Vehicle Type], $A5, Custom_Stock_MPG[Scenario], Input_Scenario_Modeled), SUMIFS(Vehicle_Projections[Vehicle Stock],Vehicle_Projections[Year],Calculations!S$4,Vehicle_Projections[Technology Type], $B5, Vehicle_Projections[Vehicle Type], $A5, Vehicle_Projections[Scenario], Input_Scenario_Modeled)) -> 117.861717 | T5: =IF(Input_Scenario_Modeled="Custom", SUMIFS(Custom_Stock_MPG[Vehicle Stock],Custom_Stock_MPG[Year],Calculations!T$4, Custom_Stock_MPG[[ Technology Type]], $B5, Custom_Stock_MPG[Vehicle Type], $A5, Custom_Stock_MPG[Scenario], Input_Scenario_Modeled), SUMIFS(Vehicle_Projections[Vehicle Stock],Vehicle_Projections[Year],Calculations!T$4,Vehicle_Projections[Technology Type], $B5, Vehicle_Projections[Vehicle Type], $A5, Vehicle_Projections[Scenario], Input_Scenario_Modeled)) -> 117.507431 | U5: =IF(Input_Scenario_Modeled="Custom", SUMIFS(Custom_Stock_MPG[Vehicle Stock],Custom_Stock_MPG[Year],Calculations!U$4, Custom_Stock_MPG[[ Technology Type]], $B5, Custom_Stock_MPG[Vehicle Type], $A5, Custom_Stock_MPG[Scenario], Input_Scenario_Modeled), SUMIFS(Vehicle_Projections[Vehicle Stock],Vehicle_Projections[Year],Calculations!U$4,Vehicle_Projections[Technology Type], $B5, Vehicle_Projections[Vehicle Type], $A5, Vehicle_Projections[Scenario], Input_Scenario_Modeled)) -> 117.232727 | V5: =IF(Input_Scenario_Modeled="Custom", SUMIFS(Custom_Stock_MPG[Vehicle Stock],Custom_Stock_MPG[Year],Calculations!V$4, Custom_Stock_MPG[[ Technology Type]], $B5, Custom_Stock_MPG[Vehicle Type], $A5, Custom_Stock_MPG[Scenario], Input_Scenario_Modeled), SUMIFS(Vehicle_Projections[Vehicle Stock],Vehicle_Projections[Year],Calculations!V$4,Vehicle_Projections[Technology Type], $B5, Vehicle_Projections[Vehicle Type], $A5, Vehicle_Projections[Scenario], Input_Scenario_Modeled)) -> 117.065781 | W5: =IF(Input_Scenario_Modeled="Custom", SUMIFS(Custom_Stock_MPG[Vehicle Stock],Custom_Stock_MPG[Year],Calculations!W$4, Custom_Stock_MPG[[ Technology Type]], $B5, Custom_Stock_MPG[Vehicle Type], $A5, Custom_Stock_MPG[Scenario], Input_Scenario_Modeled), SUMIFS(Vehicle_Projections[Vehicle Stock],Vehicle_Projections[Year],Calculations!W$4,Vehicle_Projections[Technology Type], $B5, Vehicle_Projections[Vehicle Type], $A5, Vehicle_Projections[Scenario], Input_Scenario_Modeled)) -> 116.990936 | X5: =IF(Input_Scenario_Modeled="Custom", SUMIFS(Custom_Stock_MPG[Vehicle Stock],Custom_Stock_MPG[Year],Calculations!X$4, Custom_Stock_MPG[[ Technology Type]], $B5, Custom_Stock_MPG[Vehicle Type], $A5, Custom_Stock_MPG[Scenario], Input_Scenario_Modeled), SUMIFS(Vehicle_Projections[Vehicle Stock],Vehicle_Projections[Year],Calculations!X$4,Vehicle_Projections[Technology Type], $B5, Vehicle_Projections[Vehicle Type], $A5, Vehicle_Projections[Scenario], Input_Scenario_Modeled)) -> 117.041061 | Y5: =IF(Input_Scenario_Modeled="Custom", SUMIFS(Custom_Stock_MPG[Vehicle Stock],Custom_Stock_MPG[Year],Calculations!Y$4, Custom_Stock_MPG[[ Technology Type]], $B5, Custom_Stock_MPG[Vehicle Type], $A5, Custom_Stock_MPG[Scenario], Input_Scenario_Modeled), SUMIFS(Vehicle_Projections[Vehicle Stock],Vehicle_Projections[Year],Calculations!Y$4,Vehicle_Projections[Technology Type], $B5, Vehicle_Projections[Vehicle Type], $A5, Vehicle_Projections[Scenario], Input_Scenario_Modeled)) -> 117.200172 | Z5: =IF(Input_Scenario_Modeled="Custom", SUMIFS(Custom_Stock_MPG[Vehicle Stock],Custom_Stock_MPG[Year],Calculations!Z$4, Custom_Stock_MPG[[ Technology Type]], $B5, Custom_Stock_MPG[Vehicle Type], $A5, Custom_Stock_MPG[Scenario], Input_Scenario_Modeled), SUMIFS(Vehicle_Projections[Vehicle Stock],Vehicle_Projections[Year],Calculations!Z$4,Vehicle_Projections[Technology Type], $B5, Vehicle_Projections[Vehicle Type], $A5, Vehicle_Projections[Scenario], Input_Scenario_Modeled)) -> 117.436325 | AA5: =IF(Input_Scenario_Modeled="Custom", SUMIFS(Custom_Stock_MPG[Vehicle Stock],Custom_Stock_MPG[Year],Calculations!AA$4, Custom_Stock_MPG[[ Technology Type]], $B5, Custom_Stock_MPG[Vehicle Type], $A5, Custom_Stock_MPG[Scenario], Input_Scenario_Modeled), SUMIFS(Vehicle_Projections[Vehicle Stock],Vehicle_Projections[Year],Calculations!AA$4,Vehicle_Projections[Technology Type], $B5, Vehicle_Projections[Vehicle Type], $A5, Vehicle_Projections[Scenario], Input_Scenario_Modeled)) -> 117.749268 | AB5: =IF(Input_Scenario_Modeled="Custom", SUMIFS(Custom_Stock_MPG[Vehicle Stock],Custom_Stock_MPG[Year],Calculations!AB$4, Custom_Stock_MPG[[ Technology Type]], $B5, Custom_Stock_MPG[Vehicle Type], $A5, Custom_Stock_MPG[Scenario], Input_Scenario_Modeled), SUMIFS(Vehicle_Projections[Vehicle Stock],Vehicle_Projections[Year],Calculations!AB$4,Vehicle_Projections[Technology Type], $B5, Vehicle_Projections[Vehicle Type], $A5, Vehicle_Projections[Scenario], Input_Scenario_Modeled)) -> 118.140251 | AC5: =IF(Input_Scenario_Modeled="Custom", SUMIFS(Custom_Stock_MPG[Vehicle Stock],Custom_Stock_MPG[Year],Calculations!AC$4, Custom_Stock_MPG[[ Technology Type]], $B5, Custom_Stock_MPG[Vehicle Type], $A5, Custom_Stock_MPG[Scenario], Input_Scenario_Modeled), SUMIFS(Vehicle_Projections[Vehicle Stock],Vehicle_Projections[Year],Calculations!AC$4,Vehicle_Projections[Technology Type], $B5, Vehicle_Projections[Vehicle Type], $A5, Vehicle_Projections[Scenario], Input_Scenario_Modeled)) -> 118.562859 | AD5: =IF(Input_Scenario_Modeled="Custom", SUMIFS(Custom_Stock_MPG[Vehicle Stock],Custom_Stock_MPG[Year],Calculations!AD$4, Custom_Stock_MPG[[ Technology Type]], $B5, Custom_Stock_MPG[Vehicle Type], $A5, Custom_Stock_MPG[Scenario], Input_Scenario_Modeled), SUMIFS(Vehicle_Projections[Vehicle Stock],Vehicle_Projections[Year],Calculations!AD$4,Vehicle_Projections[Technology Type], $B5, Vehicle_Projections[Vehicle Type], $A5, Vehicle_Projections[Scenario], Input_Scenario_Modeled)) -> 119.018288 | AE5: =IF(Input_Scenario_Modeled="Custom", SUMIFS(Custom_Stock_MPG[Vehicle Stock],Custom_Stock_MPG[Year],Calculations!AE$4, Custom_Stock_MPG[[ Technology Type]], $B5, Custom_Stock_MPG[Vehicle Type], $A5, Custom_Stock_MPG[Scenario], Input_Scenario_Modeled), SUMIFS(Vehicle_Projections[Vehicle Stock],Vehicle_Projections[Year],Calculations!AE$4,Vehicle_Projections[Technology Type], $B5, Vehicle_Projections[Vehicle Type], $A5, Vehicle_Projections[Scenario], Input_Scenario_Modeled)) -> 119.510406 | AF5: =IF(Input_Scenario_Modeled="Custom", SUMIFS(Custom_Stock_MPG[Vehicle Stock],Custom_Stock_MPG[Year],Calculations!AF$4, Custom_Stock_MPG[[ Technology Type]], $B5, Custom_Stock_MPG[Vehicle Type], $A5, Custom_Stock_MPG[Scenario], Input_Scenario_Modeled), SUMIFS(Vehicle_Projections[Vehicle Stock],Vehicle_Projections[Year],Calculations!AF$4,Vehicle_Projections[Technology Type], $B5, Vehicle_Projections[Vehicle Type], $A5, Vehicle_Projections[Scenario], Input_Scenario_Modeled)) -> 120.009911 | AG5: =IF(Input_Scenario_Modeled="Custom", SUMIFS(Custom_Stock_MPG[Vehicle Stock],Custom_Stock_MPG[Year],Calculations!AG$4, Custom_Stock_MPG[[ Technology Type]], $B5, Custom_Stock_MPG[Vehicle Type], $A5, Custom_Stock_MPG[Scenario], Input_Scenario_Modeled), SUMIFS(Vehicle_Projections[Vehicle Stock],Vehicle_Projections[Year],Calculations!AG$4,Vehicle_Projections[Technology Type], $B5, Vehicle_Projections[Vehicle Type], $A5, Vehicle_Projections[Scenario], Input_Scenario_Modeled)) -> 120.519531 | AH5: =IF(Input_Scenario_Modeled="Custom", SUMIFS(Custom_Stock_MPG[Vehicle Stock],Custom_Stock_MPG[Year],Calculations!AH$4, Custom_Stock_MPG[[ Technology Type]], $B5, Custom_Stock_MPG[Vehicle Type], $A5, Custom_Stock_MPG[Scenario], Input_Scenario_Modeled), SUMIFS(Vehicle_Projections[Vehicle Stock],Vehicle_Projections[Year],Calculations!AH$4,Vehicle_Projections[Technology Type], $B5, Vehicle_Projections[Vehicle Type], $A5, Vehicle_Projections[Scenario], Input_Scenario_Modeled)) -> 121.034309 | AI5: =IF(Input_Scenario_Modeled="Custom", SUMIFS(Custom_Stock_MPG[Vehicle Stock],Custom_Stock_MPG[Year],Calculations!AI$4, Custom_Stock_MPG[[ Technology Type]], $B5, Custom_Stock_MPG[Vehicle Type], $A5, Custom_Stock_MPG[Scenario], Input_Scenario_Modeled), SUMIFS(Vehicle_Projections[Vehicle Stock],Vehicle_Projections[Year],Calculations!AI$4,Vehicle_Projections[Technology Type], $B5, Vehicle_Projections[Vehicle Type], $A5, Vehicle_Projections[Scenario], Input_Scenario_Modeled)) -> 121.531029 | AJ5: =IF(Input_Scenario_Modeled="Custom", SUMIFS(Custom_Stock_MPG[Vehicle Stock],Custom_Stock_MPG[Year],Calculations!AJ$4, Custom_Stock_MPG[[ Technology Type]], $B5, Custom_Stock_MPG[Vehicle Type], $A5, Custom_Stock_MPG[Scenario], Input_Scenario_Modeled), SUMIFS(Vehicle_Projections[Vehicle Stock],Vehicle_Projections[Year],Calculations!AJ$4,Vehicle_Projections[Technology Type], $B5, Vehicle_Projections[Vehicle Type], $A5, Vehicle_Projections[Scenario], Input_Scenario_Modeled)) -> 122.013756
A6: Passenger Cars | B6: Ethanol-Flex Fuel ICE | C6: Gasoline | D6: Stock | E6: =IF(Input_Scenario_Modeled="Custom", SUMIFS(Custom_Stock_MPG[Vehicle Stock],Custom_Stock_MPG[Year],Calculations!E$4, Custom_Stock_MPG[[ Technology Type]], $B6, Custom_Stock_MPG[Vehicle Type], $A6, Custom_Stock_MPG[Scenario], Input_Scenario_Modeled), SUMIFS(Vehicle_Projections[Vehicle Stock],Vehicle_Projections[Year],Calculations!E$4,Vehicle_Projections[Technology Type], $B6, Vehicle_Projections[Vehicle Type], $A6, Vehicle_Projections[Scenario], Input_Scenario_Modeled)) -> 4.943338 | F6: =IF(Input_Scenario_Modeled="Custom", SUMIFS(Custom_Stock_MPG[Vehicle Stock],Custom_Stock_MPG[Year],Calculations!F$4, Custom_Stock_MPG[[ Technology Type]], $B6, Custom_Stock_MPG[Vehicle Type], $A6, Custom_Stock_MPG[Scenario], Input_Scenario_Modeled), SUMIFS(Vehicle_Projections[Vehicle Stock],Vehicle_Projections[Year],Calculations!F$4,Vehicle_Projections[Technology Type], $B6, Vehicle_Projections[Vehicle Type], $A6, Vehicle_Projections[Scenario], Input_Scenario_Modeled)) -> 4.923819 | G6: =IF(Input_Scenario_Modeled="Custom", SUMIFS(Custom_Stock_MPG[Vehicle Stock],Custom_Stock_MPG[Year],Calculations!G$4, Custom_Stock_MPG[[ Technology Type]], $B6, Custom_Stock_MPG[Vehicle Type], $A6, Custom_Stock_MPG[Scenario], Input_Scenario_Modeled), SUMIFS(Vehicle_Projections[Vehicle Stock],Vehicle_Projections[Year],Calculations!G$4,Vehicle_Projections[Technology Type], $B6, Vehicle_Projections[Vehicle Type], $A6, Vehicle_Projections[Scenario], Input_Scenario_Modeled)) -> 4.877393 | H6: =IF(Input_Scenario_Modeled="Custom", SUMIFS(Custom_Stock_MPG[Vehicle Stock],Custom_Stock_MPG[Year],Calculations!H$4, Custom_Stock_MPG[[ Technology Type]], $B6, Custom_Stock_MPG[Vehicle Type], $A6, Custom_Stock_MPG[Scenario], Input_Scenario_Modeled), SUMIFS(Vehicle_Projections[Vehicle Stock],Vehicle_Projections[Year],Calculations!H$4,Vehicle_Projections[Technology Type], $B6, Vehicle_Projections[Vehicle Type], $A6, Vehicle_Projections[Scenario], Input_Scenario_Modeled)) -> 4.806707 | I6: =IF(Input_Scenario_Modeled="Custom", SUMIFS(Custom_Stock_MPG[Vehicle Stock],Custom_Stock_MPG[Year],Calculations!I$4, Custom_Stock_MPG[[ Technology Type]], $B6, Custom_Stock_MPG[Vehicle Type], $A6, Custom_Stock_MPG[Scenario], Input_Scenario_Modeled), SUMIFS(Vehicle_Projections[Vehicle Stock],Vehicle_Projections[Year],Calculations!I$4,Vehicle_Projections[Technology Type], $B6, Vehicle_Projections[Vehicle Type], $A6, Vehicle_Projections[Scenario], Input_Scenario_Modeled)) -> 4.711632 | J6: =IF(Input_Scenario_Modeled="Custom", SUMIFS(Custom_Stock_MPG[Vehicle Stock],Custom_Stock_MPG[Year],Calculations!J$4, Custom_Stock_MPG[[ Technology Type]], $B6, Custom_Stock_MPG[Vehicle Type], $A6, Custom_Stock_MPG[Scenario], Input_Scenario_Modeled), SUMIFS(Vehicle_Projections[Vehicle Stock],Vehicle_Projections[Year],Calculations!J$4,Vehicle_Projections[Technology Type], $B6, Vehicle_Projections[Vehicle Type], $A6, Vehicle_Projections[Scenario], Input_Scenario_Modeled)) -> 4.594134 | K6: =IF(Input_Scenario_Modeled="Custom", SUMIFS(Custom_Stock_MPG[Vehicle Stock],Custom_Stock_MPG[Year],Calculations!K$4, Custom_Stock_MPG[[ Technology Type]], $B6, Custom_Stock_MPG[Vehicle Type], $A6, Custom_Stock_MPG[Scenario], Input_Scenario_Modeled), SUMIFS(Vehicle_Projections[Vehicle Stock],Vehicle_Projections[Year],Calculations!K$4,Vehicle_Projections[Technology Type], $B6, Vehicle_Projections[Vehicle Type], $A6, Vehicle_Projections[Scenario], Input_Scenario_Modeled)) -> 4.45373 | L6: =IF(Input_Scenario_Modeled="Custom", SUMIFS(Custom_Stock_MPG[Vehicle Stock],Custom_Stock_MPG[Year],Calculations!L$4, Custom_Stock_MPG[[ Technology Type]], $B6, Custom_Stock_MPG[Vehicle Type], $A6, Custom_Stock_MPG[Scenario], Input_Scenario_Modeled), SUMIFS(Vehicle_Projections[Vehicle Stock],Vehicle_Projections[Year],Calculations!L$4,Vehicle_Projections[Technology Type], $B6, Vehicle_Projections[Vehicle Type], $A6, Vehicle_Projections[Scenario], Input_Scenario_Modeled)) -> 4.290557 | M6: =IF(Input_Scenario_Modeled="Custom", SUMIFS(Custom_Stock_MPG[Vehicle Stock],Custom_Stock_MPG[Year],Calculations!M$4, Custom_Stock_MPG[[ Technology Type]], $B6, Custom_Stock_MPG[Vehicle Type], $A6, Custom_Stock_MPG[Scenario], Input_Scenario_Modeled), SUMIFS(Vehicle_Projections[Vehicle Stock],Vehicle_Projections[Year],Calculations!M$4,Vehicle_Projections[Technology Type], $B6, Vehicle_Projections[Vehicle Type], $A6, Vehicle_Projections[Scenario], Input_Scenario_Modeled)) -> 4.10357 | N6: =IF(Input_Scenario_Modeled="Custom", SUMIFS(Custom_Stock_MPG[Vehicle Stock],Custom_Stock_MPG[Year],Calculations!N$4, Custom_Stock_MPG[[ Technology Type]], $B6, Custom_Stock_MPG[Vehicle Type], $A6, Custom_Stock_MPG[Scenario], Input_Scenario_Modeled), SUMIFS(Vehicle_Projections[Vehicle Stock],Vehicle_Projections[Year],Calculations!N$4,Vehicle_Projections[Technology Type], $B6, Vehicle_Projections[Vehicle Type], $A6, Vehicle_Projections[Scenario], Input_Scenario_Modeled)) -> 3.901671 | O6: =IF(Input_Scenario_Modeled="Custom", SUMIFS(Custom_Stock_MPG[Vehicle Stock],Custom_Stock_MPG[Year],Calculations!O$4, Custom_Stock_MPG[[ Technology Type]], $B6, Custom_Stock_MPG[Vehicle Type], $A6, Custom_Stock_MPG[Scenario], Input_Scenario_Modeled), SUMIFS(Vehicle_Projections[Vehicle Stock],Vehicle_Projections[Year],Calculations!O$4,Vehicle_Projections[Technology Type], $B6, Vehicle_Projections[Vehicle Type], $A6, Vehicle_Projections[Scenario], Input_Scenario_Modeled)) -> 3.689381 | P6: =IF(Input_Scenario_Modeled="Custom", SUMIFS(Custom_Stock_MPG[Vehicle Stock],Custom_Stock_MPG[Year],Calculations!P$4, Custom_Stock_MPG[[ Technology Type]], $B6, Custom_Stock_MPG[Vehicle Type], $A6, Custom_Stock_MPG[Scenario], Input_Scenario_Modeled), SUMIFS(Vehicle_Projections[Vehicle Stock],Vehicle_Projections[Year],Calculations!P$4,Vehicle_Projections[Technology Type], $B6, Vehicle_Projections[Vehicle Type], $A6, Vehicle_Projections[Scenario], Input_Scenario_Modeled)) -> 3.48089 | Q6: =IF(Input_Scenario_Modeled="Custom", SUMIFS(Custom_Stock_MPG[Vehicle Stock],Custom_Stock_MPG[Year],Calculations!Q$4, Custom_Stock_MPG[[ Technology Type]], $B6, Custom_Stock_MPG[Vehicle Type], $A6, Custom_Stock_MPG[Scenario], Input_Scenario_Modeled), SUMIFS(Vehicle_Projections[Vehicle Stock],Vehicle_Projections[Year],Calculations!Q$4,Vehicle_Projections[Technology Type], $B6, Vehicle_Projections[Vehicle Type], $A6, Vehicle_Projections[Scenario], Input_Scenario_Modeled)) -> 3.285497 | R6: =IF(Input_Scenario_Modeled="Custom", SUMIFS(Custom_Stock_MPG[Vehicle Stock],Custom_Stock_MPG[Year],Calculations!R$4, Custom_Stock_MPG[[ Technology Type]], $B6, Custom_Stock_MPG[Vehicle Type], $A6, Custom_Stock_MPG[Scenario], Input_Scenario_Modeled), SUMIFS(Vehicle_Projections[Vehicle Stock],Vehicle_Projections[Year],Calculations!R$4,Vehicle_Projections[Technology Type], $B6, Vehicle_Projections[Vehicle Type], $A6, Vehicle_Projections[Scenario], Input_Scenario_Modeled)) -> 3.105075 | S6: =IF(Input_Scenario_Modeled="Custom", SUMIFS(Custom_Stock_MPG[Vehicle Stock],Custom_Stock_MPG[Year],Calculations!S$4, Custom_Stock_MPG[[ Technology Type]], $B6, Custom_Stock_MPG[Vehicle Type], $A6, Custom_Stock_MPG[Scenario], Input_Scenario_Modeled), SUMIFS(Vehicle_Projections[Vehicle Stock],Vehicle_Projections[Year],Calculations!S$4,Vehicle_Projections[Technology Type], $B6, Vehicle_Projections[Vehicle Type], $A6, Vehicle_Projections[Scenario], Input_Scenario_Modeled)) -> 2.943124 | T6: =IF(Input_Scenario_Modeled="Custom", SUMIFS(Custom_Stock_MPG[Vehicle Stock],Custom_Stock_MPG[Year],Calculations!T$4, Custom_Stock_MPG[[ Technology Type]], $B6, Custom_Stock_MPG[Vehicle Type], $A6, Custom_Stock_MPG[Scenario], Input_Scenario_Modeled), SUMIFS(Vehicle_Projections[Vehicle Stock],Vehicle_Projections[Year],Calculations!T$4,Vehicle_Projections[Technology Type], $B6, Vehicle_Projections[Vehicle Type], $A6, Vehicle_Projections[Scenario], Input_Scenario_Modeled)) -> 2.807026 | U6: =IF(Input_Scenario_Modeled="Custom", SUMIFS(Custom_Stock_MPG[Vehicle Stock],Custom_Stock_MPG[Year],Calculations!U$4, Custom_Stock_MPG[[ Technology Type]], $B6, Custom_Stock_MPG[Vehicle Type], $A6, Custom_Stock_MPG[Scenario], Input_Scenario_Modeled), SUMIFS(Vehicle_Projections[Vehicle Stock],Vehicle_Projections[Year],Calculations!U$4,Vehicle_Projections[Technology Type], $B6, Vehicle_Projections[Vehicle Type], $A6, Vehicle_Projections[Scenario], Input_Scenario_Modeled)) -> 2.694615 | V6: =IF(Input_Scenario_Modeled="Custom", SUMIFS(Custom_Stock_MPG[Vehicle Stock],Custom_Stock_MPG[Year],Calculations!V$4, Custom_Stock_MPG[[ Technology Type]], $B6, Custom_Stock_MPG[Vehicle Type], $A6, Custom_Stock_MPG[Scenario], Input_Scenario_Modeled), SUMIFS(Vehicle_Projections[Vehicle Stock],Vehicle_Projections[Year],Calculations!V$4,Vehicle_Projections[Technology Type], $B6, Vehicle_Projections[Vehicle Type], $A6, Vehicle_Projections[Scenario], Input_Scenario_Modeled)) -> 2.602892 | W6: =IF(Input_Scenario_Modeled="Custom", SUMIFS(Custom_Stock_MPG[Vehicle Stock],Custom_Stock_MPG[Year],Calculations!W$4, Custom_Stock_MPG[[ Technology Type]], $B6, Custom_Stock_MPG[Vehicle Type], $A6, Custom_Stock_MPG[Scenario], Input_Scenario_Modeled), SUMIFS(Vehicle_Projections[Vehicle Stock],Vehicle_Projections[Year],Calculations!W$4,Vehicle_Projections[Technology Type], $B6, Vehicle_Projections[Vehicle Type], $A6, Vehicle_Projections[Scenario], Input_Scenario_Modeled)) -> 2.537039 | X6: =IF(Input_Scenario_Modeled="Custom", SUMIFS(Custom_Stock_MPG[Vehicle Stock],Custom_Stock_MPG[Year],Calculations!X$4, Custom_Stock_MPG[[ Technology Type]], $B6, Custom_Stock_MPG[Vehicle Type], $A6, Custom_Stock_MPG[Scenario], Input_Scenario_Modeled), SUMIFS(Vehicle_Projections[Vehicle Stock],Vehicle_Projections[Year],Calculations!X$4,Vehicle_Projections[Technology Type], $B6, Vehicle_Projections[Vehicle Type], $A6, Vehicle_Projections[Scenario], Input_Scenario_Modeled)) -> 2.488261 | Y6: =IF(Input_Scenario_Modeled="Custom", SUMIFS(Custom_Stock_MPG[Vehicle Stock],Custom_Stock_MPG[Year],Calculations!Y$4, Custom_Stock_MPG[[ Technology Type]], $B6, Custom_Stock_MPG[Vehicle Type], $A6, Custom_Stock_MPG[Scenario], Input_Scenario_Modeled), SUMIFS(Vehicle_Projections[Vehicle Stock],Vehicle_Projections[Year],Calculations!Y$4,Vehicle_Projections[Technology Type], $B6, Vehicle_Projections[Vehicle Type], $A6, Vehicle_Projections[Scenario], Input_Scenario_Modeled)) -> 2.453759 | Z6: =IF(Input_Scenario_Modeled="Custom", SUMIFS(Custom_Stock_MPG[Vehicle Stock],Custom_Stock_MPG[Year],Calculations!Z$4, Custom_Stock_MPG[[ Technology Type]], $B6, Custom_Stock_MPG[Vehicle Type], $A6, Custom_Stock_MPG[Scenario], Input_Scenario_Modeled), SUMIFS(Vehicle_Projections[Vehicle Stock],Vehicle_Projections[Year],Calculations!Z$4,Vehicle_Projections[Technology Type], $B6, Vehicle_Projections[Vehicle Type], $A6, Vehicle_Projections[Scenario], Input_Scenario_Modeled)) -> 2.431187 | AA6: =IF(Input_Scenario_Modeled="Custom", SUMIFS(Custom_Stock_MPG[Vehicle Stock],Custom_Stock_MPG[Year],Calculations!AA$4, Custom_Stock_MPG[[ Technology Type]], $B6, Custom_Stock_MPG[Vehicle Type], $A6, Custom_Stock_MPG[Scenario], Input_Scenario_Modeled), SUMIFS(Vehicle_Projections[Vehicle Stock],Vehicle_Projections[Year],Calculations!AA$4,Vehicle_Projections[Technology Type], $B6, Vehicle_Projections[Vehicle Type], $A6, Vehicle_Projections[Scenario], Input_Scenario_Modeled)) -> 2.417151 | AB6: =IF(Input_Scenario_Modeled="Custom", SUMIFS(Custom_Stock_MPG[Vehicle Stock],Custom_Stock_MPG[Year],Calculations!AB$4, Custom_Stock_MPG[[ Technology Type]], $B6, Custom_Stock_MPG[Vehicle Type], $A6, Custom_Stock_MPG[Scenario], Input_Scenario_Modeled), SUMIFS(Vehicle_Projections[Vehicle Stock],Vehicle_Projections[Year],Calculations!AB$4,Vehicle_Projections[Technology Type], $B6, Vehicle_Projections[Vehicle Type], $A6, Vehicle_Projections[Scenario], Input_Scenario_Modeled)) -> 2.409541 | AC6: =IF(Input_Scenario_Modeled="Custom", SUMIFS(Custom_Stock_MPG[Vehicle Stock],Custom_Stock_MPG[Year],Calculations!AC$4, Custom_Stock_MPG[[ Technology Type]], $B6, Custom_Stock_MPG[Vehicle Type], $A6, Custom_Stock_MPG[Scenario], Input_Scenario_Modeled), SUMIFS(Vehicle_Projections[Vehicle Stock],Vehicle_Projections[Year],Calculations!AC$4,Vehicle_Projections[Technology Type], $B6, Vehicle_Projections[Vehicle Type], $A6, Vehicle_Projections[Scenario], Input_Scenario_Modeled)) -> 2.405212 | AD6: =IF(Input_Scenario_Modeled="Custom", SUMIFS(Custom_Stock_MPG[Vehicle Stock],Custom_Stock_MPG[Year],Calculations!AD$4, Custom_Stock_MPG[[ Technology Type]], $B6, Custom_Stock_MPG[Vehicle Type], $A6, Custom_Stock_MPG[Scenario], Input_Scenario_Modeled), SUMIFS(Vehicle_Projections[Vehicle Stock],Vehicle_Projections[Year],Calculations!AD$4,Vehicle_Projections[Technology Type], $B6, Vehicle_Projections[Vehicle Type], $A6, Vehicle_Projections[Scenario], Input_Scenario_Modeled)) -> 2.40347 | AE6: =IF(Input_Scenario_Modeled="Custom", SUMIFS(Custom_Stock_MPG[Vehicle Stock],Custom_Stock_MPG[Year],Calculations!AE$4, Custom_Stock_MPG[[ Technology Type]], $B6, Custom_Stock_MPG[Vehicle Type], $A6, Custom_Stock_MPG[Scenario], Input_Scenario_Modeled), SUMIFS(Vehicle_Projections[Vehicle Stock],Vehicle_Projections[Year],Calculations!AE$4,Vehicle_Projections[Technology Type], $B6, Vehicle_Projections[Vehicle Type], $A6, Vehicle_Projections[Scenario], Input_Scenario_Modeled)) -> 2.404149 | AF6: =IF(Input_Scenario_Modeled="Custom", SUMIFS(Custom_Stock_MPG[Vehicle Stock],Custom_Stock_MPG[Year],Calculations!AF$4, Custom_Stock_MPG[[ Technology Type]], $B6, Custom_Stock_MPG[Vehicle Type], $A6, Custom_Stock_MPG[Scenario], Input_Scenario_Modeled), SUMIFS(Vehicle_Projections[Vehicle Stock],Vehicle_Projections[Year],Calculations!AF$4,Vehicle_Projections[Technology Type], $B6, Vehicle_Projections[Vehicle Type], $A6, Vehicle_Projections[Scenario], Input_Scenario_Modeled)) -> 2.406478 | AG6: =IF(Input_Scenario_Modeled="Custom", SUMIFS(Custom_Stock_MPG[Vehicle Stock],Custom_Stock_MPG[Year],Calculations!AG$4, Custom_Stock_MPG[[ Technology Type]], $B6, Custom_Stock_MPG[Vehicle Type], $A6, Custom_Stock_MPG[Scenario], Input_Scenario_Modeled), SUMIFS(Vehicle_Projections[Vehicle Stock],Vehicle_Projections[Year],Calculations!AG$4,Vehicle_Projections[Technology Type], $B6, Vehicle_Projections[Vehicle Type], $A6, Vehicle_Projections[Scenario], Input_Scenario_Modeled)) -> 2.410385 | AH6: =IF(Input_Scenario_Modeled="Custom", SUMIFS(Custom_Stock_MPG[Vehicle Stock],Custom_Stock_MPG[Year],Calculations!AH$4, Custom_Stock_MPG[[ Technology Type]], $B6, Custom_Stock_MPG[Vehicle Type], $A6, Custom_Stock_MPG[Scenario], Input_Scenario_Modeled), SUMIFS(Vehicle_Projections[Vehicle Stock],Vehicle_Projections[Year],Calculations!AH$4,Vehicle_Projections[Technology Type], $B6, Vehicle_Projections[Vehicle Type], $A6, Vehicle_Projections[Scenario], Input_Scenario_Modeled)) -> 2.415736 | AI6: =IF(Input_Scenario_Modeled="Custom", SUMIFS(Custom_Stock_MPG[Vehicle Stock],Custom_Stock_MPG[Year],Calculations!AI$4, Custom_Stock_MPG[[ Technology Type]], $B6, Custom_Stock_MPG[Vehicle Type], $A6, Custom_Stock_MPG[Scenario], Input_Scenario_Modeled), SUMIFS(Vehicle_Projections[Vehicle Stock],Vehicle_Projections[Year],Calculations!AI$4,Vehicle_Projections[Technology Type], $B6, Vehicle_Projections[Vehicle Type], $A6, Vehicle_Projections[Scenario], Input_Scenario_Modeled)) -> 2.421878 | AJ6: =IF(Input_Scenario_Modeled="Custom", SUMIFS(Custom_Stock_MPG[Vehicle Stock],Custom_Stock_MPG[Year],Calculations!AJ$4, Custom_Stock_MPG[[ Technology Type]], $B6, Custom_Stock_MPG[Vehicle Type], $A6, Custom_Stock_MPG[Scenario], Input_Scenario_Modeled), SUMIFS(Vehicle_Projections[Vehicle Stock],Vehicle_Projections[Year],Calculations!AJ$4,Vehicle_Projections[Technology Type], $B6, Vehicle_Projections[Vehicle Type], $A6, Vehicle_Projections[Scenario], Input_Scenario_Modeled)) -> 2.428634
A7: Passenger Cars | B7: Electric-Gasoline Hybrid | C7: Gasoline | D7: Stock | E7: =IF(Input_Scenario_Modeled="Custom", SUMIFS(Custom_Stock_MPG[Vehicle Stock],Custom_Stock_MPG[Year],Calculations!E$4, Custom_Stock_MPG[[ Technology Type]], $B7, Custom_Stock_MPG[Vehicle Type], $A7, Custom_Stock_MPG[Scenario], Input_Scenario_Modeled), SUMIFS(Vehicle_Projections[Vehicle Stock],Vehicle_Projections[Year],Calculations!E$4,Vehicle_Projections[Technology Type], $B7, Vehicle_Projections[Vehicle Type], $A7, Vehicle_Projections[Scenario], Input_Scenario_Modeled)) -> 3.811605 | F7: =IF(Input_Scenario_Modeled="Custom", SUMIFS(Custom_Stock_MPG[Vehicle Stock],Custom_Stock_MPG[Year],Calculations!F$4, Custom_Stock_MPG[[ Technology Type]], $B7, Custom_Stock_MPG[Vehicle Type], $A7, Custom_Stock_MPG[Scenario], Input_Scenario_Modeled), SUMIFS(Vehicle_Projections[Vehicle Stock],Vehicle_Projections[Year],Calculations!F$4,Vehicle_Projections[Technology Type], $B7, Vehicle_Projections[Vehicle Type], $A7, Vehicle_Projections[Scenario], Input_Scenario_Modeled)) -> 3.859083 | G7: =IF(Input_Scenario_Modeled="Custom", SUMIFS(Custom_Stock_MPG[Vehicle Stock],Custom_Stock_MPG[Year],Calculations!G$4, Custom_Stock_MPG[[ Technology Type]], $B7, Custom_Stock_MPG[Vehicle Type], $A7, Custom_Stock_MPG[Scenario], Input_Scenario_Modeled), SUMIFS(Vehicle_Projections[Vehicle Stock],Vehicle_Projections[Year],Calculations!G$4,Vehicle_Projections[Technology Type], $B7, Vehicle_Projections[Vehicle Type], $A7, Vehicle_Projections[Scenario], Input_Scenario_Modeled)) -> 3.883631 | H7: =IF(Input_Scenario_Modeled="Custom", SUMIFS(Custom_Stock_MPG[Vehicle Stock],Custom_Stock_MPG[Year],Calculations!H$4, Custom_Stock_MPG[[ Technology Type]], $B7, Custom_Stock_MPG[Vehicle Type], $A7, Custom_Stock_MPG[Scenario], Input_Scenario_Modeled), SUMIFS(Vehicle_Projections[Vehicle Stock],Vehicle_Projections[Year],Calculations!H$4,Vehicle_Projections[Technology Type], $B7, Vehicle_Projections[Vehicle Type], $A7, Vehicle_Projections[Scenario], Input_Scenario_Modeled)) -> 3.88683 | I7: =IF(Input_Scenario_Modeled="Custom", SUMIFS(Custom_Stock_MPG[Vehicle Stock],Custom_Stock_MPG[Year],Calculations!I$4, Custom_Stock_MPG[[ Technology Type]], $B7, Custom_Stock_MPG[Vehicle Type], $A7, Custom_Stock_MPG[Scenario], Input_Scenario_Modeled), SUMIFS(Vehicle_Projections[Vehicle Stock],Vehicle_Projections[Year],Calculations!I$4,Vehicle_Projections[Technology Type], $B7, Vehicle_Projections[Vehicle Type], $A7, Vehicle_Projections[Scenario], Input_Scenario_Modeled)) -> 3.880499 | J7: =IF(Input_Scenario_Modeled="Custom", SUMIFS(Custom_Stock_MPG[Vehicle Stock],Custom_Stock_MPG[Year],Calculations!J$4, Custom_Stock_MPG[[ Technology Type]], $B7, Custom_Stock_MPG[Vehicle Type], $A7, Custom_Stock_MPG[Scenario], Input_Scenario_Modeled), SUMIFS(Vehicle_Projections[Vehicle Stock],Vehicle_Projections[Year],Calculations!J$4,Vehicle_Projections[Technology Type], $B7, Vehicle_Projections[Vehicle Type], $A7, Vehicle_Projections[Scenario], Input_Scenario_Modeled)) -> 3.866173 | K7: =IF(Input_Scenario_Modeled="Custom", SUMIFS(Custom_Stock_MPG[Vehicle Stock],Custom_Stock_MPG[Year],Calculations!K$4, Custom_Stock_MPG[[ Technology Type]], $B7, Custom_Stock_MPG[Vehicle Type], $A7, Custom_Stock_MPG[Scenario], Input_Scenario_Modeled), SUMIFS(Vehicle_Projections[Vehicle Stock],Vehicle_Projections[Year],Calculations!K$4,Vehicle_Projections[Technology Type], $B7, Vehicle_Projections[Vehicle Type], $A7, Vehicle_Projections[Scenario], Input_Scenario_Modeled)) -> 3.835506 | L7: =IF(Input_Scenario_Modeled="Custom", SUMIFS(Custom_Stock_MPG[Vehicle Stock],Custom_Stock_MPG[Year],Calculations!L$4, Custom_Stock_MPG[[ Technology Type]], $B7, Custom_Stock_MPG[Vehicle Type], $A7, Custom_Stock_MPG[Scenario], Input_Scenario_Modeled), SUMIFS(Vehicle_Projections[Vehicle Stock],Vehicle_Projections[Year],Calculations!L$4,Vehicle_Projections[Technology Type], $B7, Vehicle_Projections[Vehicle Type], $A7, Vehicle_Projections[Scenario], Input_Scenario_Modeled)) -> 3.797779 | M7: =IF(Input_Scenario_Modeled="Custom", SUMIFS(Custom_Stock_MPG[Vehicle Stock],Custom_Stock_MPG[Year],Calculations!M$4, Custom_Stock_MPG[[ Technology Type]], $B7, Custom_Stock_MPG[Vehicle Type], $A7, Custom_Stock_MPG[Scenario], Input_Scenario_Modeled), SUMIFS(Vehicle_Projections[Vehicle Stock],Vehicle_Projections[Year],Calculations!M$4,Vehicle_Projections[Technology Type], $B7, Vehicle_Projections[Vehicle Type], $A7, Vehicle_Projections[Scenario], Input_Scenario_Modeled)) -> 3.754034 | N7: =IF(Input_Scenario_Modeled="Custom", SUMIFS(Custom_Stock_MPG[Vehicle Stock],Custom_Stock_MPG[Year],Calculations!N$4, Custom_Stock_MPG[[ Technology Type]], $B7, Custom_Stock_MPG[Vehicle Type], $A7, Custom_Stock_MPG[Scenario], Input_Scenario_Modeled), SUMIFS(Vehicle_Projections[Vehicle Stock],Vehicle_Projections[Year],Calculations!N$4,Vehicle_Projections[Technology Type], $B7, Vehicle_Projections[Vehicle Type], $A7, Vehicle_Projections[Scenario], Input_Scenario_Modeled)) -> 3.706419 | O7: =IF(Input_Scenario_Modeled="Custom", SUMIFS(Custom_Stock_MPG[Vehicle Stock],Custom_Stock_MPG[Year],Calculations!O$4, Custom_Stock_MPG[[ Technology Type]], $B7, Custom_Stock_MPG[Vehicle Type], $A7, Custom_Stock_MPG[Scenario], Input_Scenario_Modeled), SUMIFS(Vehicle_Projections[Vehicle Stock],Vehicle_Projections[Year],Calculations!O$4,Vehicle_Projections[Technology Type], $B7, Vehicle_Projections[Vehicle Type], $A7, Vehicle_Projections[Scenario], Input_Scenario_Modeled)) -> 3.658762 | P7: =IF(Input_Scenario_Modeled="Custom", SUMIFS(Custom_Stock_MPG[Vehicle Stock],Custom_Stock_MPG[Year],Calculations!P$4, Custom_Stock_MPG[[ Technology Type]], $B7, Custom_Stock_MPG[Vehicle Type], $A7, Custom_Stock_MPG[Scenario], Input_Scenario_Modeled), SUMIFS(Vehicle_Projections[Vehicle Stock],Vehicle_Projections[Year],Calculations!P$4,Vehicle_Projections[Technology Type], $B7, Vehicle_Projections[Vehicle Type], $A7, Vehicle_Projections[Scenario], Input_Scenario_Modeled)) -> 3.618448 | Q7: =IF(Input_Scenario_Modeled="Custom", SUMIFS(Custom_Stock_MPG[Vehicle Stock],Custom_Stock_MPG[Year],Calculations!Q$4, Custom_Stock_MPG[[ Technology Type]], $B7, Custom_Stock_MPG[Vehicle Type], $A7, Custom_Stock_MPG[Scenario], Input_Scenario_Modeled), SUMIFS(Vehicle_Projections[Vehicle Stock],Vehicle_Projections[Year],Calculations!Q$4,Vehicle_Projections[Technology Type], $B7, Vehicle_Projections[Vehicle Type], $A7, Vehicle_Projections[Scenario], Input_Scenario_Modeled)) -> 3.582125 | R7: =IF(Input_Scenario_Modeled="Custom", SUMIFS(Custom_Stock_MPG[Vehicle Stock],Custom_Stock_MPG[Year],Calculations!R$4, Custom_Stock_MPG[[ Technology Type]], $B7, Custom_Stock_MPG[Vehicle Type], $A7, Custom_Stock_MPG[Scenario], Input_Scenario_Modeled), SUMIFS(Vehicle_Projections[Vehicle Stock],Vehicle_Projections[Year],Calculations!R$4,Vehicle_Projections[Technology Type], $B7, Vehicle_Projections[Vehicle Type], $A7, Vehicle_Projections[Scenario], Input_Scenario_Modeled)) -> 3.552817 | S7: =IF(Input_Scenario_Modeled="Custom", SUMIFS(Custom_Stock_MPG[Vehicle Stock],Custom_Stock_MPG[Year],Calculations!S$4, Custom_Stock_MPG[[ Technology Type]], $B7, Custom_Stock_MPG[Vehicle Type], $A7, Custom_Stock_MPG[Scenario], Input_Scenario_Modeled), SUMIFS(Vehicle_Projections[Vehicle Stock],Vehicle_Projections[Year],Calculations!S$4,Vehicle_Projections[Technology Type], $B7, Vehicle_Projections[Vehicle Type], $A7, Vehicle_Projections[Scenario], Input_Scenario_Modeled)) -> 3.537281 | T7: =IF(Input_Scenario_Modeled="Custom", SUMIFS(Custom_Stock_MPG[Vehicle Stock],Custom_Stock_MPG[Year],Calculations!T$4, Custom_Stock_MPG[[ Technology Type]], $B7, Custom_Stock_MPG[Vehicle Type], $A7, Custom_Stock_MPG[Scenario], Input_Scenario_Modeled), SUMIFS(Vehicle_Projections[Vehicle Stock],Vehicle_Projections[Year],Calculations!T$4,Vehicle_Projections[Technology Type], $B7, Vehicle_Projections[Vehicle Type], $A7, Vehicle_Projections[Scenario], Input_Scenario_Modeled)) -> 3.534854 | U7: =IF(Input_Scenario_Modeled="Custom", SUMIFS(Custom_Stock_MPG[Vehicle Stock],Custom_Stock_MPG[Year],Calculations!U$4, Custom_Stock_MPG[[ Technology Type]], $B7, Custom_Stock_MPG[Vehicle Type], $A7, Custom_Stock_MPG[Scenario], Input_Scenario_Modeled), SUMIFS(Vehicle_Projections[Vehicle Stock],Vehicle_Projections[Year],Calculations!U$4,Vehicle_Projections[Technology Type], $B7, Vehicle_Projections[Vehicle Type], $A7, Vehicle_Projections[Scenario], Input_Scenario_Modeled)) -> 3.549188 | V7: =IF(Input_Scenario_Modeled="Custom", SUMIFS(Custom_Stock_MPG[Vehicle Stock],Custom_Stock_MPG[Year],Calculations!V$4, Custom_Stock_MPG[[ Technology Type]], $B7, Custom_Stock_MPG[Vehicle Type], $A7, Custom_Stock_MPG[Scenario], Input_Scenario_Modeled), SUMIFS(Vehicle_Projections[Vehicle Stock],Vehicle_Projections[Year],Calculations!V$4,Vehicle_Projections[Technology Type], $B7, Vehicle_Projections[Vehicle Type], $A7, Vehicle_Projections[Scenario], Input_Scenario_Modeled)) -> 3.578936 | W7: =IF(Input_Scenario_Modeled="Custom", SUMIFS(Custom_Stock_MPG[Vehicle Stock],Custom_Stock_MPG[Year],Calculations!W$4, Custom_Stock_MPG[[ Technology Type]], $B7, Custom_Stock_MPG[Vehicle Type], $A7, Custom_Stock_MPG[Scenario], Input_Scenario_Modeled), SUMIFS(Vehicle_Projections[Vehicle Stock],Vehicle_Projections[Year],Calculations!W$4,Vehicle_Projections[Technology Type], $B7, Vehicle_Projections[Vehicle Type], $A7, Vehicle_Projections[Scenario], Input_Scenario_Modeled)) -> 3.622379 | X7: =IF(Input_Scenario_Modeled="Custom", SUMIFS(Custom_Stock_MPG[Vehicle Stock],Custom_Stock_MPG[Year],Calculations!X$4, Custom_Stock_MPG[[ Technology Type]], $B7, Custom_Stock_MPG[Vehicle Type], $A7, Custom_Stock_MPG[Scenario], Input_Scenario_Modeled), SUMIFS(Vehicle_Projections[Vehicle Stock],Vehicle_Projections[Year],Calculations!X$4,Vehicle_Projections[Technology Type], $B7, Vehicle_Projections[Vehicle Type], $A7, Vehicle_Projections[Scenario], Input_Scenario_Modeled)) -> 3.677235 | Y7: =IF(Input_Scenario_Modeled="Custom", SUMIFS(Custom_Stock_MPG[Vehicle Stock],Custom_Stock_MPG[Year],Calculations!Y$4, Custom_Stock_MPG[[ Technology Type]], $B7, Custom_Stock_MPG[Vehicle Type], $A7, Custom_Stock_MPG[Scenario], Input_Scenario_Modeled), SUMIFS(Vehicle_Projections[Vehicle Stock],Vehicle_Projections[Year],Calculations!Y$4,Vehicle_Projections[Technology Type], $B7, Vehicle_Projections[Vehicle Type], $A7, Vehicle_Projections[Scenario], Input_Scenario_Modeled)) -> 3.740871 | Z7: =IF(Input_Scenario_Modeled="Custom", SUMIFS(Custom_Stock_MPG[Vehicle Stock],Custom_Stock_MPG[Year],Calculations!Z$4, Custom_Stock_MPG[[ Technology Type]], $B7, Custom_Stock_MPG[Vehicle Type], $A7, Custom_Stock_MPG[Scenario], Input_Scenario_Modeled), SUMIFS(Vehicle_Projections[Vehicle Stock],Vehicle_Projections[Year],Calculations!Z$4,Vehicle_Projections[Technology Type], $B7, Vehicle_Projections[Vehicle Type], $A7, Vehicle_Projections[Scenario], Input_Scenario_Modeled)) -> 3.81069 | AA7: =IF(Input_Scenario_Modeled="Custom", SUMIFS(Custom_Stock_MPG[Vehicle Stock],Custom_Stock_MPG[Year],Calculations!AA$4, Custom_Stock_MPG[[ Technology Type]], $B7, Custom_Stock_MPG[Vehicle Type], $A7, Custom_Stock_MPG[Scenario], Input_Scenario_Modeled), SUMIFS(Vehicle_Projections[Vehicle Stock],Vehicle_Projections[Year],Calculations!AA$4,Vehicle_Projections[Technology Type], $B7, Vehicle_Projections[Vehicle Type], $A7, Vehicle_Projections[Scenario], Input_Scenario_Modeled)) -> 3.884518 | AB7: =IF(Input_Scenario_Modeled="Custom", SUMIFS(Custom_Stock_MPG[Vehicle Stock],Custom_Stock_MPG[Year],Calculations!AB$4, Custom_Stock_MPG[[ Technology Type]], $B7, Custom_Stock_MPG[Vehicle Type], $A7, Custom_Stock_MPG[Scenario], Input_Scenario_Modeled), SUMIFS(Vehicle_Projections[Vehicle Stock],Vehicle_Projections[Year],Calculations!AB$4,Vehicle_Projections[Technology Type], $B7, Vehicle_Projections[Vehicle Type], $A7, Vehicle_Projections[Scenario], Input_Scenario_Modeled)) -> 3.961305 | AC7: =IF(Input_Scenario_Modeled="Custom", SUMIFS(Custom_Stock_MPG[Vehicle Stock],Custom_Stock_MPG[Year],Calculations!AC$4, Custom_Stock_MPG[[ Technology Type]], $B7, Custom_Stock_MPG[Vehicle Type], $A7, Custom_Stock_MPG[Scenario], Input_Scenario_Modeled), SUMIFS(Vehicle_Projections[Vehicle Stock],Vehicle_Projections[Year],Calculations!AC$4,Vehicle_Projections[Technology Type], $B7, Vehicle_Projections[Vehicle Type], $A7, Vehicle_Projections[Scenario], Input_Scenario_Modeled)) -> 4.03737 | AD7: =IF(Input_Scenario_Modeled="Custom", SUMIFS(Custom_Stock_MPG[Vehicle Stock],Custom_Stock_MPG[Year],Calculations!AD$4, Custom_Stock_MPG[[ Technology Type]], $B7, Custom_Stock_MPG[Vehicle Type], $A7, Custom_Stock_MPG[Scenario], Input_Scenario_Modeled), SUMIFS(Vehicle_Projections[Vehicle Stock],Vehicle_Projections[Year],Calculations!AD$4,Vehicle_Projections[Technology Type], $B7, Vehicle_Projections[Vehicle Type], $A7, Vehicle_Projections[Scenario], Input_Scenario_Modeled)) -> 4.111584 | AE7: =IF(Input_Scenario_Modeled="Custom", SUMIFS(Custom_Stock_MPG[Vehicle Stock],Custom_Stock_MPG[Year],Calculations!AE$4, Custom_Stock_MPG[[ Technology Type]], $B7, Custom_Stock_MPG[Vehicle Type], $A7, Custom_Stock_MPG[Scenario], Input_Scenario_Modeled), SUMIFS(Vehicle_Projections[Vehicle Stock],Vehicle_Projections[Year],Calculations!AE$4,Vehicle_Projections[Technology Type], $B7, Vehicle_Projections[Vehicle Type], $A7, Vehicle_Projections[Scenario], Input_Scenario_Modeled)) -> 4.184363 | AF7: =IF(Input_Scenario_Modeled="Custom", SUMIFS(Custom_Stock_MPG[Vehicle Stock],Custom_Stock_MPG[Year],Calculations!AF$4, Custom_Stock_MPG[[ Technology Type]], $B7, Custom_Stock_MPG[Vehicle Type], $A7, Custom_Stock_MPG[Scenario], Input_Scenario_Modeled), SUMIFS(Vehicle_Projections[Vehicle Stock],Vehicle_Projections[Year],Calculations!AF$4,Vehicle_Projections[Technology Type], $B7, Vehicle_Projections[Vehicle Type], $A7, Vehicle_Projections[Scenario], Input_Scenario_Modeled)) -> 4.253956 | AG7: =IF(Input_Scenario_Modeled="Custom", SUMIFS(Custom_Stock_MPG[Vehicle Stock],Custom_Stock_MPG[Year],Calculations!AG$4, Custom_Stock_MPG[[ Technology Type]], $B7, Custom_Stock_MPG[Vehicle Type], $A7, Custom_Stock_MPG[Scenario], Input_Scenario_Modeled), SUMIFS(Vehicle_Projections[Vehicle Stock],Vehicle_Projections[Year],Calculations!AG$4,Vehicle_Projections[Technology Type], $B7, Vehicle_Projections[Vehicle Type], $A7, Vehicle_Projections[Scenario], Input_Scenario_Modeled)) -> 4.321776 | AH7: =IF(Input_Scenario_Modeled="Custom", SUMIFS(Custom_Stock_MPG[Vehicle Stock],Custom_Stock_MPG[Year],Calculations!AH$4, Custom_Stock_MPG[[ Technology Type]], $B7, Custom_Stock_MPG[Vehicle Type], $A7, Custom_Stock_MPG[Scenario], Input_Scenario_Modeled), SUMIFS(Vehicle_Projections[Vehicle Stock],Vehicle_Projections[Year],Calculations!AH$4,Vehicle_Projections[Technology Type], $B7, Vehicle_Projections[Vehicle Type], $A7, Vehicle_Projections[Scenario], Input_Scenario_Modeled)) -> 4.387519 | AI7: =IF(Input_Scenario_Modeled="Custom", SUMIFS(Custom_Stock_MPG[Vehicle Stock],Custom_Stock_MPG[Year],Calculations!AI$4, Custom_Stock_MPG[[ Technology Type]], $B7, Custom_Stock_MPG[Vehicle Type], $A7, Custom_Stock_MPG[Scenario], Input_Scenario_Modeled), SUMIFS(Vehicle_Projections[Vehicle Stock],Vehicle_Projections[Year],Calculations!AI$4,Vehicle_Projections[Technology Type], $B7, Vehicle_Projections[Vehicle Type], $A7, Vehicle_Projections[Scenario], Input_Scenario_Modeled)) -> 4.450173 | AJ7: =IF(Input_Scenario_Modeled="Custom", SUMIFS(Custom_Stock_MPG[Vehicle Stock],Custom_Stock_MPG[Year],Calculations!AJ$4, Custom_Stock_MPG[[ Technology Type]], $B7, Custom_Stock_MPG[Vehicle Type], $A7, Custom_Stock_MPG[Scenario], Input_Scenario_Modeled), SUMIFS(Vehicle_Projections[Vehicle Stock],Vehicle_Projections[Year],Calculations!AJ$4,Vehicle_Projections[Technology Type], $B7, Vehicle_Projections[Vehicle Type], $A7, Vehicle_Projections[Scenario], Input_Scenario_Modeled)) -> 4.509763
A8: Passenger Cars | B8: TDI Diesel ICE | C8: Diesel | D8: Stock | E8: =IF(Input_Scenario_Modeled="Custom", SUMIFS(Custom_Stock_MPG[Vehicle Stock],Custom_Stock_MPG[Year],Calculations!E$4, Custom_Stock_MPG[[ Technology Type]], $B8, Custom_Stock_MPG[Vehicle Type], $A8, Custom_Stock_MPG[Scenario], Input_Scenario_Modeled), SUMIFS(Vehicle_Projections[Vehicle Stock],Vehicle_Projections[Year],Calculations!E$4,Vehicle_Projections[Technology Type], $B8, Vehicle_Projections[Vehicle Type], $A8, Vehicle_Projections[Scenario], Input_Scenario_Modeled)) -> 0.749025 | F8: =IF(Input_Scenario_Modeled="Custom", SUMIFS(Custom_Stock_MPG[Vehicle Stock],Custom_Stock_MPG[Year],Calculations!F$4, Custom_Stock_MPG[[ Technology Type]], $B8, Custom_Stock_MPG[Vehicle Type], $A8, Custom_Stock_MPG[Scenario], Input_Scenario_Modeled), SUMIFS(Vehicle_Projections[Vehicle Stock],Vehicle_Projections[Year],Calculations!F$4,Vehicle_Projections[Technology Type], $B8, Vehicle_Projections[Vehicle Type], $A8, Vehicle_Projections[Scenario], Input_Scenario_Modeled)) -> 0.715235 | G8: =IF(Input_Scenario_Modeled="Custom", SUMIFS(Custom_Stock_MPG[Vehicle Stock],Custom_Stock_MPG[Year],Calculations!G$4, Custom_Stock_MPG[[ Technology Type]], $B8, Custom_Stock_MPG[Vehicle Type], $A8, Custom_Stock_MPG[Scenario], Input_Scenario_Modeled), SUMIFS(Vehicle_Projections[Vehicle Stock],Vehicle_Projections[Year],Calculations!G$4,Vehicle_Projections[Technology Type], $B8, Vehicle_Projections[Vehicle Type], $A8, Vehicle_Projections[Scenario], Input_Scenario_Modeled)) -> 0.680836 | H8: =IF(Input_Scenario_Modeled="Custom", SUMIFS(Custom_Stock_MPG[Vehicle Stock],Custom_Stock_MPG[Year],Calculations!H$4, Custom_Stock_MPG[[ Technology Type]], $B8, Custom_Stock_MPG[Vehicle Type], $A8, Custom_Stock_MPG[Scenario], Input_Scenario_Modeled), SUMIFS(Vehicle_Projections[Vehicle Stock],Vehicle_Projections[Year],Calculations!H$4,Vehicle_Projections[Technology Type], $B8, Vehicle_Projections[Vehicle Type], $A8, Vehicle_Projections[Scenario], Input_Scenario_Modeled)) -> 0.646616 | I8: =IF(Input_Scenario_Modeled="Custom", SUMIFS(Custom_Stock_MPG[Vehicle Stock],Custom_Stock_MPG[Year],Calculations!I$4, Custom_Stock_MPG[[ Technology Type]], $B8, Custom_Stock_MPG[Vehicle Type], $A8, Custom_Stock_MPG[Scenario], Input_Scenario_Modeled), SUMIFS(Vehicle_Projections[Vehicle Stock],Vehicle_Projections[Year],Calculations!I$4,Vehicle_Projections[Technology Type], $B8, Vehicle_Projections[Vehicle Type], $A8, Vehicle_Projections[Scenario], Input_Scenario_Modeled)) -> 0.612221 | J8: =IF(Input_Scenario_Modeled="Custom", SUMIFS(Custom_Stock_MPG[Vehicle Stock],Custom_Stock_MPG[Year],Calculations!J$4, Custom_Stock_MPG[[ Technology Type]], $B8, Custom_Stock_MPG[Vehicle Type], $A8, Custom_Stock_MPG[Scenario], Input_Scenario_Modeled), SUMIFS(Vehicle_Projections[Vehicle Stock],Vehicle_Projections[Year],Calculations!J$4,Vehicle_Projections[Technology Type], $B8, Vehicle_Projections[Vehicle Type], $A8, Vehicle_Projections[Scenario], Input_Scenario_Modeled)) -> 0.577228 | K8: =IF(Input_Scenario_Modeled="Custom", SUMIFS(Custom_Stock_MPG[Vehicle Stock],Custom_Stock_MPG[Year],Calculations!K$4, Custom_Stock_MPG[[ Technology Type]], $B8, Custom_Stock_MPG[Vehicle Type], $A8, Custom_Stock_MPG[Scenario], Input_Scenario_Modeled), SUMIFS(Vehicle_Projections[Vehicle Stock],Vehicle_Projections[Year],Calculations!K$4,Vehicle_Projections[Technology Type], $B8, Vehicle_Projections[Vehicle Type], $A8, Vehicle_Projections[Scenario], Input_Scenario_Modeled)) -> 0.541016 | L8: =IF(Input_Scenario_Modeled="Custom", SUMIFS(Custom_Stock_MPG[Vehicle Stock],Custom_Stock_MPG[Year],Calculations!L$4, Custom_Stock_MPG[[ Technology Type]], $B8, Custom_Stock_MPG[Vehicle Type], $A8, Custom_Stock_MPG[Scenario], Input_Scenario_Modeled), SUMIFS(Vehicle_Projections[Vehicle Stock],Vehicle_Projections[Year],Calculations!L$4,Vehicle_Projections[Technology Type], $B8, Vehicle_Projections[Vehicle Type], $A8, Vehicle_Projections[Scenario], Input_Scenario_Modeled)) -> 0.503033 | M8: =IF(Input_Scenario_Modeled="Custom", SUMIFS(Custom_Stock_MPG[Vehicle Stock],Custom_Stock_MPG[Year],Calculations!M$4, Custom_Stock_MPG[[ Technology Type]], $B8, Custom_Stock_MPG[Vehicle Type], $A8, Custom_Stock_MPG[Scenario], Input_Scenario_Modeled), SUMIFS(Vehicle_Projections[Vehicle Stock],Vehicle_Projections[Year],Calculations!M$4,Vehicle_Projections[Technology Type], $B8, Vehicle_Projections[Vehicle Type], $A8, Vehicle_Projections[Scenario], Input_Scenario_Modeled)) -> 0.463051 | N8: =IF(Input_Scenario_Modeled="Custom", SUMIFS(Custom_Stock_MPG[Vehicle Stock],Custom_Stock_MPG[Year],Calculations!N$4, Custom_Stock_MPG[[ Technology Type]], $B8, Custom_Stock_MPG[Vehicle Type], $A8, Custom_Stock_MPG[Scenario], Input_Scenario_Modeled), SUMIFS(Vehicle_Projections[Vehicle Stock],Vehicle_Projections[Year],Calculations!N$4,Vehicle_Projections[Technology Type], $B8, Vehicle_Projections[Vehicle Type], $A8, Vehicle_Projections[Scenario], Input_Scenario_Modeled)) -> 0.422607 | O8: =IF(Input_Scenario_Modeled="Custom", SUMIFS(Custom_Stock_MPG[Vehicle Stock],Custom_Stock_MPG[Year],Calculations!O$4, Custom_Stock_MPG[[ Technology Type]], $B8, Custom_Stock_MPG[Vehicle Type], $A8, Custom_Stock_MPG[Scenario], Input_Scenario_Modeled), SUMIFS(Vehicle_Projections[Vehicle Stock],Vehicle_Projections[Year],Calculations!O$4,Vehicle_Projections[Technology Type], $B8, Vehicle_Projections[Vehicle Type], $A8, Vehicle_Projections[Scenario], Input_Scenario_Modeled)) -> 0.382747 | P8: =IF(Input_Scenario_Modeled="Custom", SUMIFS(Custom_Stock_MPG[Vehicle Stock],Custom_Stock_MPG[Year],Calculations!P$4, Custom_Stock_MPG[[ Technology Type]], $B8, Custom_Stock_MPG[Vehicle Type], $A8, Custom_Stock_MPG[Scenario], Input_Scenario_Modeled), SUMIFS(Vehicle_Projections[Vehicle Stock],Vehicle_Projections[Year],Calculations!P$4,Vehicle_Projections[Technology Type], $B8, Vehicle_Projections[Vehicle Type], $A8, Vehicle_Projections[Scenario], Input_Scenario_Modeled)) -> 0.345352 | Q8: =IF(Input_Scenario_Modeled="Custom", SUMIFS(Custom_Stock_MPG[Vehicle Stock],Custom_Stock_MPG[Year],Calculations!Q$4, Custom_Stock_MPG[[ Technology Type]], $B8, Custom_Stock_MPG[Vehicle Type], $A8, Custom_Stock_MPG[Scenario], Input_Scenario_Modeled), SUMIFS(Vehicle_Projections[Vehicle Stock],Vehicle_Projections[Year],Calculations!Q$4,Vehicle_Projections[Technology Type], $B8, Vehicle_Projections[Vehicle Type], $A8, Vehicle_Projections[Scenario], Input_Scenario_Modeled)) -> 0.312612 | R8: =IF(Input_Scenario_Modeled="Custom", SUMIFS(Custom_Stock_MPG[Vehicle Stock],Custom_Stock_MPG[Year],Calculations!R$4, Custom_Stock_MPG[[ Technology Type]], $B8, Custom_Stock_MPG[Vehicle Type], $A8, Custom_Stock_MPG[Scenario], Input_Scenario_Modeled), SUMIFS(Vehicle_Projections[Vehicle Stock],Vehicle_Projections[Year],Calculations!R$4,Vehicle_Projections[Technology Type], $B8, Vehicle_Projections[Vehicle Type], $A8, Vehicle_Projections[Scenario], Input_Scenario_Modeled)) -> 0.285754 | S8: =IF(Input_Scenario_Modeled="Custom", SUMIFS(Custom_Stock_MPG[Vehicle Stock],Custom_Stock_MPG[Year],Calculations!S$4, Custom_Stock_MPG[[ Technology Type]], $B8, Custom_Stock_MPG[Vehicle Type], $A8, Custom_Stock_MPG[Scenario], Input_Scenario_Modeled), SUMIFS(Vehicle_Projections[Vehicle Stock],Vehicle_Projections[Year],Calculations!S$4,Vehicle_Projections[Technology Type], $B8, Vehicle_Projections[Vehicle Type], $A8, Vehicle_Projections[Scenario], Input_Scenario_Modeled)) -> 0.26478 | T8: =IF(Input_Scenario_Modeled="Custom", SUMIFS(Custom_Stock_MPG[Vehicle Stock],Custom_Stock_MPG[Year],Calculations!T$4, Custom_Stock_MPG[[ Technology Type]], $B8, Custom_Stock_MPG[Vehicle Type], $A8, Custom_Stock_MPG[Scenario], Input_Scenario_Modeled), SUMIFS(Vehicle_Projections[Vehicle Stock],Vehicle_Projections[Year],Calculations!T$4,Vehicle_Projections[Technology Type], $B8, Vehicle_Projections[Vehicle Type], $A8, Vehicle_Projections[Scenario], Input_Scenario_Modeled)) -> 0.249069 | U8: =IF(Input_Scenario_Modeled="Custom", SUMIFS(Custom_Stock_MPG[Vehicle Stock],Custom_Stock_MPG[Year],Calculations!U$4, Custom_Stock_MPG[[ Technology Type]], $B8, Custom_Stock_MPG[Vehicle Type], $A8, Custom_Stock_MPG[Scenario], Input_Scenario_Modeled), SUMIFS(Vehicle_Projections[Vehicle Stock],Vehicle_Projections[Year],Calculations!U$4,Vehicle_Projections[Technology Type], $B8, Vehicle_Projections[Vehicle Type], $A8, Vehicle_Projections[Scenario], Input_Scenario_Modeled)) -> 0.23785 | V8: =IF(Input_Scenario_Modeled="Custom", SUMIFS(Custom_Stock_MPG[Vehicle Stock],Custom_Stock_MPG[Year],Calculations!V$4, Custom_Stock_MPG[[ Technology Type]], $B8, Custom_Stock_MPG[Vehicle Type], $A8, Custom_Stock_MPG[Scenario], Input_Scenario_Modeled), SUMIFS(Vehicle_Projections[Vehicle Stock],Vehicle_Projections[Year],Calculations!V$4,Vehicle_Projections[Technology Type], $B8, Vehicle_Projections[Vehicle Type], $A8, Vehicle_Projections[Scenario], Input_Scenario_Modeled)) -> 0.231036 | W8: =IF(Input_Scenario_Modeled="Custom", SUMIFS(Custom_Stock_MPG[Vehicle Stock],Custom_Stock_MPG[Year],Calculations!W$4, Custom_Stock_MPG[[ Technology Type]], $B8, Custom_Stock_MPG[Vehicle Type], $A8, Custom_Stock_MPG[Scenario], Input_Scenario_Modeled), SUMIFS(Vehicle_Projections[Vehicle Stock],Vehicle_Projections[Year],Calculations!W$4,Vehicle_Projections[Technology Type], $B8, Vehicle_Projections[Vehicle Type], $A8, Vehicle_Projections[Scenario], Input_Scenario_Modeled)) -> 0.22871 | X8: =IF(Input_Scenario_Modeled="Custom", SUMIFS(Custom_Stock_MPG[Vehicle Stock],Custom_Stock_MPG[Year],Calculations!X$4, Custom_Stock_MPG[[ Technology Type]], $B8, Custom_Stock_MPG[Vehicle Type], $A8, Custom_Stock_MPG[Scenario], Input_Scenario_Modeled), SUMIFS(Vehicle_Projections[Vehicle Stock],Vehicle_Projections[Year],Calculations!X$4,Vehicle_Projections[Technology Type], $B8, Vehicle_Projections[Vehicle Type], $A8, Vehicle_Projections[Scenario], Input_Scenario_Modeled)) -> 0.230044 | Y8: =IF(Input_Scenario_Modeled="Custom", SUMIFS(Custom_Stock_MPG[Vehicle Stock],Custom_Stock_MPG[Year],Calculations!Y$4, Custom_Stock_MPG[[ Technology Type]], $B8, Custom_Stock_MPG[Vehicle Type], $A8, Custom_Stock_MPG[Scenario], Input_Scenario_Modeled), SUMIFS(Vehicle_Projections[Vehicle Stock],Vehicle_Projections[Year],Calculations!Y$4,Vehicle_Projections[Technology Type], $B8, Vehicle_Projections[Vehicle Type], $A8, Vehicle_Projections[Scenario], Input_Scenario_Modeled)) -> 0.233964 | Z8: =IF(Input_Scenario_Modeled="Custom", SUMIFS(Custom_Stock_MPG[Vehicle Stock],Custom_Stock_MPG[Year],Calculations!Z$4, Custom_Stock_MPG[[ Technology Type]], $B8, Custom_Stock_MPG[Vehicle Type], $A8, Custom_Stock_MPG[Scenario], Input_Scenario_Modeled), SUMIFS(Vehicle_Projections[Vehicle Stock],Vehicle_Projections[Year],Calculations!Z$4,Vehicle_Projections[Technology Type], $B8, Vehicle_Projections[Vehicle Type], $A8, Vehicle_Projections[Scenario], Input_Scenario_Modeled)) -> 0.239744 | AA8: =IF(Input_Scenario_Modeled="Custom", SUMIFS(Custom_Stock_MPG[Vehicle Stock],Custom_Stock_MPG[Year],Calculations!AA$4, Custom_Stock_MPG[[ Technology Type]], $B8, Custom_Stock_MPG[Vehicle Type], $A8, Custom_Stock_MPG[Scenario], Input_Scenario_Modeled), SUMIFS(Vehicle_Projections[Vehicle Stock],Vehicle_Projections[Year],Calculations!AA$4,Vehicle_Projections[Technology Type], $B8, Vehicle_Projections[Vehicle Type], $A8, Vehicle_Projections[Scenario], Input_Scenario_Modeled)) -> 0.246593 | AB8: =IF(Input_Scenario_Modeled="Custom", SUMIFS(Custom_Stock_MPG[Vehicle Stock],Custom_Stock_MPG[Year],Calculations!AB$4, Custom_Stock_MPG[[ Technology Type]], $B8, Custom_Stock_MPG[Vehicle Type], $A8, Custom_Stock_MPG[Scenario], Input_Scenario_Modeled), SUMIFS(Vehicle_Projections[Vehicle Stock],Vehicle_Projections[Year],Calculations!AB$4,Vehicle_Projections[Technology Type], $B8, Vehicle_Projections[Vehicle Type], $A8, Vehicle_Projections[Scenario], Input_Scenario_Modeled)) -> 0.253857 | AC8: =IF(Input_Scenario_Modeled="Custom", SUMIFS(Custom_Stock_MPG[Vehicle Stock],Custom_Stock_MPG[Year],Calculations!AC$4, Custom_Stock_MPG[[ Technology Type]], $B8, Custom_Stock_MPG[Vehicle Type], $A8, Custom_Stock_MPG[Scenario], Input_Scenario_Modeled), SUMIFS(Vehicle_Projections[Vehicle Stock],Vehicle_Projections[Year],Calculations!AC$4,Vehicle_Projections[Technology Type], $B8, Vehicle_Projections[Vehicle Type], $A8, Vehicle_Projections[Scenario], Input_Scenario_Modeled)) -> 0.261346 | AD8: =IF(Input_Scenario_Modeled="Custom", SUMIFS(Custom_Stock_MPG[Vehicle Stock],Custom_Stock_MPG[Year],Calculations!AD$4, Custom_Stock_MPG[[ Technology Type]], $B8, Custom_Stock_MPG[Vehicle Type], $A8, Custom_Stock_MPG[Scenario], Input_Scenario_Modeled), SUMIFS(Vehicle_Projections[Vehicle Stock],Vehicle_Projections[Year],Calculations!AD$4,Vehicle_Projections[Technology Type], $B8, Vehicle_Projections[Vehicle Type], $A8, Vehicle_Projections[Scenario], Input_Scenario_Modeled)) -> 0.268865 | AE8: =IF(Input_Scenario_Modeled="Custom", SUMIFS(Custom_Stock_MPG[Vehicle Stock],Custom_Stock_MPG[Year],Calculations!AE$4, Custom_Stock_MPG[[ Technology Type]], $B8, Custom_Stock_MPG[Vehicle Type], $A8, Custom_Stock_MPG[Scenario], Input_Scenario_Modeled), SUMIFS(Vehicle_Projections[Vehicle Stock],Vehicle_Projections[Year],Calculations!AE$4,Vehicle_Projections[Technology Type], $B8, Vehicle_Projections[Vehicle Type], $A8, Vehicle_Projections[Scenario], Input_Scenario_Modeled)) -> 0.276333 | AF8: =IF(Input_Scenario_Modeled="Custom", SUMIFS(Custom_Stock_MPG[Vehicle Stock],Custom_Stock_MPG[Year],Calculations!AF$4, Custom_Stock_MPG[[ Technology Type]], $B8, Custom_Stock_MPG[Vehicle Type], $A8, Custom_Stock_MPG[Scenario], Input_Scenario_Modeled), SUMIFS(Vehicle_Projections[Vehicle Stock],Vehicle_Projections[Year],Calculations!AF$4,Vehicle_Projections[Technology Type], $B8, Vehicle_Projections[Vehicle Type], $A8, Vehicle_Projections[Scenario], Input_Scenario_Modeled)) -> 0.283598 | AG8: =IF(Input_Scenario_Modeled="Custom", SUMIFS(Custom_Stock_MPG[Vehicle Stock],Custom_Stock_MPG[Year],Calculations!AG$4, Custom_Stock_MPG[[ Technology Type]], $B8, Custom_Stock_MPG[Vehicle Type], $A8, Custom_Stock_MPG[Scenario], Input_Scenario_Modeled), SUMIFS(Vehicle_Projections[Vehicle Stock],Vehicle_Projections[Year],Calculations!AG$4,Vehicle_Projections[Technology Type], $B8, Vehicle_Projections[Vehicle Type], $A8, Vehicle_Projections[Scenario], Input_Scenario_Modeled)) -> 0.290611 | AH8: =IF(Input_Scenario_Modeled="Custom", SUMIFS(Custom_Stock_MPG[Vehicle Stock],Custom_Stock_MPG[Year],Calculations!AH$4, Custom_Stock_MPG[[ Technology Type]], $B8, Custom_Stock_MPG[Vehicle Type], $A8, Custom_Stock_MPG[Scenario], Input_Scenario_Modeled), SUMIFS(Vehicle_Projections[Vehicle Stock],Vehicle_Projections[Year],Calculations!AH$4,Vehicle_Projections[Technology Type], $B8, Vehicle_Projections[Vehicle Type], $A8, Vehicle_Projections[Scenario], Input_Scenario_Modeled)) -> 0.297333 | AI8: =IF(Input_Scenario_Modeled="Custom", SUMIFS(Custom_Stock_MPG[Vehicle Stock],Custom_Stock_MPG[Year],Calculations!AI$4, Custom_Stock_MPG[[ Technology Type]], $B8, Custom_Stock_MPG[Vehicle Type], $A8, Custom_Stock_MPG[Scenario], Input_Scenario_Modeled), SUMIFS(Vehicle_Projections[Vehicle Stock],Vehicle_Projections[Year],Calculations!AI$4,Vehicle_Projections[Technology Type], $B8, Vehicle_Projections[Vehicle Type], $A8, Vehicle_Projections[Scenario], Input_Scenario_Modeled)) -> 0.303667 | AJ8: =IF(Input_Scenario_Modeled="Custom", SUMIFS(Custom_Stock_MPG[Vehicle Stock],Custom_Stock_MPG[Year],Calculations!AJ$4, Custom_Stock_MPG[[ Technology Type]], $B8, Custom_Stock_MPG[Vehicle Type], $A8, Custom_Stock_MPG[Scenario], Input_Scenario_Modeled), SUMIFS(Vehicle_Projections[Vehicle Stock],Vehicle_Projections[Year],Calculations!AJ$4,Vehicle_Projections[Technology Type], $B8, Vehicle_Projections[Vehicle Type], $A8, Vehicle_Projections[Scenario], Input_Scenario_Modeled)) -> 0.309606
A9: Passenger Cars | B9: Electric-Diesel Hybrid | C9: Diesel | D9: Stock | E9: =IF(Input_Scenario_Modeled="Custom", SUMIFS(Custom_Stock_MPG[Vehicle Stock],Custom_Stock_MPG[Year],Calculations!E$4, Custom_Stock_MPG[[ Technology Type]], $B9, Custom_Stock_MPG[Vehicle Type], $A9, Custom_Stock_MPG[Scenario], Input_Scenario_Modeled), SUMIFS(Vehicle_Projections[Vehicle Stock],Vehicle_Projections[Year],Calculations!E$4,Vehicle_Projections[Technology Type], $B9, Vehicle_Projections[Vehicle Type], $A9, Vehicle_Projections[Scenario], Input_Scenario_Modeled)) -> 0 | F9: =IF(Input_Scenario_Modeled="Custom", SUMIFS(Custom_Stock_MPG[Vehicle Stock],Custom_Stock_MPG[Year],Calculations!F$4, Custom_Stock_MPG[[ Technology Type]], $B9, Custom_Stock_MPG[Vehicle Type], $A9, Custom_Stock_MPG[Scenario], Input_Scenario_Modeled), SUMIFS(Vehicle_Projections[Vehicle Stock],Vehicle_Projections[Year],Calculations!F$4,Vehicle_Projections[Technology Type], $B9, Vehicle_Projections[Vehicle Type], $A9, Vehicle_Projections[Scenario], Input_Scenario_Modeled)) -> 0 | G9: =IF(Input_Scenario_Modeled="Custom", SUMIFS(Custom_Stock_MPG[Vehicle Stock],Custom_Stock_MPG[Year],Calculations!G$4, Custom_Stock_MPG[[ Technology Type]], $B9, Custom_Stock_MPG[Vehicle Type], $A9, Custom_Stock_MPG[Scenario], Input_Scenario_Modeled), SUMIFS(Vehicle_Projections[Vehicle Stock],Vehicle_Projections[Year],Calculations!G$4,Vehicle_Projections[Technology Type], $B9, Vehicle_Projections[Vehicle Type], $A9, Vehicle_Projections[Scenario], Input_Scenario_Modeled)) -> 0 | H9: =IF(Input_Scenario_Modeled="Custom", SUMIFS(Custom_Stock_MPG[Vehicle Stock],Custom_Stock_MPG[Year],Calculations!H$4, Custom_Stock_MPG[[ Technology Type]], $B9, Custom_Stock_MPG[Vehicle Type], $A9, Custom_Stock_MPG[Scenario], Input_Scenario_Modeled), SUMIFS(Vehicle_Projections[Vehicle Stock],Vehicle_Projections[Year],Calculations!H$4,Vehicle_Projections[Technology Type], $B9, Vehicle_Projections[Vehicle Type], $A9, Vehicle_Projections[Scenario], Input_Scenario_Modeled)) -> 0 | I9: =IF(Input_Scenario_Modeled="Custom", SUMIFS(Custom_Stock_MPG[Vehicle Stock],Custom_Stock_MPG[Year],Calculations!I$4, Custom_Stock_MPG[[ Technology Type]], $B9, Custom_Stock_MPG[Vehicle Type], $A9, Custom_Stock_MPG[Scenario], Input_Scenario_Modeled), SUMIFS(Vehicle_Projections[Vehicle Stock],Vehicle_Projections[Year],Calculations!I$4,Vehicle_Projections[Technology Type], $B9, Vehicle_Projections[Vehicle Type], $A9, Vehicle_Projections[Scenario], Input_Scenario_Modeled)) -> 0 | J9: =IF(Input_Scenario_Modeled="Custom", SUMIFS(Custom_Stock_MPG[Vehicle Stock],Custom_Stock_MPG[Year],Calculations!J$4, Custom_Stock_MPG[[ Technology Type]], $B9, Custom_Stock_MPG[Vehicle Type], $A9, Custom_Stock_MPG[Scenario], Input_Scenario_Modeled), SUMIFS(Vehicle_Projections[Vehicle Stock],Vehicle_Projections[Year],Calculations!J$4,Vehicle_Projections[Technology Type], $B9, Vehicle_Projections[Vehicle Type], $A9, Vehicle_Projections[Scenario], Input_Scenario_Modeled)) -> 0 | K9: =IF(Input_Scenario_Modeled="Custom", SUMIFS(Custom_Stock_MPG[Vehicle Stock],Custom_Stock_MPG[Year],Calculations!K$4, Custom_Stock_MPG[[ Technology Type]], $B9, Custom_Stock_MPG[Vehicle Type], $A9, Custom_Stock_MPG[Scenario], Input_Scenario_Modeled), SUMIFS(Vehicle_Projections[Vehicle Stock],Vehicle_Projections[Year],Calculations!K$4,Vehicle_Projections[Technology Type], $B9, Vehicle_Projections[Vehicle Type], $A9, Vehicle_Projections[Scenario], Input_Scenario_Modeled)) -> 0 | L9: =IF(Input_Scenario_Modeled="Custom", SUMIFS(Custom_Stock_MPG[Vehicle Stock],Custom_Stock_MPG[Year],Calculations!L$4, Custom_Stock_MPG[[ Technology Type]], $B9, Custom_Stock_MPG[Vehicle Type], $A9, Custom_Stock_MPG[Scenario], Input_Scenario_Modeled), SUMIFS(Vehicle_Projections[Vehicle Stock],Vehicle_Projections[Year],Calculations!L$4,Vehicle_Projections[Technology Type], $B9, Vehicle_Projections[Vehicle Type], $A9, Vehicle_Projections[Scenario], Input_Scenario_Modeled)) -> 0 | M9: =IF(Input_Scenario_Modeled="Custom", SUMIFS(Custom_Stock_MPG[Vehicle Stock],Custom_Stock_MPG[Year],Calculations!M$4, Custom_Stock_MPG[[ Technology Type]], $B9, Custom_Stock_MPG[Vehicle Type], $A9, Custom_Stock_MPG[Scenario], Input_Scenario_Modeled), SUMIFS(Vehicle_Projections[Vehicle Stock],Vehicle_Projections[Year],Calculations!M$4,Vehicle_Projections[Technology Type], $B9, Vehicle_Projections[Vehicle Type], $A9, Vehicle_Projections[Scenario], Input_Scenario_Modeled)) -> 0 | N9: =IF(Input_Scenario_Modeled="Custom", SUMIFS(Custom_Stock_MPG[Vehicle Stock],Custom_Stock_MPG[Year],Calculations!N$4, Custom_Stock_MPG[[ Technology Type]], $B9, Custom_Stock_MPG[Vehicle Type], $A9, Custom_Stock_MPG[Scenario], Input_Scenario_Modeled), SUMIFS(Vehicle_Projections[Vehicle Stock],Vehicle_Projections[Year],Calculations!N$4,Vehicle_Projections[Technology Type], $B9, Vehicle_Projections[Vehicle Type], $A9, Vehicle_Projections[Scenario], Input_Scenario_Modeled)) -> 0 | O9: =IF(Input_Scenario_Modeled="Custom", SUMIFS(Custom_Stock_MPG[Vehicle Stock],Custom_Stock_MPG[Year],Calculations!O$4, Custom_Stock_MPG[[ Technology Type]], $B9, Custom_Stock_MPG[Vehicle Type], $A9, Custom_Stock_MPG[Scenario], Input_Scenario_Modeled), SUMIFS(Vehicle_Projections[Vehicle Stock],Vehicle_Projections[Year],Calculations!O$4,Vehicle_Projections[Technology Type], $B9, Vehicle_Projections[Vehicle Type], $A9, Vehicle_Projections[Scenario], Input_Scenario_Modeled)) -> 0 | P9: =IF(Input_Scenario_Modeled="Custom", SUMIFS(Custom_Stock_MPG[Vehicle Stock],Custom_Stock_MPG[Year],Calculations!P$4, Custom_Stock_MPG[[ Technology Type]], $B9, Custom_Stock_MPG[Vehicle Type], $A9, Custom_Stock_MPG[Scenario], Input_Scenario_Modeled), SUMIFS(Vehicle_Projections[Vehicle Stock],Vehicle_Projections[Year],Calculations!P$4,Vehicle_Projections[Technology Type], $B9, Vehicle_Projections[Vehicle Type], $A9, Vehicle_Projections[Scenario], Input_Scenario_Modeled)) -> 0.001881 | Q9: =IF(Input_Scenario_Modeled="Custom", SUMIFS(Custom_Stock_MPG[Vehicle Stock],Custom_Stock_MPG[Year],Calculations!Q$4, Custom_Stock_MPG[[ Technology Type]], $B9, Custom_Stock_MPG[Vehicle Type], $A9, Custom_Stock_MPG[Scenario], Input_Scenario_Modeled), SUMIFS(Vehicle_Projections[Vehicle Stock],Vehicle_Projections[Year],Calculations!Q$4,Vehicle_Projections[Technology Type], $B9, Vehicle_Projections[Vehicle Type], $A9, Vehicle_Projections[Scenario], Input_Scenario_Modeled)) -> 0.012884 | R9: =IF(Input_Scenario_Modeled="Custom", SUMIFS(Custom_Stock_MPG[Vehicle Stock],Custom_Stock_MPG[Year],Calculations!R$4, Custom_Stock_MPG[[ Technology Type]], $B9, Custom_Stock_MPG[Vehicle Type], $A9, Custom_Stock_MPG[Scenario], Input_Scenario_Modeled), SUMIFS(Vehicle_Projections[Vehicle Stock],Vehicle_Projections[Year],Calculations!R$4,Vehicle_Projections[Technology Type], $B9, Vehicle_Projections[Vehicle Type], $A9, Vehicle_Projections[Scenario], Input_Scenario_Modeled)) -> 0.032983 | S9: =IF(Input_Scenario_Modeled="Custom", SUMIFS(Custom_Stock_MPG[Vehicle Stock],Custom_Stock_MPG[Year],Calculations!S$4, Custom_Stock_MPG[[ Technology Type]], $B9, Custom_Stock_MPG[Vehicle Type], $A9, Custom_Stock_MPG[Scenario], Input_Scenario_Modeled), SUMIFS(Vehicle_Projections[Vehicle Stock],Vehicle_Projections[Year],Calculations!S$4,Vehicle_Projections[Technology Type], $B9, Vehicle_Projections[Vehicle Type], $A9, Vehicle_Projections[Scenario], Input_Scenario_Modeled)) -> 0.057556 | T9: =IF(Input_Scenario_Modeled="Custom", SUMIFS(Custom_Stock_MPG[Vehicle Stock],Custom_Stock_MPG[Year],Calculations!T$4, Custom_Stock_MPG[[ Technology Type]], $B9, Custom_Stock_MPG[Vehicle Type], $A9, Custom_Stock_MPG[Scenario], Input_Scenario_Modeled), SUMIFS(Vehicle_Projections[Vehicle Stock],Vehicle_Projections[Year],Calculations!T$4,Vehicle_Projections[Technology Type], $B9, Vehicle_Projections[Vehicle Type], $A9, Vehicle_Projections[Scenario], Input_Scenario_Modeled)) -> 0.084199 | U9: =IF(Input_Scenario_Modeled="Custom", SUMIFS(Custom_Stock_MPG[Vehicle Stock],Custom_Stock_MPG[Year],Calculations!U$4, Custom_Stock_MPG[[ Technology Type]], $B9, Custom_Stock_MPG[Vehicle Type], $A9, Custom_Stock_MPG[Scenario], Input_Scenario_Modeled), SUMIFS(Vehicle_Projections[Vehicle Stock],Vehicle_Projections[Year],Calculations!U$4,Vehicle_Projections[Technology Type], $B9, Vehicle_Projections[Vehicle Type], $A9, Vehicle_Projections[Scenario], Input_Scenario_Modeled)) -> 0.111741 | V9: =IF(Input_Scenario_Modeled="Custom", SUMIFS(Custom_Stock_MPG[Vehicle Stock],Custom_Stock_MPG[Year],Calculations!V$4, Custom_Stock_MPG[[ Technology Type]], $B9, Custom_Stock_MPG[Vehicle Type], $A9, Custom_Stock_MPG[Scenario], Input_Scenario_Modeled), SUMIFS(Vehicle_Projections[Vehicle Stock],Vehicle_Projections[Year],Calculations!V$4,Vehicle_Projections[Technology Type], $B9, Vehicle_Projections[Vehicle Type], $A9, Vehicle_Projections[Scenario], Input_Scenario_Modeled)) -> 0.139616 | W9: =IF(Input_Scenario_Modeled="Custom", SUMIFS(Custom_Stock_MPG[Vehicle Stock],Custom_Stock_MPG[Year],Calculations!W$4, Custom_Stock_MPG[[ Technology Type]], $B9, Custom_Stock_MPG[Vehicle Type], $A9, Custom_Stock_MPG[Scenario], Input_Scenario_Modeled), SUMIFS(Vehicle_Projections[Vehicle Stock],Vehicle_Projections[Year],Calculations!W$4,Vehicle_Projections[Technology Type], $B9, Vehicle_Projections[Vehicle Type], $A9, Vehicle_Projections[Scenario], Input_Scenario_Modeled)) -> 0.167578 | X9: =IF(Input_Scenario_Modeled="Custom", SUMIFS(Custom_Stock_MPG[Vehicle Stock],Custom_Stock_MPG[Year],Calculations!X$4, Custom_Stock_MPG[[ Technology Type]], $B9, Custom_Stock_MPG[Vehicle Type], $A9, Custom_Stock_MPG[Scenario], Input_Scenario_Modeled), SUMIFS(Vehicle_Projections[Vehicle Stock],Vehicle_Projections[Year],Calculations!X$4,Vehicle_Projections[Technology Type], $B9, Vehicle_Projections[Vehicle Type], $A9, Vehicle_Projections[Scenario], Input_Scenario_Modeled)) -> 0.195505 | Y9: =IF(Input_Scenario_Modeled="Custom", SUMIFS(Custom_Stock_MPG[Vehicle Stock],Custom_Stock_MPG[Year],Calculations!Y$4, Custom_Stock_MPG[[ Technology Type]], $B9, Custom_Stock_MPG[Vehicle Type], $A9, Custom_Stock_MPG[Scenario], Input_Scenario_Modeled), SUMIFS(Vehicle_Projections[Vehicle Stock],Vehicle_Projections[Year],Calculations!Y$4,Vehicle_Projections[Technology Type], $B9, Vehicle_Projections[Vehicle Type], $A9, Vehicle_Projections[Scenario], Input_Scenario_Modeled)) -> 0.223532 | Z9: =IF(Input_Scenario_Modeled="Custom", SUMIFS(Custom_Stock_MPG[Vehicle Stock],Custom_Stock_MPG[Year],Calculations!Z$4, Custom_Stock_MPG[[ Technology Type]], $B9, Custom_Stock_MPG[Vehicle Type], $A9, Custom_Stock_MPG[Scenario], Input_Scenario_Modeled), SUMIFS(Vehicle_Projections[Vehicle Stock],Vehicle_Projections[Year],Calculations!Z$4,Vehicle_Projections[Technology Type], $B9, Vehicle_Projections[Vehicle Type], $A9, Vehicle_Projections[Scenario], Input_Scenario_Modeled)) -> 0.251763 | AA9: =IF(Input_Scenario_Modeled="Custom", SUMIFS(Custom_Stock_MPG[Vehicle Stock],Custom_Stock_MPG[Year],Calculations!AA$4, Custom_Stock_MPG[[ Technology Type]], $B9, Custom_Stock_MPG[Vehicle Type], $A9, Custom_Stock_MPG[Scenario], Input_Scenario_Modeled), SUMIFS(Vehicle_Projections[Vehicle Stock],Vehicle_Projections[Year],Calculations!AA$4,Vehicle_Projections[Technology Type], $B9, Vehicle_Projections[Vehicle Type], $A9, Vehicle_Projections[Scenario], Input_Scenario_Modeled)) -> 0.279909 | AB9: =IF(Input_Scenario_Modeled="Custom", SUMIFS(Custom_Stock_MPG[Vehicle Stock],Custom_Stock_MPG[Year],Calculations!AB$4, Custom_Stock_MPG[[ Technology Type]], $B9, Custom_Stock_MPG[Vehicle Type], $A9, Custom_Stock_MPG[Scenario], Input_Scenario_Modeled), SUMIFS(Vehicle_Projections[Vehicle Stock],Vehicle_Projections[Year],Calculations!AB$4,Vehicle_Projections[Technology Type], $B9, Vehicle_Projections[Vehicle Type], $A9, Vehicle_Projections[Scenario], Input_Scenario_Modeled)) -> 0.30769 | AC9: =IF(Input_Scenario_Modeled="Custom", SUMIFS(Custom_Stock_MPG[Vehicle Stock],Custom_Stock_MPG[Year],Calculations!AC$4, Custom_Stock_MPG[[ Technology Type]], $B9, Custom_Stock_MPG[Vehicle Type], $A9, Custom_Stock_MPG[Scenario], Input_Scenario_Modeled), SUMIFS(Vehicle_Projections[Vehicle Stock],Vehicle_Projections[Year],Calculations!AC$4,Vehicle_Projections[Technology Type], $B9, Vehicle_Projections[Vehicle Type], $A9, Vehicle_Projections[Scenario], Input_Scenario_Modeled)) -> 0.335037 | AD9: =IF(Input_Scenario_Modeled="Custom", SUMIFS(Custom_Stock_MPG[Vehicle Stock],Custom_Stock_MPG[Year],Calculations!AD$4, Custom_Stock_MPG[[ Technology Type]], $B9, Custom_Stock_MPG[Vehicle Type], $A9, Custom_Stock_MPG[Scenario], Input_Scenario_Modeled), SUMIFS(Vehicle_Projections[Vehicle Stock],Vehicle_Projections[Year],Calculations!AD$4,Vehicle_Projections[Technology Type], $B9, Vehicle_Projections[Vehicle Type], $A9, Vehicle_Projections[Scenario], Input_Scenario_Modeled)) -> 0.361595 | AE9: =IF(Input_Scenario_Modeled="Custom", SUMIFS(Custom_Stock_MPG[Vehicle Stock],Custom_Stock_MPG[Year],Calculations!AE$4, Custom_Stock_MPG[[ Technology Type]], $B9, Custom_Stock_MPG[Vehicle Type], $A9, Custom_Stock_MPG[Scenario], Input_Scenario_Modeled), SUMIFS(Vehicle_Projections[Vehicle Stock],Vehicle_Projections[Year],Calculations!AE$4,Vehicle_Projections[Technology Type], $B9, Vehicle_Projections[Vehicle Type], $A9, Vehicle_Projections[Scenario], Input_Scenario_Modeled)) -> 0.38701 | AF9: =IF(Input_Scenario_Modeled="Custom", SUMIFS(Custom_Stock_MPG[Vehicle Stock],Custom_Stock_MPG[Year],Calculations!AF$4, Custom_Stock_MPG[[ Technology Type]], $B9, Custom_Stock_MPG[Vehicle Type], $A9, Custom_Stock_MPG[Scenario], Input_Scenario_Modeled), SUMIFS(Vehicle_Projections[Vehicle Stock],Vehicle_Projections[Year],Calculations!AF$4,Vehicle_Projections[Technology Type], $B9, Vehicle_Projections[Vehicle Type], $A9, Vehicle_Projections[Scenario], Input_Scenario_Modeled)) -> 0.411098 | AG9: =IF(Input_Scenario_Modeled="Custom", SUMIFS(Custom_Stock_MPG[Vehicle Stock],Custom_Stock_MPG[Year],Calculations!AG$4, Custom_Stock_MPG[[ Technology Type]], $B9, Custom_Stock_MPG[Vehicle Type], $A9, Custom_Stock_MPG[Scenario], Input_Scenario_Modeled), SUMIFS(Vehicle_Projections[Vehicle Stock],Vehicle_Projections[Year],Calculations!AG$4,Vehicle_Projections[Technology Type], $B9, Vehicle_Projections[Vehicle Type], $A9, Vehicle_Projections[Scenario], Input_Scenario_Modeled)) -> 0.433304 | AH9: =IF(Input_Scenario_Modeled="Custom", SUMIFS(Custom_Stock_MPG[Vehicle Stock],Custom_Stock_MPG[Year],Calculations!AH$4, Custom_Stock_MPG[[ Technology Type]], $B9, Custom_Stock_MPG[Vehicle Type], $A9, Custom_Stock_MPG[Scenario], Input_Scenario_Modeled), SUMIFS(Vehicle_Projections[Vehicle Stock],Vehicle_Projections[Year],Calculations!AH$4,Vehicle_Projections[Technology Type], $B9, Vehicle_Projections[Vehicle Type], $A9, Vehicle_Projections[Scenario], Input_Scenario_Modeled)) -> 0.453678 | AI9: =IF(Input_Scenario_Modeled="Custom", SUMIFS(Custom_Stock_MPG[Vehicle Stock],Custom_Stock_MPG[Year],Calculations!AI$4, Custom_Stock_MPG[[ Technology Type]], $B9, Custom_Stock_MPG[Vehicle Type], $A9, Custom_Stock_MPG[Scenario], Input_Scenario_Modeled), SUMIFS(Vehicle_Projections[Vehicle Stock],Vehicle_Projections[Year],Calculations!AI$4,Vehicle_Projections[Technology Type], $B9, Vehicle_Projections[Vehicle Type], $A9, Vehicle_Projections[Scenario], Input_Scenario_Modeled)) -> 0.471977 | AJ9: =IF(Input_Scenario_Modeled="Custom", SUMIFS(Custom_Stock_MPG[Vehicle Stock],Custom_Stock_MPG[Year],Calculations!AJ$4, Custom_Stock_MPG[[ Technology Type]], $B9, Custom_Stock_MPG[Vehicle Type], $A9, Custom_Stock_MPG[Scenario], Input_Scenario_Modeled), SUMIFS(Vehicle_Projections[Vehicle Stock],Vehicle_Projections[Year],Calculations!AJ$4,Vehicle_Projections[Technology Type], $B9, Vehicle_Projections[Vehicle Type], $A9, Vehicle_Projections[Scenario], Input_Scenario_Modeled)) -> 0.488318
A10: Passenger Cars | B10: 100 Mile Electric Vehicle | C10: Electricity | D10: Stock | E10: =IF(Input_Scenario_Modeled="Custom", SUMIFS(Custom_Stock_MPG[Vehicle Stock],Custom_Stock_MPG[Year],Calculations!E$4, Custom_Stock_MPG[[ Technology Type]], $B10, Custom_Stock_MPG[Vehicle Type], $A10, Custom_Stock_MPG[Scenario], Input_Scenario_Modeled), SUMIFS(Vehicle_Projections[Vehicle Stock],Vehicle_Projections[Year],Calculations!E$4,Vehicle_Projections[Technology Type], $B10, Vehicle_Projections[Vehicle Type], $A10, Vehicle_Projections[Scenario], Input_Scenario_Modeled)) -> 0.192992 | F10: =IF(Input_Scenario_Modeled="Custom", SUMIFS(Custom_Stock_MPG[Vehicle Stock],Custom_Stock_MPG[Year],Calculations!F$4, Custom_Stock_MPG[[ Technology Type]], $B10, Custom_Stock_MPG[Vehicle Type], $A10, Custom_Stock_MPG[Scenario], Input_Scenario_Modeled), SUMIFS(Vehicle_Projections[Vehicle Stock],Vehicle_Projections[Year],Calculations!F$4,Vehicle_Projections[Technology Type], $B10, Vehicle_Projections[Vehicle Type], $A10, Vehicle_Projections[Scenario], Input_Scenario_Modeled)) -> 0.197087 | G10: =IF(Input_Scenario_Modeled="Custom", SUMIFS(Custom_Stock_MPG[Vehicle Stock],Custom_Stock_MPG[Year],Calculations!G$4, Custom_Stock_MPG[[ Technology Type]], $B10, Custom_Stock_MPG[Vehicle Type], $A10, Custom_Stock_MPG[Scenario], Input_Scenario_Modeled), SUMIFS(Vehicle_Projections[Vehicle Stock],Vehicle_Projections[Year],Calculations!G$4,Vehicle_Projections[Technology Type], $B10, Vehicle_Projections[Vehicle Type], $A10, Vehicle_Projections[Scenario], Input_Scenario_Modeled)) -> 0.19859 | H10: =IF(Input_Scenario_Modeled="Custom", SUMIFS(Custom_Stock_MPG[Vehicle Stock],Custom_Stock_MPG[Year],Calculations!H$4, Custom_Stock_MPG[[ Technology Type]], $B10, Custom_Stock_MPG[Vehicle Type], $A10, Custom_Stock_MPG[Scenario], Input_Scenario_Modeled), SUMIFS(Vehicle_Projections[Vehicle Stock],Vehicle_Projections[Year],Calculations!H$4,Vehicle_Projections[Technology Type], $B10, Vehicle_Projections[Vehicle Type], $A10, Vehicle_Projections[Scenario], Input_Scenario_Modeled)) -> 0.199028 | I10: =IF(Input_Scenario_Modeled="Custom", SUMIFS(Custom_Stock_MPG[Vehicle Stock],Custom_Stock_MPG[Year],Calculations!I$4, Custom_Stock_MPG[[ Technology Type]], $B10, Custom_Stock_MPG[Vehicle Type], $A10, Custom_Stock_MPG[Scenario], Input_Scenario_Modeled), SUMIFS(Vehicle_Projections[Vehicle Stock],Vehicle_Projections[Year],Calculations!I$4,Vehicle_Projections[Technology Type], $B10, Vehicle_Projections[Vehicle Type], $A10, Vehicle_Projections[Scenario], Input_Scenario_Modeled)) -> 0.198494 | J10: =IF(Input_Scenario_Modeled="Custom", SUMIFS(Custom_Stock_MPG[Vehicle Stock],Custom_Stock_MPG[Year],Calculations!J$4, Custom_Stock_MPG[[ Technology Type]], $B10, Custom_Stock_MPG[Vehicle Type], $A10, Custom_Stock_MPG[Scenario], Input_Scenario_Modeled), SUMIFS(Vehicle_Projections[Vehicle Stock],Vehicle_Projections[Year],Calculations!J$4,Vehicle_Projections[Technology Type], $B10, Vehicle_Projections[Vehicle Type], $A10, Vehicle_Projections[Scenario], Input_Scenario_Modeled)) -> 0.196833 | K10: =IF(Input_Scenario_Modeled="Custom", SUMIFS(Custom_Stock_MPG[Vehicle Stock],Custom_Stock_MPG[Year],Calculations!K$4, Custom_Stock_MPG[[ Technology Type]], $B10, Custom_Stock_MPG[Vehicle Type], $A10, Custom_Stock_MPG[Scenario], Input_Scenario_Modeled), SUMIFS(Vehicle_Projections[Vehicle Stock],Vehicle_Projections[Year],Calculations!K$4,Vehicle_Projections[Technology Type], $B10, Vehicle_Projections[Vehicle Type], $A10, Vehicle_Projections[Scenario], Input_Scenario_Modeled)) -> 0.194093 | L10: =IF(Input_Scenario_Modeled="Custom", SUMIFS(Custom_Stock_MPG[Vehicle Stock],Custom_Stock_MPG[Year],Calculations!L$4, Custom_Stock_MPG[[ Technology Type]], $B10, Custom_Stock_MPG[Vehicle Type], $A10, Custom_Stock_MPG[Scenario], Input_Scenario_Modeled), SUMIFS(Vehicle_Projections[Vehicle Stock],Vehicle_Projections[Year],Calculations!L$4,Vehicle_Projections[Technology Type], $B10, Vehicle_Projections[Vehicle Type], $A10, Vehicle_Projections[Scenario], Input_Scenario_Modeled)) -> 0.190035 | M10: =IF(Input_Scenario_Modeled="Custom", SUMIFS(Custom_Stock_MPG[Vehicle Stock],Custom_Stock_MPG[Year],Calculations!M$4, Custom_Stock_MPG[[ Technology Type]], $B10, Custom_Stock_MPG[Vehicle Type], $A10, Custom_Stock_MPG[Scenario], Input_Scenario_Modeled), SUMIFS(Vehicle_Projections[Vehicle Stock],Vehicle_Projections[Year],Calculations!M$4,Vehicle_Projections[Technology Type], $B10, Vehicle_Projections[Vehicle Type], $A10, Vehicle_Projections[Scenario], Input_Scenario_Modeled)) -> 0.184399 | N10: =IF(Input_Scenario_Modeled="Custom", SUMIFS(Custom_Stock_MPG[Vehicle Stock],Custom_Stock_MPG[Year],Calculations!N$4, Custom_Stock_MPG[[ Technology Type]], $B10, Custom_Stock_MPG[Vehicle Type], $A10, Custom_Stock_MPG[Scenario], Input_Scenario_Modeled), SUMIFS(Vehicle_Projections[Vehicle Stock],Vehicle_Projections[Year],Calculations!N$4,Vehicle_Projections[Technology Type], $B10, Vehicle_Projections[Vehicle Type], $A10, Vehicle_Projections[Scenario], Input_Scenario_Modeled)) -> 0.177321 | O10: =IF(Input_Scenario_Modeled="Custom", SUMIFS(Custom_Stock_MPG[Vehicle Stock],Custom_Stock_MPG[Year],Calculations!O$4, Custom_Stock_MPG[[ Technology Type]], $B10, Custom_Stock_MPG[Vehicle Type], $A10, Custom_Stock_MPG[Scenario], Input_Scenario_Modeled), SUMIFS(Vehicle_Projections[Vehicle Stock],Vehicle_Projections[Year],Calculations!O$4,Vehicle_Projections[Technology Type], $B10, Vehicle_Projections[Vehicle Type], $A10, Vehicle_Projections[Scenario], Input_Scenario_Modeled)) -> 0.168845 | P10: =IF(Input_Scenario_Modeled="Custom", SUMIFS(Custom_Stock_MPG[Vehicle Stock],Custom_Stock_MPG[Year],Calculations!P$4, Custom_Stock_MPG[[ Technology Type]], $B10, Custom_Stock_MPG[Vehicle Type], $A10, Custom_Stock_MPG[Scenario], Input_Scenario_Modeled), SUMIFS(Vehicle_Projections[Vehicle Stock],Vehicle_Projections[Year],Calculations!P$4,Vehicle_Projections[Technology Type], $B10, Vehicle_Projections[Vehicle Type], $A10, Vehicle_Projections[Scenario], Input_Scenario_Modeled)) -> 0.158772 | Q10: =IF(Input_Scenario_Modeled="Custom", SUMIFS(Custom_Stock_MPG[Vehicle Stock],Custom_Stock_MPG[Year],Calculations!Q$4, Custom_Stock_MPG[[ Technology Type]], $B10, Custom_Stock_MPG[Vehicle Type], $A10, Custom_Stock_MPG[Scenario], Input_Scenario_Modeled), SUMIFS(Vehicle_Projections[Vehicle Stock],Vehicle_Projections[Year],Calculations!Q$4,Vehicle_Projections[Technology Type], $B10, Vehicle_Projections[Vehicle Type], $A10, Vehicle_Projections[Scenario], Input_Scenario_Modeled)) -> 0.148265 | R10: =IF(Input_Scenario_Modeled="Custom", SUMIFS(Custom_Stock_MPG[Vehicle Stock],Custom_Stock_MPG[Year],Calculations!R$4, Custom_Stock_MPG[[ Technology Type]], $B10, Custom_Stock_MPG[Vehicle Type], $A10, Custom_Stock_MPG[Scenario], Input_Scenario_Modeled), SUMIFS(Vehicle_Projections[Vehicle Stock],Vehicle_Projections[Year],Calculations!R$4,Vehicle_Projections[Technology Type], $B10, Vehicle_Projections[Vehicle Type], $A10, Vehicle_Projections[Scenario], Input_Scenario_Modeled)) -> 0.137731 | S10: =IF(Input_Scenario_Modeled="Custom", SUMIFS(Custom_Stock_MPG[Vehicle Stock],Custom_Stock_MPG[Year],Calculations!S$4, Custom_Stock_MPG[[ Technology Type]], $B10, Custom_Stock_MPG[Vehicle Type], $A10, Custom_Stock_MPG[Scenario], Input_Scenario_Modeled), SUMIFS(Vehicle_Projections[Vehicle Stock],Vehicle_Projections[Year],Calculations!S$4,Vehicle_Projections[Technology Type], $B10, Vehicle_Projections[Vehicle Type], $A10, Vehicle_Projections[Scenario], Input_Scenario_Modeled)) -> 0.128335 | T10: =IF(Input_Scenario_Modeled="Custom", SUMIFS(Custom_Stock_MPG[Vehicle Stock],Custom_Stock_MPG[Year],Calculations!T$4, Custom_Stock_MPG[[ Technology Type]], $B10, Custom_Stock_MPG[Vehicle Type], $A10, Custom_Stock_MPG[Scenario], Input_Scenario_Modeled), SUMIFS(Vehicle_Projections[Vehicle Stock],Vehicle_Projections[Year],Calculations!T$4,Vehicle_Projections[Technology Type], $B10, Vehicle_Projections[Vehicle Type], $A10, Vehicle_Projections[Scenario], Input_Scenario_Modeled)) -> 0.120083 | U10: =IF(Input_Scenario_Modeled="Custom", SUMIFS(Custom_Stock_MPG[Vehicle Stock],Custom_Stock_MPG[Year],Calculations!U$4, Custom_Stock_MPG[[ Technology Type]], $B10, Custom_Stock_MPG[Vehicle Type], $A10, Custom_Stock_MPG[Scenario], Input_Scenario_Modeled), SUMIFS(Vehicle_Projections[Vehicle Stock],Vehicle_Projections[Year],Calculations!U$4,Vehicle_Projections[Technology Type], $B10, Vehicle_Projections[Vehicle Type], $A10, Vehicle_Projections[Scenario], Input_Scenario_Modeled)) -> 0.113348 | V10: =IF(Input_Scenario_Modeled="Custom", SUMIFS(Custom_Stock_MPG[Vehicle Stock],Custom_Stock_MPG[Year],Calculations!V$4, Custom_Stock_MPG[[ Technology Type]], $B10, Custom_Stock_MPG[Vehicle Type], $A10, Custom_Stock_MPG[Scenario], Input_Scenario_Modeled), SUMIFS(Vehicle_Projections[Vehicle Stock],Vehicle_Projections[Year],Calculations!V$4,Vehicle_Projections[Technology Type], $B10, Vehicle_Projections[Vehicle Type], $A10, Vehicle_Projections[Scenario], Input_Scenario_Modeled)) -> 0.107556 | W10: =IF(Input_Scenario_Modeled="Custom", SUMIFS(Custom_Stock_MPG[Vehicle Stock],Custom_Stock_MPG[Year],Calculations!W$4, Custom_Stock_MPG[[ Technology Type]], $B10, Custom_Stock_MPG[Vehicle Type], $A10, Custom_Stock_MPG[Scenario], Input_Scenario_Modeled), SUMIFS(Vehicle_Projections[Vehicle Stock],Vehicle_Projections[Year],Calculations!W$4,Vehicle_Projections[Technology Type], $B10, Vehicle_Projections[Vehicle Type], $A10, Vehicle_Projections[Scenario], Input_Scenario_Modeled)) -> 0.103069 | X10: =IF(Input_Scenario_Modeled="Custom", SUMIFS(Custom_Stock_MPG[Vehicle Stock],Custom_Stock_MPG[Year],Calculations!X$4, Custom_Stock_MPG[[ Technology Type]], $B10, Custom_Stock_MPG[Vehicle Type], $A10, Custom_Stock_MPG[Scenario], Input_Scenario_Modeled), SUMIFS(Vehicle_Projections[Vehicle Stock],Vehicle_Projections[Year],Calculations!X$4,Vehicle_Projections[Technology Type], $B10, Vehicle_Projections[Vehicle Type], $A10, Vehicle_Projections[Scenario], Input_Scenario_Modeled)) -> 0.100024 | Y10: =IF(Input_Scenario_Modeled="Custom", SUMIFS(Custom_Stock_MPG[Vehicle Stock],Custom_Stock_MPG[Year],Calculations!Y$4, Custom_Stock_MPG[[ Technology Type]], $B10, Custom_Stock_MPG[Vehicle Type], $A10, Custom_Stock_MPG[Scenario], Input_Scenario_Modeled), SUMIFS(Vehicle_Projections[Vehicle Stock],Vehicle_Projections[Year],Calculations!Y$4,Vehicle_Projections[Technology Type], $B10, Vehicle_Projections[Vehicle Type], $A10, Vehicle_Projections[Scenario], Input_Scenario_Modeled)) -> 0.098385 | Z10: =IF(Input_Scenario_Modeled="Custom", SUMIFS(Custom_Stock_MPG[Vehicle Stock],Custom_Stock_MPG[Year],Calculations!Z$4, Custom_Stock_MPG[[ Technology Type]], $B10, Custom_Stock_MPG[Vehicle Type], $A10, Custom_Stock_MPG[Scenario], Input_Scenario_Modeled), SUMIFS(Vehicle_Projections[Vehicle Stock],Vehicle_Projections[Year],Calculations!Z$4,Vehicle_Projections[Technology Type], $B10, Vehicle_Projections[Vehicle Type], $A10, Vehicle_Projections[Scenario], Input_Scenario_Modeled)) -> 0.097933 | AA10: =IF(Input_Scenario_Modeled="Custom", SUMIFS(Custom_Stock_MPG[Vehicle Stock],Custom_Stock_MPG[Year],Calculations!AA$4, Custom_Stock_MPG[[ Technology Type]], $B10, Custom_Stock_MPG[Vehicle Type], $A10, Custom_Stock_MPG[Scenario], Input_Scenario_Modeled), SUMIFS(Vehicle_Projections[Vehicle Stock],Vehicle_Projections[Year],Calculations!AA$4,Vehicle_Projections[Technology Type], $B10, Vehicle_Projections[Vehicle Type], $A10, Vehicle_Projections[Scenario], Input_Scenario_Modeled)) -> 0.098311 | AB10: =IF(Input_Scenario_Modeled="Custom", SUMIFS(Custom_Stock_MPG[Vehicle Stock],Custom_Stock_MPG[Year],Calculations!AB$4, Custom_Stock_MPG[[ Technology Type]], $B10, Custom_Stock_MPG[Vehicle Type], $A10, Custom_Stock_MPG[Scenario], Input_Scenario_Modeled), SUMIFS(Vehicle_Projections[Vehicle Stock],Vehicle_Projections[Year],Calculations!AB$4,Vehicle_Projections[Technology Type], $B10, Vehicle_Projections[Vehicle Type], $A10, Vehicle_Projections[Scenario], Input_Scenario_Modeled)) -> 0.099261 | AC10: =IF(Input_Scenario_Modeled="Custom", SUMIFS(Custom_Stock_MPG[Vehicle Stock],Custom_Stock_MPG[Year],Calculations!AC$4, Custom_Stock_MPG[[ Technology Type]], $B10, Custom_Stock_MPG[Vehicle Type], $A10, Custom_Stock_MPG[Scenario], Input_Scenario_Modeled), SUMIFS(Vehicle_Projections[Vehicle Stock],Vehicle_Projections[Year],Calculations!AC$4,Vehicle_Projections[Technology Type], $B10, Vehicle_Projections[Vehicle Type], $A10, Vehicle_Projections[Scenario], Input_Scenario_Modeled)) -> 0.100498 | AD10: =IF(Input_Scenario_Modeled="Custom", SUMIFS(Custom_Stock_MPG[Vehicle Stock],Custom_Stock_MPG[Year],Calculations!AD$4, Custom_Stock_MPG[[ Technology Type]], $B10, Custom_Stock_MPG[Vehicle Type], $A10, Custom_Stock_MPG[Scenario], Input_Scenario_Modeled), SUMIFS(Vehicle_Projections[Vehicle Stock],Vehicle_Projections[Year],Calculations!AD$4,Vehicle_Projections[Technology Type], $B10, Vehicle_Projections[Vehicle Type], $A10, Vehicle_Projections[Scenario], Input_Scenario_Modeled)) -> 0.101998 | AE10: =IF(Input_Scenario_Modeled="Custom", SUMIFS(Custom_Stock_MPG[Vehicle Stock],Custom_Stock_MPG[Year],Calculations!AE$4, Custom_Stock_MPG[[ Technology Type]], $B10, Custom_Stock_MPG[Vehicle Type], $A10, Custom_Stock_MPG[Scenario], Input_Scenario_Modeled), SUMIFS(Vehicle_Projections[Vehicle Stock],Vehicle_Projections[Year],Calculations!AE$4,Vehicle_Projections[Technology Type], $B10, Vehicle_Projections[Vehicle Type], $A10, Vehicle_Projections[Scenario], Input_Scenario_Modeled)) -> 0.103684 | AF10: =IF(Input_Scenario_Modeled="Custom", SUMIFS(Custom_Stock_MPG[Vehicle Stock],Custom_Stock_MPG[Year],Calculations!AF$4, Custom_Stock_MPG[[ Technology Type]], $B10, Custom_Stock_MPG[Vehicle Type], $A10, Custom_Stock_MPG[Scenario], Input_Scenario_Modeled), SUMIFS(Vehicle_Projections[Vehicle Stock],Vehicle_Projections[Year],Calculations!AF$4,Vehicle_Projections[Technology Type], $B10, Vehicle_Projections[Vehicle Type], $A10, Vehicle_Projections[Scenario], Input_Scenario_Modeled)) -> 0.105449 | AG10: =IF(Input_Scenario_Modeled="Custom", SUMIFS(Custom_Stock_MPG[Vehicle Stock],Custom_Stock_MPG[Year],Calculations!AG$4, Custom_Stock_MPG[[ Technology Type]], $B10, Custom_Stock_MPG[Vehicle Type], $A10, Custom_Stock_MPG[Scenario], Input_Scenario_Modeled), SUMIFS(Vehicle_Projections[Vehicle Stock],Vehicle_Projections[Year],Calculations!AG$4,Vehicle_Projections[Technology Type], $B10, Vehicle_Projections[Vehicle Type], $A10, Vehicle_Projections[Scenario], Input_Scenario_Modeled)) -> 0.107289 | AH10: =IF(Input_Scenario_Modeled="Custom", SUMIFS(Custom_Stock_MPG[Vehicle Stock],Custom_Stock_MPG[Year],Calculations!AH$4, Custom_Stock_MPG[[ Technology Type]], $B10, Custom_Stock_MPG[Vehicle Type], $A10, Custom_Stock_MPG[Scenario], Input_Scenario_Modeled), SUMIFS(Vehicle_Projections[Vehicle Stock],Vehicle_Projections[Year],Calculations!AH$4,Vehicle_Projections[Technology Type], $B10, Vehicle_Projections[Vehicle Type], $A10, Vehicle_Projections[Scenario], Input_Scenario_Modeled)) -> 0.109166 | AI10: =IF(Input_Scenario_Modeled="Custom", SUMIFS(Custom_Stock_MPG[Vehicle Stock],Custom_Stock_MPG[Year],Calculations!AI$4, Custom_Stock_MPG[[ Technology Type]], $B10, Custom_Stock_MPG[Vehicle Type], $A10, Custom_Stock_MPG[Scenario], Input_Scenario_Modeled), SUMIFS(Vehicle_Projections[Vehicle Stock],Vehicle_Projections[Year],Calculations!AI$4,Vehicle_Projections[Technology Type], $B10, Vehicle_Projections[Vehicle Type], $A10, Vehicle_Projections[Scenario], Input_Scenario_Modeled)) -> 0.111033 | AJ10: =IF(Input_Scenario_Modeled="Custom", SUMIFS(Custom_Stock_MPG[Vehicle Stock],Custom_Stock_MPG[Year],Calculations!AJ$4, Custom_Stock_MPG[[ Technology Type]], $B10, Custom_Stock_MPG[Vehicle Type], $A10, Custom_Stock_MPG[Scenario], Input_Scenario_Modeled), SUMIFS(Vehicle_Projections[Vehicle Stock],Vehicle_Projections[Year],Calculations!AJ$4,Vehicle_Projections[Technology Type], $B10, Vehicle_Projections[Vehicle Type], $A10, Vehicle_Projections[Scenario], Input_Scenario_Modeled)) -> 0.112877
A11: Passenger Cars | B11: 200 Mile Electric Vehicle | C11: Electricity | D11: Stock | E11: =IF(Input_Scenario_Modeled="Custom", SUMIFS(Custom_Stock_MPG[Vehicle Stock],Custom_Stock_MPG[Year],Calculations!E$4, Custom_Stock_MPG[[ Technology Type]], $B11, Custom_Stock_MPG[Vehicle Type], $A11, Custom_Stock_MPG[Scenario], Input_Scenario_Modeled), SUMIFS(Vehicle_Projections[Vehicle Stock],Vehicle_Projections[Year],Calculations!E$4,Vehicle_Projections[Technology Type], $B11, Vehicle_Projections[Vehicle Type], $A11, Vehicle_Projections[Scenario], Input_Scenario_Modeled)) -> 0.222317 | F11: =IF(Input_Scenario_Modeled="Custom", SUMIFS(Custom_Stock_MPG[Vehicle Stock],Custom_Stock_MPG[Year],Calculations!F$4, Custom_Stock_MPG[[ Technology Type]], $B11, Custom_Stock_MPG[Vehicle Type], $A11, Custom_Stock_MPG[Scenario], Input_Scenario_Modeled), SUMIFS(Vehicle_Projections[Vehicle Stock],Vehicle_Projections[Year],Calculations!F$4,Vehicle_Projections[Technology Type], $B11, Vehicle_Projections[Vehicle Type], $A11, Vehicle_Projections[Scenario], Input_Scenario_Modeled)) -> 0.22716 | G11: =IF(Input_Scenario_Modeled="Custom", SUMIFS(Custom_Stock_MPG[Vehicle Stock],Custom_Stock_MPG[Year],Calculations!G$4, Custom_Stock_MPG[[ Technology Type]], $B11, Custom_Stock_MPG[Vehicle Type], $A11, Custom_Stock_MPG[Scenario], Input_Scenario_Modeled), SUMIFS(Vehicle_Projections[Vehicle Stock],Vehicle_Projections[Year],Calculations!G$4,Vehicle_Projections[Technology Type], $B11, Vehicle_Projections[Vehicle Type], $A11, Vehicle_Projections[Scenario], Input_Scenario_Modeled)) -> 0.233865 | H11: =IF(Input_Scenario_Modeled="Custom", SUMIFS(Custom_Stock_MPG[Vehicle Stock],Custom_Stock_MPG[Year],Calculations!H$4, Custom_Stock_MPG[[ Technology Type]], $B11, Custom_Stock_MPG[Vehicle Type], $A11, Custom_Stock_MPG[Scenario], Input_Scenario_Modeled), SUMIFS(Vehicle_Projections[Vehicle Stock],Vehicle_Projections[Year],Calculations!H$4,Vehicle_Projections[Technology Type], $B11, Vehicle_Projections[Vehicle Type], $A11, Vehicle_Projections[Scenario], Input_Scenario_Modeled)) -> 0.247194 | I11: =IF(Input_Scenario_Modeled="Custom", SUMIFS(Custom_Stock_MPG[Vehicle Stock],Custom_Stock_MPG[Year],Calculations!I$4, Custom_Stock_MPG[[ Technology Type]], $B11, Custom_Stock_MPG[Vehicle Type], $A11, Custom_Stock_MPG[Scenario], Input_Scenario_Modeled), SUMIFS(Vehicle_Projections[Vehicle Stock],Vehicle_Projections[Year],Calculations!I$4,Vehicle_Projections[Technology Type], $B11, Vehicle_Projections[Vehicle Type], $A11, Vehicle_Projections[Scenario], Input_Scenario_Modeled)) -> 0.278809 | J11: =IF(Input_Scenario_Modeled="Custom", SUMIFS(Custom_Stock_MPG[Vehicle Stock],Custom_Stock_MPG[Year],Calculations!J$4, Custom_Stock_MPG[[ Technology Type]], $B11, Custom_Stock_MPG[Vehicle Type], $A11, Custom_Stock_MPG[Scenario], Input_Scenario_Modeled), SUMIFS(Vehicle_Projections[Vehicle Stock],Vehicle_Projections[Year],Calculations!J$4,Vehicle_Projections[Technology Type], $B11, Vehicle_Projections[Vehicle Type], $A11, Vehicle_Projections[Scenario], Input_Scenario_Modeled)) -> 0.349241 | K11: =IF(Input_Scenario_Modeled="Custom", SUMIFS(Custom_Stock_MPG[Vehicle Stock],Custom_Stock_MPG[Year],Calculations!K$4, Custom_Stock_MPG[[ Technology Type]], $B11, Custom_Stock_MPG[Vehicle Type], $A11, Custom_Stock_MPG[Scenario], Input_Scenario_Modeled), SUMIFS(Vehicle_Projections[Vehicle Stock],Vehicle_Projections[Year],Calculations!K$4,Vehicle_Projections[Technology Type], $B11, Vehicle_Projections[Vehicle Type], $A11, Vehicle_Projections[Scenario], Input_Scenario_Modeled)) -> 0.489634 | L11: =IF(Input_Scenario_Modeled="Custom", SUMIFS(Custom_Stock_MPG[Vehicle Stock],Custom_Stock_MPG[Year],Calculations!L$4, Custom_Stock_MPG[[ Technology Type]], $B11, Custom_Stock_MPG[Vehicle Type], $A11, Custom_Stock_MPG[Scenario], Input_Scenario_Modeled), SUMIFS(Vehicle_Projections[Vehicle Stock],Vehicle_Projections[Year],Calculations!L$4,Vehicle_Projections[Technology Type], $B11, Vehicle_Projections[Vehicle Type], $A11, Vehicle_Projections[Scenario], Input_Scenario_Modeled)) -> 0.645547 | M11: =IF(Input_Scenario_Modeled="Custom", SUMIFS(Custom_Stock_MPG[Vehicle Stock],Custom_Stock_MPG[Year],Calculations!M$4, Custom_Stock_MPG[[ Technology Type]], $B11, Custom_Stock_MPG[Vehicle Type], $A11, Custom_Stock_MPG[Scenario], Input_Scenario_Modeled), SUMIFS(Vehicle_Projections[Vehicle Stock],Vehicle_Projections[Year],Calculations!M$4,Vehicle_Projections[Technology Type], $B11, Vehicle_Projections[Vehicle Type], $A11, Vehicle_Projections[Scenario], Input_Scenario_Modeled)) -> 0.807905 | N11: =IF(Input_Scenario_Modeled="Custom", SUMIFS(Custom_Stock_MPG[Vehicle Stock],Custom_Stock_MPG[Year],Calculations!N$4, Custom_Stock_MPG[[ Technology Type]], $B11, Custom_Stock_MPG[Vehicle Type], $A11, Custom_Stock_MPG[Scenario], Input_Scenario_Modeled), SUMIFS(Vehicle_Projections[Vehicle Stock],Vehicle_Projections[Year],Calculations!N$4,Vehicle_Projections[Technology Type], $B11, Vehicle_Projections[Vehicle Type], $A11, Vehicle_Projections[Scenario], Input_Scenario_Modeled)) -> 0.975861 | O11: =IF(Input_Scenario_Modeled="Custom", SUMIFS(Custom_Stock_MPG[Vehicle Stock],Custom_Stock_MPG[Year],Calculations!O$4, Custom_Stock_MPG[[ Technology Type]], $B11, Custom_Stock_MPG[Vehicle Type], $A11, Custom_Stock_MPG[Scenario], Input_Scenario_Modeled), SUMIFS(Vehicle_Projections[Vehicle Stock],Vehicle_Projections[Year],Calculations!O$4,Vehicle_Projections[Technology Type], $B11, Vehicle_Projections[Vehicle Type], $A11, Vehicle_Projections[Scenario], Input_Scenario_Modeled)) -> 1.151809 | P11: =IF(Input_Scenario_Modeled="Custom", SUMIFS(Custom_Stock_MPG[Vehicle Stock],Custom_Stock_MPG[Year],Calculations!P$4, Custom_Stock_MPG[[ Technology Type]], $B11, Custom_Stock_MPG[Vehicle Type], $A11, Custom_Stock_MPG[Scenario], Input_Scenario_Modeled), SUMIFS(Vehicle_Projections[Vehicle Stock],Vehicle_Projections[Year],Calculations!P$4,Vehicle_Projections[Technology Type], $B11, Vehicle_Projections[Vehicle Type], $A11, Vehicle_Projections[Scenario], Input_Scenario_Modeled)) -> 1.33563 | Q11: =IF(Input_Scenario_Modeled="Custom", SUMIFS(Custom_Stock_MPG[Vehicle Stock],Custom_Stock_MPG[Year],Calculations!Q$4, Custom_Stock_MPG[[ Technology Type]], $B11, Custom_Stock_MPG[Vehicle Type], $A11, Custom_Stock_MPG[Scenario], Input_Scenario_Modeled), SUMIFS(Vehicle_Projections[Vehicle Stock],Vehicle_Projections[Year],Calculations!Q$4,Vehicle_Projections[Technology Type], $B11, Vehicle_Projections[Vehicle Type], $A11, Vehicle_Projections[Scenario], Input_Scenario_Modeled)) -> 1.531723 | R11: =IF(Input_Scenario_Modeled="Custom", SUMIFS(Custom_Stock_MPG[Vehicle Stock],Custom_Stock_MPG[Year],Calculations!R$4, Custom_Stock_MPG[[ Technology Type]], $B11, Custom_Stock_MPG[Vehicle Type], $A11, Custom_Stock_MPG[Scenario], Input_Scenario_Modeled), SUMIFS(Vehicle_Projections[Vehicle Stock],Vehicle_Projections[Year],Calculations!R$4,Vehicle_Projections[Technology Type], $B11, Vehicle_Projections[Vehicle Type], $A11, Vehicle_Projections[Scenario], Input_Scenario_Modeled)) -> 1.743403 | S11: =IF(Input_Scenario_Modeled="Custom", SUMIFS(Custom_Stock_MPG[Vehicle Stock],Custom_Stock_MPG[Year],Calculations!S$4, Custom_Stock_MPG[[ Technology Type]], $B11, Custom_Stock_MPG[Vehicle Type], $A11, Custom_Stock_MPG[Scenario], Input_Scenario_Modeled), SUMIFS(Vehicle_Projections[Vehicle Stock],Vehicle_Projections[Year],Calculations!S$4,Vehicle_Projections[Technology Type], $B11, Vehicle_Projections[Vehicle Type], $A11, Vehicle_Projections[Scenario], Input_Scenario_Modeled)) -> 1.973321 | T11: =IF(Input_Scenario_Modeled="Custom", SUMIFS(Custom_Stock_MPG[Vehicle Stock],Custom_Stock_MPG[Year],Calculations!T$4, Custom_Stock_MPG[[ Technology Type]], $B11, Custom_Stock_MPG[Vehicle Type], $A11, Custom_Stock_MPG[Scenario], Input_Scenario_Modeled), SUMIFS(Vehicle_Projections[Vehicle Stock],Vehicle_Projections[Year],Calculations!T$4,Vehicle_Projections[Technology Type], $B11, Vehicle_Projections[Vehicle Type], $A11, Vehicle_Projections[Scenario], Input_Scenario_Modeled)) -> 2.224015 | U11: =IF(Input_Scenario_Modeled="Custom", SUMIFS(Custom_Stock_MPG[Vehicle Stock],Custom_Stock_MPG[Year],Calculations!U$4, Custom_Stock_MPG[[ Technology Type]], $B11, Custom_Stock_MPG[Vehicle Type], $A11, Custom_Stock_MPG[Scenario], Input_Scenario_Modeled), SUMIFS(Vehicle_Projections[Vehicle Stock],Vehicle_Projections[Year],Calculations!U$4,Vehicle_Projections[Technology Type], $B11, Vehicle_Projections[Vehicle Type], $A11, Vehicle_Projections[Scenario], Input_Scenario_Modeled)) -> 2.495747 | V11: =IF(Input_Scenario_Modeled="Custom", SUMIFS(Custom_Stock_MPG[Vehicle Stock],Custom_Stock_MPG[Year],Calculations!V$4, Custom_Stock_MPG[[ Technology Type]], $B11, Custom_Stock_MPG[Vehicle Type], $A11, Custom_Stock_MPG[Scenario], Input_Scenario_Modeled), SUMIFS(Vehicle_Projections[Vehicle Stock],Vehicle_Projections[Year],Calculations!V$4,Vehicle_Projections[Technology Type], $B11, Vehicle_Projections[Vehicle Type], $A11, Vehicle_Projections[Scenario], Input_Scenario_Modeled)) -> 2.789969 | W11: =IF(Input_Scenario_Modeled="Custom", SUMIFS(Custom_Stock_MPG[Vehicle Stock],Custom_Stock_MPG[Year],Calculations!W$4, Custom_Stock_MPG[[ Technology Type]], $B11, Custom_Stock_MPG[Vehicle Type], $A11, Custom_Stock_MPG[Scenario], Input_Scenario_Modeled), SUMIFS(Vehicle_Projections[Vehicle Stock],Vehicle_Projections[Year],Calculations!W$4,Vehicle_Projections[Technology Type], $B11, Vehicle_Projections[Vehicle Type], $A11, Vehicle_Projections[Scenario], Input_Scenario_Modeled)) -> 3.10236 | X11: =IF(Input_Scenario_Modeled="Custom", SUMIFS(Custom_Stock_MPG[Vehicle Stock],Custom_Stock_MPG[Year],Calculations!X$4, Custom_Stock_MPG[[ Technology Type]], $B11, Custom_Stock_MPG[Vehicle Type], $A11, Custom_Stock_MPG[Scenario], Input_Scenario_Modeled), SUMIFS(Vehicle_Projections[Vehicle Stock],Vehicle_Projections[Year],Calculations!X$4,Vehicle_Projections[Technology Type], $B11, Vehicle_Projections[Vehicle Type], $A11, Vehicle_Projections[Scenario], Input_Scenario_Modeled)) -> 3.433457 | Y11: =IF(Input_Scenario_Modeled="Custom", SUMIFS(Custom_Stock_MPG[Vehicle Stock],Custom_Stock_MPG[Year],Calculations!Y$4, Custom_Stock_MPG[[ Technology Type]], $B11, Custom_Stock_MPG[Vehicle Type], $A11, Custom_Stock_MPG[Scenario], Input_Scenario_Modeled), SUMIFS(Vehicle_Projections[Vehicle Stock],Vehicle_Projections[Year],Calculations!Y$4,Vehicle_Projections[Technology Type], $B11, Vehicle_Projections[Vehicle Type], $A11, Vehicle_Projections[Scenario], Input_Scenario_Modeled)) -> 3.781612 | Z11: =IF(Input_Scenario_Modeled="Custom", SUMIFS(Custom_Stock_MPG[Vehicle Stock],Custom_Stock_MPG[Year],Calculations!Z$4, Custom_Stock_MPG[[ Technology Type]], $B11, Custom_Stock_MPG[Vehicle Type], $A11, Custom_Stock_MPG[Scenario], Input_Scenario_Modeled), SUMIFS(Vehicle_Projections[Vehicle Stock],Vehicle_Projections[Year],Calculations!Z$4,Vehicle_Projections[Technology Type], $B11, Vehicle_Projections[Vehicle Type], $A11, Vehicle_Projections[Scenario], Input_Scenario_Modeled)) -> 4.142237 | AA11: =IF(Input_Scenario_Modeled="Custom", SUMIFS(Custom_Stock_MPG[Vehicle Stock],Custom_Stock_MPG[Year],Calculations!AA$4, Custom_Stock_MPG[[ Technology Type]], $B11, Custom_Stock_MPG[Vehicle Type], $A11, Custom_Stock_MPG[Scenario], Input_Scenario_Modeled), SUMIFS(Vehicle_Projections[Vehicle Stock],Vehicle_Projections[Year],Calculations!AA$4,Vehicle_Projections[Technology Type], $B11, Vehicle_Projections[Vehicle Type], $A11, Vehicle_Projections[Scenario], Input_Scenario_Modeled)) -> 4.504102 | AB11: =IF(Input_Scenario_Modeled="Custom", SUMIFS(Custom_Stock_MPG[Vehicle Stock],Custom_Stock_MPG[Year],Calculations!AB$4, Custom_Stock_MPG[[ Technology Type]], $B11, Custom_Stock_MPG[Vehicle Type], $A11, Custom_Stock_MPG[Scenario], Input_Scenario_Modeled), SUMIFS(Vehicle_Projections[Vehicle Stock],Vehicle_Projections[Year],Calculations!AB$4,Vehicle_Projections[Technology Type], $B11, Vehicle_Projections[Vehicle Type], $A11, Vehicle_Projections[Scenario], Input_Scenario_Modeled)) -> 4.867364 | AC11: =IF(Input_Scenario_Modeled="Custom", SUMIFS(Custom_Stock_MPG[Vehicle Stock],Custom_Stock_MPG[Year],Calculations!AC$4, Custom_Stock_MPG[[ Technology Type]], $B11, Custom_Stock_MPG[Vehicle Type], $A11, Custom_Stock_MPG[Scenario], Input_Scenario_Modeled), SUMIFS(Vehicle_Projections[Vehicle Stock],Vehicle_Projections[Year],Calculations!AC$4,Vehicle_Projections[Technology Type], $B11, Vehicle_Projections[Vehicle Type], $A11, Vehicle_Projections[Scenario], Input_Scenario_Modeled)) -> 5.230089 | AD11: =IF(Input_Scenario_Modeled="Custom", SUMIFS(Custom_Stock_MPG[Vehicle Stock],Custom_Stock_MPG[Year],Calculations!AD$4, Custom_Stock_MPG[[ Technology Type]], $B11, Custom_Stock_MPG[Vehicle Type], $A11, Custom_Stock_MPG[Scenario], Input_Scenario_Modeled), SUMIFS(Vehicle_Projections[Vehicle Stock],Vehicle_Projections[Year],Calculations!AD$4,Vehicle_Projections[Technology Type], $B11, Vehicle_Projections[Vehicle Type], $A11, Vehicle_Projections[Scenario], Input_Scenario_Modeled)) -> 5.59189 | AE11: =IF(Input_Scenario_Modeled="Custom", SUMIFS(Custom_Stock_MPG[Vehicle Stock],Custom_Stock_MPG[Year],Calculations!AE$4, Custom_Stock_MPG[[ Technology Type]], $B11, Custom_Stock_MPG[Vehicle Type], $A11, Custom_Stock_MPG[Scenario], Input_Scenario_Modeled), SUMIFS(Vehicle_Projections[Vehicle Stock],Vehicle_Projections[Year],Calculations!AE$4,Vehicle_Projections[Technology Type], $B11, Vehicle_Projections[Vehicle Type], $A11, Vehicle_Projections[Scenario], Input_Scenario_Modeled)) -> 5.955673 | AF11: =IF(Input_Scenario_Modeled="Custom", SUMIFS(Custom_Stock_MPG[Vehicle Stock],Custom_Stock_MPG[Year],Calculations!AF$4, Custom_Stock_MPG[[ Technology Type]], $B11, Custom_Stock_MPG[Vehicle Type], $A11, Custom_Stock_MPG[Scenario], Input_Scenario_Modeled), SUMIFS(Vehicle_Projections[Vehicle Stock],Vehicle_Projections[Year],Calculations!AF$4,Vehicle_Projections[Technology Type], $B11, Vehicle_Projections[Vehicle Type], $A11, Vehicle_Projections[Scenario], Input_Scenario_Modeled)) -> 6.316059 | AG11: =IF(Input_Scenario_Modeled="Custom", SUMIFS(Custom_Stock_MPG[Vehicle Stock],Custom_Stock_MPG[Year],Calculations!AG$4, Custom_Stock_MPG[[ Technology Type]], $B11, Custom_Stock_MPG[Vehicle Type], $A11, Custom_Stock_MPG[Scenario], Input_Scenario_Modeled), SUMIFS(Vehicle_Projections[Vehicle Stock],Vehicle_Projections[Year],Calculations!AG$4,Vehicle_Projections[Technology Type], $B11, Vehicle_Projections[Vehicle Type], $A11, Vehicle_Projections[Scenario], Input_Scenario_Modeled)) -> 6.679302 | AH11: =IF(Input_Scenario_Modeled="Custom", SUMIFS(Custom_Stock_MPG[Vehicle Stock],Custom_Stock_MPG[Year],Calculations!AH$4, Custom_Stock_MPG[[ Technology Type]], $B11, Custom_Stock_MPG[Vehicle Type], $A11, Custom_Stock_MPG[Scenario], Input_Scenario_Modeled), SUMIFS(Vehicle_Projections[Vehicle Stock],Vehicle_Projections[Year],Calculations!AH$4,Vehicle_Projections[Technology Type], $B11, Vehicle_Projections[Vehicle Type], $A11, Vehicle_Projections[Scenario], Input_Scenario_Modeled)) -> 7.045538 | AI11: =IF(Input_Scenario_Modeled="Custom", SUMIFS(Custom_Stock_MPG[Vehicle Stock],Custom_Stock_MPG[Year],Calculations!AI$4, Custom_Stock_MPG[[ Technology Type]], $B11, Custom_Stock_MPG[Vehicle Type], $A11, Custom_Stock_MPG[Scenario], Input_Scenario_Modeled), SUMIFS(Vehicle_Projections[Vehicle Stock],Vehicle_Projections[Year],Calculations!AI$4,Vehicle_Projections[Technology Type], $B11, Vehicle_Projections[Vehicle Type], $A11, Vehicle_Projections[Scenario], Input_Scenario_Modeled)) -> 7.412359 | AJ11: =IF(Input_Scenario_Modeled="Custom", SUMIFS(Custom_Stock_MPG[Vehicle Stock],Custom_Stock_MPG[Year],Calculations!AJ$4, Custom_Stock_MPG[[ Technology Type]], $B11, Custom_Stock_MPG[Vehicle Type], $A11, Custom_Stock_MPG[Scenario], Input_Scenario_Modeled), SUMIFS(Vehicle_Projections[Vehicle Stock],Vehicle_Projections[Year],Calculations!AJ$4,Vehicle_Projections[Technology Type], $B11, Vehicle_Projections[Vehicle Type], $A11, Vehicle_Projections[Scenario], Input_Scenario_Modeled)) -> 7.779485
A12: Passenger Cars | B12: 300 Mile Electric Vehicle | C12: Electricity | D12: Stock | E12: =IF(Input_Scenario_Modeled="Custom", SUMIFS(Custom_Stock_MPG[Vehicle Stock],Custom_Stock_MPG[Year],Calculations!E$4, Custom_Stock_MPG[[ Technology Type]], $B12, Custom_Stock_MPG[Vehicle Type], $A12, Custom_Stock_MPG[Scenario], Input_Scenario_Modeled), SUMIFS(Vehicle_Projections[Vehicle Stock],Vehicle_Projections[Year],Calculations!E$4,Vehicle_Projections[Technology Type], $B12, Vehicle_Projections[Vehicle Type], $A12, Vehicle_Projections[Scenario], Input_Scenario_Modeled)) -> 0.389292 | F12: =IF(Input_Scenario_Modeled="Custom", SUMIFS(Custom_Stock_MPG[Vehicle Stock],Custom_Stock_MPG[Year],Calculations!F$4, Custom_Stock_MPG[[ Technology Type]], $B12, Custom_Stock_MPG[Vehicle Type], $A12, Custom_Stock_MPG[Scenario], Input_Scenario_Modeled), SUMIFS(Vehicle_Projections[Vehicle Stock],Vehicle_Projections[Year],Calculations!F$4,Vehicle_Projections[Technology Type], $B12, Vehicle_Projections[Vehicle Type], $A12, Vehicle_Projections[Scenario], Input_Scenario_Modeled)) -> 0.683657 | G12: =IF(Input_Scenario_Modeled="Custom", SUMIFS(Custom_Stock_MPG[Vehicle Stock],Custom_Stock_MPG[Year],Calculations!G$4, Custom_Stock_MPG[[ Technology Type]], $B12, Custom_Stock_MPG[Vehicle Type], $A12, Custom_Stock_MPG[Scenario], Input_Scenario_Modeled), SUMIFS(Vehicle_Projections[Vehicle Stock],Vehicle_Projections[Year],Calculations!G$4,Vehicle_Projections[Technology Type], $B12, Vehicle_Projections[Vehicle Type], $A12, Vehicle_Projections[Scenario], Input_Scenario_Modeled)) -> 1.081833 | H12: =IF(Input_Scenario_Modeled="Custom", SUMIFS(Custom_Stock_MPG[Vehicle Stock],Custom_Stock_MPG[Year],Calculations!H$4, Custom_Stock_MPG[[ Technology Type]], $B12, Custom_Stock_MPG[Vehicle Type], $A12, Custom_Stock_MPG[Scenario], Input_Scenario_Modeled), SUMIFS(Vehicle_Projections[Vehicle Stock],Vehicle_Projections[Year],Calculations!H$4,Vehicle_Projections[Technology Type], $B12, Vehicle_Projections[Vehicle Type], $A12, Vehicle_Projections[Scenario], Input_Scenario_Modeled)) -> 1.476415 | I12: =IF(Input_Scenario_Modeled="Custom", SUMIFS(Custom_Stock_MPG[Vehicle Stock],Custom_Stock_MPG[Year],Calculations!I$4, Custom_Stock_MPG[[ Technology Type]], $B12, Custom_Stock_MPG[Vehicle Type], $A12, Custom_Stock_MPG[Scenario], Input_Scenario_Modeled), SUMIFS(Vehicle_Projections[Vehicle Stock],Vehicle_Projections[Year],Calculations!I$4,Vehicle_Projections[Technology Type], $B12, Vehicle_Projections[Vehicle Type], $A12, Vehicle_Projections[Scenario], Input_Scenario_Modeled)) -> 1.868351 | J12: =IF(Input_Scenario_Modeled="Custom", SUMIFS(Custom_Stock_MPG[Vehicle Stock],Custom_Stock_MPG[Year],Calculations!J$4, Custom_Stock_MPG[[ Technology Type]], $B12, Custom_Stock_MPG[Vehicle Type], $A12, Custom_Stock_MPG[Scenario], Input_Scenario_Modeled), SUMIFS(Vehicle_Projections[Vehicle Stock],Vehicle_Projections[Year],Calculations!J$4,Vehicle_Projections[Technology Type], $B12, Vehicle_Projections[Vehicle Type], $A12, Vehicle_Projections[Scenario], Input_Scenario_Modeled)) -> 2.260005 | K12: =IF(Input_Scenario_Modeled="Custom", SUMIFS(Custom_Stock_MPG[Vehicle Stock],Custom_Stock_MPG[Year],Calculations!K$4, Custom_Stock_MPG[[ Technology Type]], $B12, Custom_Stock_MPG[Vehicle Type], $A12, Custom_Stock_MPG[Scenario], Input_Scenario_Modeled), SUMIFS(Vehicle_Projections[Vehicle Stock],Vehicle_Projections[Year],Calculations!K$4,Vehicle_Projections[Technology Type], $B12, Vehicle_Projections[Vehicle Type], $A12, Vehicle_Projections[Scenario], Input_Scenario_Modeled)) -> 2.628048 | L12: =IF(Input_Scenario_Modeled="Custom", SUMIFS(Custom_Stock_MPG[Vehicle Stock],Custom_Stock_MPG[Year],Calculations!L$4, Custom_Stock_MPG[[ Technology Type]], $B12, Custom_Stock_MPG[Vehicle Type], $A12, Custom_Stock_MPG[Scenario], Input_Scenario_Modeled), SUMIFS(Vehicle_Projections[Vehicle Stock],Vehicle_Projections[Year],Calculations!L$4,Vehicle_Projections[Technology Type], $B12, Vehicle_Projections[Vehicle Type], $A12, Vehicle_Projections[Scenario], Input_Scenario_Modeled)) -> 2.990739 | M12: =IF(Input_Scenario_Modeled="Custom", SUMIFS(Custom_Stock_MPG[Vehicle Stock],Custom_Stock_MPG[Year],Calculations!M$4, Custom_Stock_MPG[[ Technology Type]], $B12, Custom_Stock_MPG[Vehicle Type], $A12, Custom_Stock_MPG[Scenario], Input_Scenario_Modeled), SUMIFS(Vehicle_Projections[Vehicle Stock],Vehicle_Projections[Year],Calculations!M$4,Vehicle_Projections[Technology Type], $B12, Vehicle_Projections[Vehicle Type], $A12, Vehicle_Projections[Scenario], Input_Scenario_Modeled)) -> 3.35866 | N12: =IF(Input_Scenario_Modeled="Custom", SUMIFS(Custom_Stock_MPG[Vehicle Stock],Custom_Stock_MPG[Year],Calculations!N$4, Custom_Stock_MPG[[ Technology Type]], $B12, Custom_Stock_MPG[Vehicle Type], $A12, Custom_Stock_MPG[Scenario], Input_Scenario_Modeled), SUMIFS(Vehicle_Projections[Vehicle Stock],Vehicle_Projections[Year],Calculations!N$4,Vehicle_Projections[Technology Type], $B12, Vehicle_Projections[Vehicle Type], $A12, Vehicle_Projections[Scenario], Input_Scenario_Modeled)) -> 3.737927 | O12: =IF(Input_Scenario_Modeled="Custom", SUMIFS(Custom_Stock_MPG[Vehicle Stock],Custom_Stock_MPG[Year],Calculations!O$4, Custom_Stock_MPG[[ Technology Type]], $B12, Custom_Stock_MPG[Vehicle Type], $A12, Custom_Stock_MPG[Scenario], Input_Scenario_Modeled), SUMIFS(Vehicle_Projections[Vehicle Stock],Vehicle_Projections[Year],Calculations!O$4,Vehicle_Projections[Technology Type], $B12, Vehicle_Projections[Vehicle Type], $A12, Vehicle_Projections[Scenario], Input_Scenario_Modeled)) -> 4.131643 | P12: =IF(Input_Scenario_Modeled="Custom", SUMIFS(Custom_Stock_MPG[Vehicle Stock],Custom_Stock_MPG[Year],Calculations!P$4, Custom_Stock_MPG[[ Technology Type]], $B12, Custom_Stock_MPG[Vehicle Type], $A12, Custom_Stock_MPG[Scenario], Input_Scenario_Modeled), SUMIFS(Vehicle_Projections[Vehicle Stock],Vehicle_Projections[Year],Calculations!P$4,Vehicle_Projections[Technology Type], $B12, Vehicle_Projections[Vehicle Type], $A12, Vehicle_Projections[Scenario], Input_Scenario_Modeled)) -> 4.549829 | Q12: =IF(Input_Scenario_Modeled="Custom", SUMIFS(Custom_Stock_MPG[Vehicle Stock],Custom_Stock_MPG[Year],Calculations!Q$4, Custom_Stock_MPG[[ Technology Type]], $B12, Custom_Stock_MPG[Vehicle Type], $A12, Custom_Stock_MPG[Scenario], Input_Scenario_Modeled), SUMIFS(Vehicle_Projections[Vehicle Stock],Vehicle_Projections[Year],Calculations!Q$4,Vehicle_Projections[Technology Type], $B12, Vehicle_Projections[Vehicle Type], $A12, Vehicle_Projections[Scenario], Input_Scenario_Modeled)) -> 4.99459 | R12: =IF(Input_Scenario_Modeled="Custom", SUMIFS(Custom_Stock_MPG[Vehicle Stock],Custom_Stock_MPG[Year],Calculations!R$4, Custom_Stock_MPG[[ Technology Type]], $B12, Custom_Stock_MPG[Vehicle Type], $A12, Custom_Stock_MPG[Scenario], Input_Scenario_Modeled), SUMIFS(Vehicle_Projections[Vehicle Stock],Vehicle_Projections[Year],Calculations!R$4,Vehicle_Projections[Technology Type], $B12, Vehicle_Projections[Vehicle Type], $A12, Vehicle_Projections[Scenario], Input_Scenario_Modeled)) -> 5.457863 | S12: =IF(Input_Scenario_Modeled="Custom", SUMIFS(Custom_Stock_MPG[Vehicle Stock],Custom_Stock_MPG[Year],Calculations!S$4, Custom_Stock_MPG[[ Technology Type]], $B12, Custom_Stock_MPG[Vehicle Type], $A12, Custom_Stock_MPG[Scenario], Input_Scenario_Modeled), SUMIFS(Vehicle_Projections[Vehicle Stock],Vehicle_Projections[Year],Calculations!S$4,Vehicle_Projections[Technology Type], $B12, Vehicle_Projections[Vehicle Type], $A12, Vehicle_Projections[Scenario], Input_Scenario_Modeled)) -> 5.934544 | T12: =IF(Input_Scenario_Modeled="Custom", SUMIFS(Custom_Stock_MPG[Vehicle Stock],Custom_Stock_MPG[Year],Calculations!T$4, Custom_Stock_MPG[[ Technology Type]], $B12, Custom_Stock_MPG[Vehicle Type], $A12, Custom_Stock_MPG[Scenario], Input_Scenario_Modeled), SUMIFS(Vehicle_Projections[Vehicle Stock],Vehicle_Projections[Year],Calculations!T$4,Vehicle_Projections[Technology Type], $B12, Vehicle_Projections[Vehicle Type], $A12, Vehicle_Projections[Scenario], Input_Scenario_Modeled)) -> 6.421913 | U12: =IF(Input_Scenario_Modeled="Custom", SUMIFS(Custom_Stock_MPG[Vehicle Stock],Custom_Stock_MPG[Year],Calculations!U$4, Custom_Stock_MPG[[ Technology Type]], $B12, Custom_Stock_MPG[Vehicle Type], $A12, Custom_Stock_MPG[Scenario], Input_Scenario_Modeled), SUMIFS(Vehicle_Projections[Vehicle Stock],Vehicle_Projections[Year],Calculations!U$4,Vehicle_Projections[Technology Type], $B12, Vehicle_Projections[Vehicle Type], $A12, Vehicle_Projections[Scenario], Input_Scenario_Modeled)) -> 6.916124 | V12: =IF(Input_Scenario_Modeled="Custom", SUMIFS(Custom_Stock_MPG[Vehicle Stock],Custom_Stock_MPG[Year],Calculations!V$4, Custom_Stock_MPG[[ Technology Type]], $B12, Custom_Stock_MPG[Vehicle Type], $A12, Custom_Stock_MPG[Scenario], Input_Scenario_Modeled), SUMIFS(Vehicle_Projections[Vehicle Stock],Vehicle_Projections[Year],Calculations!V$4,Vehicle_Projections[Technology Type], $B12, Vehicle_Projections[Vehicle Type], $A12, Vehicle_Projections[Scenario], Input_Scenario_Modeled)) -> 7.411128 | W12: =IF(Input_Scenario_Modeled="Custom", SUMIFS(Custom_Stock_MPG[Vehicle Stock],Custom_Stock_MPG[Year],Calculations!W$4, Custom_Stock_MPG[[ Technology Type]], $B12, Custom_Stock_MPG[Vehicle Type], $A12, Custom_Stock_MPG[Scenario], Input_Scenario_Modeled), SUMIFS(Vehicle_Projections[Vehicle Stock],Vehicle_Projections[Year],Calculations!W$4,Vehicle_Projections[Technology Type], $B12, Vehicle_Projections[Vehicle Type], $A12, Vehicle_Projections[Scenario], Input_Scenario_Modeled)) -> 7.904678 | X12: =IF(Input_Scenario_Modeled="Custom", SUMIFS(Custom_Stock_MPG[Vehicle Stock],Custom_Stock_MPG[Year],Calculations!X$4, Custom_Stock_MPG[[ Technology Type]], $B12, Custom_Stock_MPG[Vehicle Type], $A12, Custom_Stock_MPG[Scenario], Input_Scenario_Modeled), SUMIFS(Vehicle_Projections[Vehicle Stock],Vehicle_Projections[Year],Calculations!X$4,Vehicle_Projections[Technology Type], $B12, Vehicle_Projections[Vehicle Type], $A12, Vehicle_Projections[Scenario], Input_Scenario_Modeled)) -> 8.392151 | Y12: =IF(Input_Scenario_Modeled="Custom", SUMIFS(Custom_Stock_MPG[Vehicle Stock],Custom_Stock_MPG[Year],Calculations!Y$4, Custom_Stock_MPG[[ Technology Type]], $B12, Custom_Stock_MPG[Vehicle Type], $A12, Custom_Stock_MPG[Scenario], Input_Scenario_Modeled), SUMIFS(Vehicle_Projections[Vehicle Stock],Vehicle_Projections[Year],Calculations!Y$4,Vehicle_Projections[Technology Type], $B12, Vehicle_Projections[Vehicle Type], $A12, Vehicle_Projections[Scenario], Input_Scenario_Modeled)) -> 8.87544 | Z12: =IF(Input_Scenario_Modeled="Custom", SUMIFS(Custom_Stock_MPG[Vehicle Stock],Custom_Stock_MPG[Year],Calculations!Z$4, Custom_Stock_MPG[[ Technology Type]], $B12, Custom_Stock_MPG[Vehicle Type], $A12, Custom_Stock_MPG[Scenario], Input_Scenario_Modeled), SUMIFS(Vehicle_Projections[Vehicle Stock],Vehicle_Projections[Year],Calculations!Z$4,Vehicle_Projections[Technology Type], $B12, Vehicle_Projections[Vehicle Type], $A12, Vehicle_Projections[Scenario], Input_Scenario_Modeled)) -> 9.351398 | AA12: =IF(Input_Scenario_Modeled="Custom", SUMIFS(Custom_Stock_MPG[Vehicle Stock],Custom_Stock_MPG[Year],Calculations!AA$4, Custom_Stock_MPG[[ Technology Type]], $B12, Custom_Stock_MPG[Vehicle Type], $A12, Custom_Stock_MPG[Scenario], Input_Scenario_Modeled), SUMIFS(Vehicle_Projections[Vehicle Stock],Vehicle_Projections[Year],Calculations!AA$4,Vehicle_Projections[Technology Type], $B12, Vehicle_Projections[Vehicle Type], $A12, Vehicle_Projections[Scenario], Input_Scenario_Modeled)) -> 9.82055 | AB12: =IF(Input_Scenario_Modeled="Custom", SUMIFS(Custom_Stock_MPG[Vehicle Stock],Custom_Stock_MPG[Year],Calculations!AB$4, Custom_Stock_MPG[[ Technology Type]], $B12, Custom_Stock_MPG[Vehicle Type], $A12, Custom_Stock_MPG[Scenario], Input_Scenario_Modeled), SUMIFS(Vehicle_Projections[Vehicle Stock],Vehicle_Projections[Year],Calculations!AB$4,Vehicle_Projections[Technology Type], $B12, Vehicle_Projections[Vehicle Type], $A12, Vehicle_Projections[Scenario], Input_Scenario_Modeled)) -> 10.286495 | AC12: =IF(Input_Scenario_Modeled="Custom", SUMIFS(Custom_Stock_MPG[Vehicle Stock],Custom_Stock_MPG[Year],Calculations!AC$4, Custom_Stock_MPG[[ Technology Type]], $B12, Custom_Stock_MPG[Vehicle Type], $A12, Custom_Stock_MPG[Scenario], Input_Scenario_Modeled), SUMIFS(Vehicle_Projections[Vehicle Stock],Vehicle_Projections[Year],Calculations!AC$4,Vehicle_Projections[Technology Type], $B12, Vehicle_Projections[Vehicle Type], $A12, Vehicle_Projections[Scenario], Input_Scenario_Modeled)) -> 10.754677 | AD12: =IF(Input_Scenario_Modeled="Custom", SUMIFS(Custom_Stock_MPG[Vehicle Stock],Custom_Stock_MPG[Year],Calculations!AD$4, Custom_Stock_MPG[[ Technology Type]], $B12, Custom_Stock_MPG[Vehicle Type], $A12, Custom_Stock_MPG[Scenario], Input_Scenario_Modeled), SUMIFS(Vehicle_Projections[Vehicle Stock],Vehicle_Projections[Year],Calculations!AD$4,Vehicle_Projections[Technology Type], $B12, Vehicle_Projections[Vehicle Type], $A12, Vehicle_Projections[Scenario], Input_Scenario_Modeled)) -> 11.224082 | AE12: =IF(Input_Scenario_Modeled="Custom", SUMIFS(Custom_Stock_MPG[Vehicle Stock],Custom_Stock_MPG[Year],Calculations!AE$4, Custom_Stock_MPG[[ Technology Type]], $B12, Custom_Stock_MPG[Vehicle Type], $A12, Custom_Stock_MPG[Scenario], Input_Scenario_Modeled), SUMIFS(Vehicle_Projections[Vehicle Stock],Vehicle_Projections[Year],Calculations!AE$4,Vehicle_Projections[Technology Type], $B12, Vehicle_Projections[Vehicle Type], $A12, Vehicle_Projections[Scenario], Input_Scenario_Modeled)) -> 11.695355 | AF12: =IF(Input_Scenario_Modeled="Custom", SUMIFS(Custom_Stock_MPG[Vehicle Stock],Custom_Stock_MPG[Year],Calculations!AF$4, Custom_Stock_MPG[[ Technology Type]], $B12, Custom_Stock_MPG[Vehicle Type], $A12, Custom_Stock_MPG[Scenario], Input_Scenario_Modeled), SUMIFS(Vehicle_Projections[Vehicle Stock],Vehicle_Projections[Year],Calculations!AF$4,Vehicle_Projections[Technology Type], $B12, Vehicle_Projections[Vehicle Type], $A12, Vehicle_Projections[Scenario], Input_Scenario_Modeled)) -> 12.168191 | AG12: =IF(Input_Scenario_Modeled="Custom", SUMIFS(Custom_Stock_MPG[Vehicle Stock],Custom_Stock_MPG[Year],Calculations!AG$4, Custom_Stock_MPG[[ Technology Type]], $B12, Custom_Stock_MPG[Vehicle Type], $A12, Custom_Stock_MPG[Scenario], Input_Scenario_Modeled), SUMIFS(Vehicle_Projections[Vehicle Stock],Vehicle_Projections[Year],Calculations!AG$4,Vehicle_Projections[Technology Type], $B12, Vehicle_Projections[Vehicle Type], $A12, Vehicle_Projections[Scenario], Input_Scenario_Modeled)) -> 12.636718 | AH12: =IF(Input_Scenario_Modeled="Custom", SUMIFS(Custom_Stock_MPG[Vehicle Stock],Custom_Stock_MPG[Year],Calculations!AH$4, Custom_Stock_MPG[[ Technology Type]], $B12, Custom_Stock_MPG[Vehicle Type], $A12, Custom_Stock_MPG[Scenario], Input_Scenario_Modeled), SUMIFS(Vehicle_Projections[Vehicle Stock],Vehicle_Projections[Year],Calculations!AH$4,Vehicle_Projections[Technology Type], $B12, Vehicle_Projections[Vehicle Type], $A12, Vehicle_Projections[Scenario], Input_Scenario_Modeled)) -> 13.107799 | AI12: =IF(Input_Scenario_Modeled="Custom", SUMIFS(Custom_Stock_MPG[Vehicle Stock],Custom_Stock_MPG[Year],Calculations!AI$4, Custom_Stock_MPG[[ Technology Type]], $B12, Custom_Stock_MPG[Vehicle Type], $A12, Custom_Stock_MPG[Scenario], Input_Scenario_Modeled), SUMIFS(Vehicle_Projections[Vehicle Stock],Vehicle_Projections[Year],Calculations!AI$4,Vehicle_Projections[Technology Type], $B12, Vehicle_Projections[Vehicle Type], $A12, Vehicle_Projections[Scenario], Input_Scenario_Modeled)) -> 13.575358 | AJ12: =IF(Input_Scenario_Modeled="Custom", SUMIFS(Custom_Stock_MPG[Vehicle Stock],Custom_Stock_MPG[Year],Calculations!AJ$4, Custom_Stock_MPG[[ Technology Type]], $B12, Custom_Stock_MPG[Vehicle Type], $A12, Custom_Stock_MPG[Scenario], Input_Scenario_Modeled), SUMIFS(Vehicle_Projections[Vehicle Stock],Vehicle_Projections[Year],Calculations!AJ$4,Vehicle_Projections[Technology Type], $B12, Vehicle_Projections[Vehicle Type], $A12, Vehicle_Projections[Scenario], Input_Scenario_Modeled)) -> 14.037774
A13: Passenger Cars | B13: Plug-in 10 Gasoline Hybrid | C13: Electricity | D13: Stock | E13: =IF(Input_Scenario_Modeled="Custom", SUMIFS(Custom_Stock_MPG[Vehicle Stock],Custom_Stock_MPG[Year],Calculations!E$4, Custom_Stock_MPG[[ Technology Type]], $B13, Custom_Stock_MPG[Vehicle Type], $A13, Custom_Stock_MPG[Scenario], Input_Scenario_Modeled), SUMIFS(Vehicle_Projections[Vehicle Stock],Vehicle_Projections[Year],Calculations!E$4,Vehicle_Projections[Technology Type], $B13, Vehicle_Projections[Vehicle Type], $A13, Vehicle_Projections[Scenario], Input_Scenario_Modeled)) -> 0.280129 | F13: =IF(Input_Scenario_Modeled="Custom", SUMIFS(Custom_Stock_MPG[Vehicle Stock],Custom_Stock_MPG[Year],Calculations!F$4, Custom_Stock_MPG[[ Technology Type]], $B13, Custom_Stock_MPG[Vehicle Type], $A13, Custom_Stock_MPG[Scenario], Input_Scenario_Modeled), SUMIFS(Vehicle_Projections[Vehicle Stock],Vehicle_Projections[Year],Calculations!F$4,Vehicle_Projections[Technology Type], $B13, Vehicle_Projections[Vehicle Type], $A13, Vehicle_Projections[Scenario], Input_Scenario_Modeled)) -> 0.281549 | G13: =IF(Input_Scenario_Modeled="Custom", SUMIFS(Custom_Stock_MPG[Vehicle Stock],Custom_Stock_MPG[Year],Calculations!G$4, Custom_Stock_MPG[[ Technology Type]], $B13, Custom_Stock_MPG[Vehicle Type], $A13, Custom_Stock_MPG[Scenario], Input_Scenario_Modeled), SUMIFS(Vehicle_Projections[Vehicle Stock],Vehicle_Projections[Year],Calculations!G$4,Vehicle_Projections[Technology Type], $B13, Vehicle_Projections[Vehicle Type], $A13, Vehicle_Projections[Scenario], Input_Scenario_Modeled)) -> 0.28227 | H13: =IF(Input_Scenario_Modeled="Custom", SUMIFS(Custom_Stock_MPG[Vehicle Stock],Custom_Stock_MPG[Year],Calculations!H$4, Custom_Stock_MPG[[ Technology Type]], $B13, Custom_Stock_MPG[Vehicle Type], $A13, Custom_Stock_MPG[Scenario], Input_Scenario_Modeled), SUMIFS(Vehicle_Projections[Vehicle Stock],Vehicle_Projections[Year],Calculations!H$4,Vehicle_Projections[Technology Type], $B13, Vehicle_Projections[Vehicle Type], $A13, Vehicle_Projections[Scenario], Input_Scenario_Modeled)) -> 0.282125 | I13: =IF(Input_Scenario_Modeled="Custom", SUMIFS(Custom_Stock_MPG[Vehicle Stock],Custom_Stock_MPG[Year],Calculations!I$4, Custom_Stock_MPG[[ Technology Type]], $B13, Custom_Stock_MPG[Vehicle Type], $A13, Custom_Stock_MPG[Scenario], Input_Scenario_Modeled), SUMIFS(Vehicle_Projections[Vehicle Stock],Vehicle_Projections[Year],Calculations!I$4,Vehicle_Projections[Technology Type], $B13, Vehicle_Projections[Vehicle Type], $A13, Vehicle_Projections[Scenario], Input_Scenario_Modeled)) -> 0.281142 | J13: =IF(Input_Scenario_Modeled="Custom", SUMIFS(Custom_Stock_MPG[Vehicle Stock],Custom_Stock_MPG[Year],Calculations!J$4, Custom_Stock_MPG[[ Technology Type]], $B13, Custom_Stock_MPG[Vehicle Type], $A13, Custom_Stock_MPG[Scenario], Input_Scenario_Modeled), SUMIFS(Vehicle_Projections[Vehicle Stock],Vehicle_Projections[Year],Calculations!J$4,Vehicle_Projections[Technology Type], $B13, Vehicle_Projections[Vehicle Type], $A13, Vehicle_Projections[Scenario], Input_Scenario_Modeled)) -> 0.279404 | K13: =IF(Input_Scenario_Modeled="Custom", SUMIFS(Custom_Stock_MPG[Vehicle Stock],Custom_Stock_MPG[Year],Calculations!K$4, Custom_Stock_MPG[[ Technology Type]], $B13, Custom_Stock_MPG[Vehicle Type], $A13, Custom_Stock_MPG[Scenario], Input_Scenario_Modeled), SUMIFS(Vehicle_Projections[Vehicle Stock],Vehicle_Projections[Year],Calculations!K$4,Vehicle_Projections[Technology Type], $B13, Vehicle_Projections[Vehicle Type], $A13, Vehicle_Projections[Scenario], Input_Scenario_Modeled)) -> 0.276859 | L13: =IF(Input_Scenario_Modeled="Custom", SUMIFS(Custom_Stock_MPG[Vehicle Stock],Custom_Stock_MPG[Year],Calculations!L$4, Custom_Stock_MPG[[ Technology Type]], $B13, Custom_Stock_MPG[Vehicle Type], $A13, Custom_Stock_MPG[Scenario], Input_Scenario_Modeled), SUMIFS(Vehicle_Projections[Vehicle Stock],Vehicle_Projections[Year],Calculations!L$4,Vehicle_Projections[Technology Type], $B13, Vehicle_Projections[Vehicle Type], $A13, Vehicle_Projections[Scenario], Input_Scenario_Modeled)) -> 0.273393 | M13: =IF(Input_Scenario_Modeled="Custom", SUMIFS(Custom_Stock_MPG[Vehicle Stock],Custom_Stock_MPG[Year],Calculations!M$4, Custom_Stock_MPG[[ Technology Type]], $B13, Custom_Stock_MPG[Vehicle Type], $A13, Custom_Stock_MPG[Scenario], Input_Scenario_Modeled), SUMIFS(Vehicle_Projections[Vehicle Stock],Vehicle_Projections[Year],Calculations!M$4,Vehicle_Projections[Technology Type], $B13, Vehicle_Projections[Vehicle Type], $A13, Vehicle_Projections[Scenario], Input_Scenario_Modeled)) -> 0.268568 | N13: =IF(Input_Scenario_Modeled="Custom", SUMIFS(Custom_Stock_MPG[Vehicle Stock],Custom_Stock_MPG[Year],Calculations!N$4, Custom_Stock_MPG[[ Technology Type]], $B13, Custom_Stock_MPG[Vehicle Type], $A13, Custom_Stock_MPG[Scenario], Input_Scenario_Modeled), SUMIFS(Vehicle_Projections[Vehicle Stock],Vehicle_Projections[Year],Calculations!N$4,Vehicle_Projections[Technology Type], $B13, Vehicle_Projections[Vehicle Type], $A13, Vehicle_Projections[Scenario], Input_Scenario_Modeled)) -> 0.26205 | O13: =IF(Input_Scenario_Modeled="Custom", SUMIFS(Custom_Stock_MPG[Vehicle Stock],Custom_Stock_MPG[Year],Calculations!O$4, Custom_Stock_MPG[[ Technology Type]], $B13, Custom_Stock_MPG[Vehicle Type], $A13, Custom_Stock_MPG[Scenario], Input_Scenario_Modeled), SUMIFS(Vehicle_Projections[Vehicle Stock],Vehicle_Projections[Year],Calculations!O$4,Vehicle_Projections[Technology Type], $B13, Vehicle_Projections[Vehicle Type], $A13, Vehicle_Projections[Scenario], Input_Scenario_Modeled)) -> 0.253349 | P13: =IF(Input_Scenario_Modeled="Custom", SUMIFS(Custom_Stock_MPG[Vehicle Stock],Custom_Stock_MPG[Year],Calculations!P$4, Custom_Stock_MPG[[ Technology Type]], $B13, Custom_Stock_MPG[Vehicle Type], $A13, Custom_Stock_MPG[Scenario], Input_Scenario_Modeled), SUMIFS(Vehicle_Projections[Vehicle Stock],Vehicle_Projections[Year],Calculations!P$4,Vehicle_Projections[Technology Type], $B13, Vehicle_Projections[Vehicle Type], $A13, Vehicle_Projections[Scenario], Input_Scenario_Modeled)) -> 0.242822 | Q13: =IF(Input_Scenario_Modeled="Custom", SUMIFS(Custom_Stock_MPG[Vehicle Stock],Custom_Stock_MPG[Year],Calculations!Q$4, Custom_Stock_MPG[[ Technology Type]], $B13, Custom_Stock_MPG[Vehicle Type], $A13, Custom_Stock_MPG[Scenario], Input_Scenario_Modeled), SUMIFS(Vehicle_Projections[Vehicle Stock],Vehicle_Projections[Year],Calculations!Q$4,Vehicle_Projections[Technology Type], $B13, Vehicle_Projections[Vehicle Type], $A13, Vehicle_Projections[Scenario], Input_Scenario_Modeled)) -> 0.230722 | R13: =IF(Input_Scenario_Modeled="Custom", SUMIFS(Custom_Stock_MPG[Vehicle Stock],Custom_Stock_MPG[Year],Calculations!R$4, Custom_Stock_MPG[[ Technology Type]], $B13, Custom_Stock_MPG[Vehicle Type], $A13, Custom_Stock_MPG[Scenario], Input_Scenario_Modeled), SUMIFS(Vehicle_Projections[Vehicle Stock],Vehicle_Projections[Year],Calculations!R$4,Vehicle_Projections[Technology Type], $B13, Vehicle_Projections[Vehicle Type], $A13, Vehicle_Projections[Scenario], Input_Scenario_Modeled)) -> 0.217361 | S13: =IF(Input_Scenario_Modeled="Custom", SUMIFS(Custom_Stock_MPG[Vehicle Stock],Custom_Stock_MPG[Year],Calculations!S$4, Custom_Stock_MPG[[ Technology Type]], $B13, Custom_Stock_MPG[Vehicle Type], $A13, Custom_Stock_MPG[Scenario], Input_Scenario_Modeled), SUMIFS(Vehicle_Projections[Vehicle Stock],Vehicle_Projections[Year],Calculations!S$4,Vehicle_Projections[Technology Type], $B13, Vehicle_Projections[Vehicle Type], $A13, Vehicle_Projections[Scenario], Input_Scenario_Modeled)) -> 0.203537 | T13: =IF(Input_Scenario_Modeled="Custom", SUMIFS(Custom_Stock_MPG[Vehicle Stock],Custom_Stock_MPG[Year],Calculations!T$4, Custom_Stock_MPG[[ Technology Type]], $B13, Custom_Stock_MPG[Vehicle Type], $A13, Custom_Stock_MPG[Scenario], Input_Scenario_Modeled), SUMIFS(Vehicle_Projections[Vehicle Stock],Vehicle_Projections[Year],Calculations!T$4,Vehicle_Projections[Technology Type], $B13, Vehicle_Projections[Vehicle Type], $A13, Vehicle_Projections[Scenario], Input_Scenario_Modeled)) -> 0.190025 | U13: =IF(Input_Scenario_Modeled="Custom", SUMIFS(Custom_Stock_MPG[Vehicle Stock],Custom_Stock_MPG[Year],Calculations!U$4, Custom_Stock_MPG[[ Technology Type]], $B13, Custom_Stock_MPG[Vehicle Type], $A13, Custom_Stock_MPG[Scenario], Input_Scenario_Modeled), SUMIFS(Vehicle_Projections[Vehicle Stock],Vehicle_Projections[Year],Calculations!U$4,Vehicle_Projections[Technology Type], $B13, Vehicle_Projections[Vehicle Type], $A13, Vehicle_Projections[Scenario], Input_Scenario_Modeled)) -> 0.178071 | V13: =IF(Input_Scenario_Modeled="Custom", SUMIFS(Custom_Stock_MPG[Vehicle Stock],Custom_Stock_MPG[Year],Calculations!V$4, Custom_Stock_MPG[[ Technology Type]], $B13, Custom_Stock_MPG[Vehicle Type], $A13, Custom_Stock_MPG[Scenario], Input_Scenario_Modeled), SUMIFS(Vehicle_Projections[Vehicle Stock],Vehicle_Projections[Year],Calculations!V$4,Vehicle_Projections[Technology Type], $B13, Vehicle_Projections[Vehicle Type], $A13, Vehicle_Projections[Scenario], Input_Scenario_Modeled)) -> 0.168298 | W13: =IF(Input_Scenario_Modeled="Custom", SUMIFS(Custom_Stock_MPG[Vehicle Stock],Custom_Stock_MPG[Year],Calculations!W$4, Custom_Stock_MPG[[ Technology Type]], $B13, Custom_Stock_MPG[Vehicle Type], $A13, Custom_Stock_MPG[Scenario], Input_Scenario_Modeled), SUMIFS(Vehicle_Projections[Vehicle Stock],Vehicle_Projections[Year],Calculations!W$4,Vehicle_Projections[Technology Type], $B13, Vehicle_Projections[Vehicle Type], $A13, Vehicle_Projections[Scenario], Input_Scenario_Modeled)) -> 0.160941 | X13: =IF(Input_Scenario_Modeled="Custom", SUMIFS(Custom_Stock_MPG[Vehicle Stock],Custom_Stock_MPG[Year],Calculations!X$4, Custom_Stock_MPG[[ Technology Type]], $B13, Custom_Stock_MPG[Vehicle Type], $A13, Custom_Stock_MPG[Scenario], Input_Scenario_Modeled), SUMIFS(Vehicle_Projections[Vehicle Stock],Vehicle_Projections[Year],Calculations!X$4,Vehicle_Projections[Technology Type], $B13, Vehicle_Projections[Vehicle Type], $A13, Vehicle_Projections[Scenario], Input_Scenario_Modeled)) -> 0.15532 | Y13: =IF(Input_Scenario_Modeled="Custom", SUMIFS(Custom_Stock_MPG[Vehicle Stock],Custom_Stock_MPG[Year],Calculations!Y$4, Custom_Stock_MPG[[ Technology Type]], $B13, Custom_Stock_MPG[Vehicle Type], $A13, Custom_Stock_MPG[Scenario], Input_Scenario_Modeled), SUMIFS(Vehicle_Projections[Vehicle Stock],Vehicle_Projections[Year],Calculations!Y$4,Vehicle_Projections[Technology Type], $B13, Vehicle_Projections[Vehicle Type], $A13, Vehicle_Projections[Scenario], Input_Scenario_Modeled)) -> 0.151374 | Z13: =IF(Input_Scenario_Modeled="Custom", SUMIFS(Custom_Stock_MPG[Vehicle Stock],Custom_Stock_MPG[Year],Calculations!Z$4, Custom_Stock_MPG[[ Technology Type]], $B13, Custom_Stock_MPG[Vehicle Type], $A13, Custom_Stock_MPG[Scenario], Input_Scenario_Modeled), SUMIFS(Vehicle_Projections[Vehicle Stock],Vehicle_Projections[Year],Calculations!Z$4,Vehicle_Projections[Technology Type], $B13, Vehicle_Projections[Vehicle Type], $A13, Vehicle_Projections[Scenario], Input_Scenario_Modeled)) -> 0.148939 | AA13: =IF(Input_Scenario_Modeled="Custom", SUMIFS(Custom_Stock_MPG[Vehicle Stock],Custom_Stock_MPG[Year],Calculations!AA$4, Custom_Stock_MPG[[ Technology Type]], $B13, Custom_Stock_MPG[Vehicle Type], $A13, Custom_Stock_MPG[Scenario], Input_Scenario_Modeled), SUMIFS(Vehicle_Projections[Vehicle Stock],Vehicle_Projections[Year],Calculations!AA$4,Vehicle_Projections[Technology Type], $B13, Vehicle_Projections[Vehicle Type], $A13, Vehicle_Projections[Scenario], Input_Scenario_Modeled)) -> 0.147857 | AB13: =IF(Input_Scenario_Modeled="Custom", SUMIFS(Custom_Stock_MPG[Vehicle Stock],Custom_Stock_MPG[Year],Calculations!AB$4, Custom_Stock_MPG[[ Technology Type]], $B13, Custom_Stock_MPG[Vehicle Type], $A13, Custom_Stock_MPG[Scenario], Input_Scenario_Modeled), SUMIFS(Vehicle_Projections[Vehicle Stock],Vehicle_Projections[Year],Calculations!AB$4,Vehicle_Projections[Technology Type], $B13, Vehicle_Projections[Vehicle Type], $A13, Vehicle_Projections[Scenario], Input_Scenario_Modeled)) -> 0.14831 | AC13: =IF(Input_Scenario_Modeled="Custom", SUMIFS(Custom_Stock_MPG[Vehicle Stock],Custom_Stock_MPG[Year],Calculations!AC$4, Custom_Stock_MPG[[ Technology Type]], $B13, Custom_Stock_MPG[Vehicle Type], $A13, Custom_Stock_MPG[Scenario], Input_Scenario_Modeled), SUMIFS(Vehicle_Projections[Vehicle Stock],Vehicle_Projections[Year],Calculations!AC$4,Vehicle_Projections[Technology Type], $B13, Vehicle_Projections[Vehicle Type], $A13, Vehicle_Projections[Scenario], Input_Scenario_Modeled)) -> 0.149508 | AD13: =IF(Input_Scenario_Modeled="Custom", SUMIFS(Custom_Stock_MPG[Vehicle Stock],Custom_Stock_MPG[Year],Calculations!AD$4, Custom_Stock_MPG[[ Technology Type]], $B13, Custom_Stock_MPG[Vehicle Type], $A13, Custom_Stock_MPG[Scenario], Input_Scenario_Modeled), SUMIFS(Vehicle_Projections[Vehicle Stock],Vehicle_Projections[Year],Calculations!AD$4,Vehicle_Projections[Technology Type], $B13, Vehicle_Projections[Vehicle Type], $A13, Vehicle_Projections[Scenario], Input_Scenario_Modeled)) -> 0.151156 | AE13: =IF(Input_Scenario_Modeled="Custom", SUMIFS(Custom_Stock_MPG[Vehicle Stock],Custom_Stock_MPG[Year],Calculations!AE$4, Custom_Stock_MPG[[ Technology Type]], $B13, Custom_Stock_MPG[Vehicle Type], $A13, Custom_Stock_MPG[Scenario], Input_Scenario_Modeled), SUMIFS(Vehicle_Projections[Vehicle Stock],Vehicle_Projections[Year],Calculations!AE$4,Vehicle_Projections[Technology Type], $B13, Vehicle_Projections[Vehicle Type], $A13, Vehicle_Projections[Scenario], Input_Scenario_Modeled)) -> 0.153103 | AF13: =IF(Input_Scenario_Modeled="Custom", SUMIFS(Custom_Stock_MPG[Vehicle Stock],Custom_Stock_MPG[Year],Calculations!AF$4, Custom_Stock_MPG[[ Technology Type]], $B13, Custom_Stock_MPG[Vehicle Type], $A13, Custom_Stock_MPG[Scenario], Input_Scenario_Modeled), SUMIFS(Vehicle_Projections[Vehicle Stock],Vehicle_Projections[Year],Calculations!AF$4,Vehicle_Projections[Technology Type], $B13, Vehicle_Projections[Vehicle Type], $A13, Vehicle_Projections[Scenario], Input_Scenario_Modeled)) -> 0.155065 | AG13: =IF(Input_Scenario_Modeled="Custom", SUMIFS(Custom_Stock_MPG[Vehicle Stock],Custom_Stock_MPG[Year],Calculations!AG$4, Custom_Stock_MPG[[ Technology Type]], $B13, Custom_Stock_MPG[Vehicle Type], $A13, Custom_Stock_MPG[Scenario], Input_Scenario_Modeled), SUMIFS(Vehicle_Projections[Vehicle Stock],Vehicle_Projections[Year],Calculations!AG$4,Vehicle_Projections[Technology Type], $B13, Vehicle_Projections[Vehicle Type], $A13, Vehicle_Projections[Scenario], Input_Scenario_Modeled)) -> 0.157039 | AH13: =IF(Input_Scenario_Modeled="Custom", SUMIFS(Custom_Stock_MPG[Vehicle Stock],Custom_Stock_MPG[Year],Calculations!AH$4, Custom_Stock_MPG[[ Technology Type]], $B13, Custom_Stock_MPG[Vehicle Type], $A13, Custom_Stock_MPG[Scenario], Input_Scenario_Modeled), SUMIFS(Vehicle_Projections[Vehicle Stock],Vehicle_Projections[Year],Calculations!AH$4,Vehicle_Projections[Technology Type], $B13, Vehicle_Projections[Vehicle Type], $A13, Vehicle_Projections[Scenario], Input_Scenario_Modeled)) -> 0.159002 | AI13: =IF(Input_Scenario_Modeled="Custom", SUMIFS(Custom_Stock_MPG[Vehicle Stock],Custom_Stock_MPG[Year],Calculations!AI$4, Custom_Stock_MPG[[ Technology Type]], $B13, Custom_Stock_MPG[Vehicle Type], $A13, Custom_Stock_MPG[Scenario], Input_Scenario_Modeled), SUMIFS(Vehicle_Projections[Vehicle Stock],Vehicle_Projections[Year],Calculations!AI$4,Vehicle_Projections[Technology Type], $B13, Vehicle_Projections[Vehicle Type], $A13, Vehicle_Projections[Scenario], Input_Scenario_Modeled)) -> 0.160906 | AJ13: =IF(Input_Scenario_Modeled="Custom", SUMIFS(Custom_Stock_MPG[Vehicle Stock],Custom_Stock_MPG[Year],Calculations!AJ$4, Custom_Stock_MPG[[ Technology Type]], $B13, Custom_Stock_MPG[Vehicle Type], $A13, Custom_Stock_MPG[Scenario], Input_Scenario_Modeled), SUMIFS(Vehicle_Projections[Vehicle Stock],Vehicle_Projections[Year],Calculations!AJ$4,Vehicle_Projections[Technology Type], $B13, Vehicle_Projections[Vehicle Type], $A13, Vehicle_Projections[Scenario], Input_Scenario_Modeled)) -> 0.16274
A14: Passenger Cars | B14: Plug-in 40 Gasoline Hybrid | C14: Electricity | D14: Stock | E14: =IF(Input_Scenario_Modeled="Custom", SUMIFS(Custom_Stock_MPG[Vehicle Stock],Custom_Stock_MPG[Year],Calculations!E$4, Custom_Stock_MPG[[ Technology Type]], $B14, Custom_Stock_MPG[Vehicle Type], $A14, Custom_Stock_MPG[Scenario], Input_Scenario_Modeled), SUMIFS(Vehicle_Projections[Vehicle Stock],Vehicle_Projections[Year],Calculations!E$4,Vehicle_Projections[Technology Type], $B14, Vehicle_Projections[Vehicle Type], $A14, Vehicle_Projections[Scenario], Input_Scenario_Modeled)) -> 0.298844 | F14: =IF(Input_Scenario_Modeled="Custom", SUMIFS(Custom_Stock_MPG[Vehicle Stock],Custom_Stock_MPG[Year],Calculations!F$4, Custom_Stock_MPG[[ Technology Type]], $B14, Custom_Stock_MPG[Vehicle Type], $A14, Custom_Stock_MPG[Scenario], Input_Scenario_Modeled), SUMIFS(Vehicle_Projections[Vehicle Stock],Vehicle_Projections[Year],Calculations!F$4,Vehicle_Projections[Technology Type], $B14, Vehicle_Projections[Vehicle Type], $A14, Vehicle_Projections[Scenario], Input_Scenario_Modeled)) -> 0.362827 | G14: =IF(Input_Scenario_Modeled="Custom", SUMIFS(Custom_Stock_MPG[Vehicle Stock],Custom_Stock_MPG[Year],Calculations!G$4, Custom_Stock_MPG[[ Technology Type]], $B14, Custom_Stock_MPG[Vehicle Type], $A14, Custom_Stock_MPG[Scenario], Input_Scenario_Modeled), SUMIFS(Vehicle_Projections[Vehicle Stock],Vehicle_Projections[Year],Calculations!G$4,Vehicle_Projections[Technology Type], $B14, Vehicle_Projections[Vehicle Type], $A14, Vehicle_Projections[Scenario], Input_Scenario_Modeled)) -> 0.415992 | H14: =IF(Input_Scenario_Modeled="Custom", SUMIFS(Custom_Stock_MPG[Vehicle Stock],Custom_Stock_MPG[Year],Calculations!H$4, Custom_Stock_MPG[[ Technology Type]], $B14, Custom_Stock_MPG[Vehicle Type], $A14, Custom_Stock_MPG[Scenario], Input_Scenario_Modeled), SUMIFS(Vehicle_Projections[Vehicle Stock],Vehicle_Projections[Year],Calculations!H$4,Vehicle_Projections[Technology Type], $B14, Vehicle_Projections[Vehicle Type], $A14, Vehicle_Projections[Scenario], Input_Scenario_Modeled)) -> 0.460133 | I14: =IF(Input_Scenario_Modeled="Custom", SUMIFS(Custom_Stock_MPG[Vehicle Stock],Custom_Stock_MPG[Year],Calculations!I$4, Custom_Stock_MPG[[ Technology Type]], $B14, Custom_Stock_MPG[Vehicle Type], $A14, Custom_Stock_MPG[Scenario], Input_Scenario_Modeled), SUMIFS(Vehicle_Projections[Vehicle Stock],Vehicle_Projections[Year],Calculations!I$4,Vehicle_Projections[Technology Type], $B14, Vehicle_Projections[Vehicle Type], $A14, Vehicle_Projections[Scenario], Input_Scenario_Modeled)) -> 0.499778 | J14: =IF(Input_Scenario_Modeled="Custom", SUMIFS(Custom_Stock_MPG[Vehicle Stock],Custom_Stock_MPG[Year],Calculations!J$4, Custom_Stock_MPG[[ Technology Type]], $B14, Custom_Stock_MPG[Vehicle Type], $A14, Custom_Stock_MPG[Scenario], Input_Scenario_Modeled), SUMIFS(Vehicle_Projections[Vehicle Stock],Vehicle_Projections[Year],Calculations!J$4,Vehicle_Projections[Technology Type], $B14, Vehicle_Projections[Vehicle Type], $A14, Vehicle_Projections[Scenario], Input_Scenario_Modeled)) -> 0.535591 | K14: =IF(Input_Scenario_Modeled="Custom", SUMIFS(Custom_Stock_MPG[Vehicle Stock],Custom_Stock_MPG[Year],Calculations!K$4, Custom_Stock_MPG[[ Technology Type]], $B14, Custom_Stock_MPG[Vehicle Type], $A14, Custom_Stock_MPG[Scenario], Input_Scenario_Modeled), SUMIFS(Vehicle_Projections[Vehicle Stock],Vehicle_Projections[Year],Calculations!K$4,Vehicle_Projections[Technology Type], $B14, Vehicle_Projections[Vehicle Type], $A14, Vehicle_Projections[Scenario], Input_Scenario_Modeled)) -> 0.562121 | L14: =IF(Input_Scenario_Modeled="Custom", SUMIFS(Custom_Stock_MPG[Vehicle Stock],Custom_Stock_MPG[Year],Calculations!L$4, Custom_Stock_MPG[[ Technology Type]], $B14, Custom_Stock_MPG[Vehicle Type], $A14, Custom_Stock_MPG[Scenario], Input_Scenario_Modeled), SUMIFS(Vehicle_Projections[Vehicle Stock],Vehicle_Projections[Year],Calculations!L$4,Vehicle_Projections[Technology Type], $B14, Vehicle_Projections[Vehicle Type], $A14, Vehicle_Projections[Scenario], Input_Scenario_Modeled)) -> 0.587908 | M14: =IF(Input_Scenario_Modeled="Custom", SUMIFS(Custom_Stock_MPG[Vehicle Stock],Custom_Stock_MPG[Year],Calculations!M$4, Custom_Stock_MPG[[ Technology Type]], $B14, Custom_Stock_MPG[Vehicle Type], $A14, Custom_Stock_MPG[Scenario], Input_Scenario_Modeled), SUMIFS(Vehicle_Projections[Vehicle Stock],Vehicle_Projections[Year],Calculations!M$4,Vehicle_Projections[Technology Type], $B14, Vehicle_Projections[Vehicle Type], $A14, Vehicle_Projections[Scenario], Input_Scenario_Modeled)) -> 0.614149 | N14: =IF(Input_Scenario_Modeled="Custom", SUMIFS(Custom_Stock_MPG[Vehicle Stock],Custom_Stock_MPG[Year],Calculations!N$4, Custom_Stock_MPG[[ Technology Type]], $B14, Custom_Stock_MPG[Vehicle Type], $A14, Custom_Stock_MPG[Scenario], Input_Scenario_Modeled), SUMIFS(Vehicle_Projections[Vehicle Stock],Vehicle_Projections[Year],Calculations!N$4,Vehicle_Projections[Technology Type], $B14, Vehicle_Projections[Vehicle Type], $A14, Vehicle_Projections[Scenario], Input_Scenario_Modeled)) -> 0.641562 | O14: =IF(Input_Scenario_Modeled="Custom", SUMIFS(Custom_Stock_MPG[Vehicle Stock],Custom_Stock_MPG[Year],Calculations!O$4, Custom_Stock_MPG[[ Technology Type]], $B14, Custom_Stock_MPG[Vehicle Type], $A14, Custom_Stock_MPG[Scenario], Input_Scenario_Modeled), SUMIFS(Vehicle_Projections[Vehicle Stock],Vehicle_Projections[Year],Calculations!O$4,Vehicle_Projections[Technology Type], $B14, Vehicle_Projections[Vehicle Type], $A14, Vehicle_Projections[Scenario], Input_Scenario_Modeled)) -> 0.670468 | P14: =IF(Input_Scenario_Modeled="Custom", SUMIFS(Custom_Stock_MPG[Vehicle Stock],Custom_Stock_MPG[Year],Calculations!P$4, Custom_Stock_MPG[[ Technology Type]], $B14, Custom_Stock_MPG[Vehicle Type], $A14, Custom_Stock_MPG[Scenario], Input_Scenario_Modeled), SUMIFS(Vehicle_Projections[Vehicle Stock],Vehicle_Projections[Year],Calculations!P$4,Vehicle_Projections[Technology Type], $B14, Vehicle_Projections[Vehicle Type], $A14, Vehicle_Projections[Scenario], Input_Scenario_Modeled)) -> 0.703433 | Q14: =IF(Input_Scenario_Modeled="Custom", SUMIFS(Custom_Stock_MPG[Vehicle Stock],Custom_Stock_MPG[Year],Calculations!Q$4, Custom_Stock_MPG[[ Technology Type]], $B14, Custom_Stock_MPG[Vehicle Type], $A14, Custom_Stock_MPG[Scenario], Input_Scenario_Modeled), SUMIFS(Vehicle_Projections[Vehicle Stock],Vehicle_Projections[Year],Calculations!Q$4,Vehicle_Projections[Technology Type], $B14, Vehicle_Projections[Vehicle Type], $A14, Vehicle_Projections[Scenario], Input_Scenario_Modeled)) -> 0.737115 | R14: =IF(Input_Scenario_Modeled="Custom", SUMIFS(Custom_Stock_MPG[Vehicle Stock],Custom_Stock_MPG[Year],Calculations!R$4, Custom_Stock_MPG[[ Technology Type]], $B14, Custom_Stock_MPG[Vehicle Type], $A14, Custom_Stock_MPG[Scenario], Input_Scenario_Modeled), SUMIFS(Vehicle_Projections[Vehicle Stock],Vehicle_Projections[Year],Calculations!R$4,Vehicle_Projections[Technology Type], $B14, Vehicle_Projections[Vehicle Type], $A14, Vehicle_Projections[Scenario], Input_Scenario_Modeled)) -> 0.770166 | S14: =IF(Input_Scenario_Modeled="Custom", SUMIFS(Custom_Stock_MPG[Vehicle Stock],Custom_Stock_MPG[Year],Calculations!S$4, Custom_Stock_MPG[[ Technology Type]], $B14, Custom_Stock_MPG[Vehicle Type], $A14, Custom_Stock_MPG[Scenario], Input_Scenario_Modeled), SUMIFS(Vehicle_Projections[Vehicle Stock],Vehicle_Projections[Year],Calculations!S$4,Vehicle_Projections[Technology Type], $B14, Vehicle_Projections[Vehicle Type], $A14, Vehicle_Projections[Scenario], Input_Scenario_Modeled)) -> 0.802966 | T14: =IF(Input_Scenario_Modeled="Custom", SUMIFS(Custom_Stock_MPG[Vehicle Stock],Custom_Stock_MPG[Year],Calculations!T$4, Custom_Stock_MPG[[ Technology Type]], $B14, Custom_Stock_MPG[Vehicle Type], $A14, Custom_Stock_MPG[Scenario], Input_Scenario_Modeled), SUMIFS(Vehicle_Projections[Vehicle Stock],Vehicle_Projections[Year],Calculations!T$4,Vehicle_Projections[Technology Type], $B14, Vehicle_Projections[Vehicle Type], $A14, Vehicle_Projections[Scenario], Input_Scenario_Modeled)) -> 0.835119 | U14: =IF(Input_Scenario_Modeled="Custom", SUMIFS(Custom_Stock_MPG[Vehicle Stock],Custom_Stock_MPG[Year],Calculations!U$4, Custom_Stock_MPG[[ Technology Type]], $B14, Custom_Stock_MPG[Vehicle Type], $A14, Custom_Stock_MPG[Scenario], Input_Scenario_Modeled), SUMIFS(Vehicle_Projections[Vehicle Stock],Vehicle_Projections[Year],Calculations!U$4,Vehicle_Projections[Technology Type], $B14, Vehicle_Projections[Vehicle Type], $A14, Vehicle_Projections[Scenario], Input_Scenario_Modeled)) -> 0.867661 | V14: =IF(Input_Scenario_Modeled="Custom", SUMIFS(Custom_Stock_MPG[Vehicle Stock],Custom_Stock_MPG[Year],Calculations!V$4, Custom_Stock_MPG[[ Technology Type]], $B14, Custom_Stock_MPG[Vehicle Type], $A14, Custom_Stock_MPG[Scenario], Input_Scenario_Modeled), SUMIFS(Vehicle_Projections[Vehicle Stock],Vehicle_Projections[Year],Calculations!V$4,Vehicle_Projections[Technology Type], $B14, Vehicle_Projections[Vehicle Type], $A14, Vehicle_Projections[Scenario], Input_Scenario_Modeled)) -> 0.901666 | W14: =IF(Input_Scenario_Modeled="Custom", SUMIFS(Custom_Stock_MPG[Vehicle Stock],Custom_Stock_MPG[Year],Calculations!W$4, Custom_Stock_MPG[[ Technology Type]], $B14, Custom_Stock_MPG[Vehicle Type], $A14, Custom_Stock_MPG[Scenario], Input_Scenario_Modeled), SUMIFS(Vehicle_Projections[Vehicle Stock],Vehicle_Projections[Year],Calculations!W$4,Vehicle_Projections[Technology Type], $B14, Vehicle_Projections[Vehicle Type], $A14, Vehicle_Projections[Scenario], Input_Scenario_Modeled)) -> 0.937349 | X14: =IF(Input_Scenario_Modeled="Custom", SUMIFS(Custom_Stock_MPG[Vehicle Stock],Custom_Stock_MPG[Year],Calculations!X$4, Custom_Stock_MPG[[ Technology Type]], $B14, Custom_Stock_MPG[Vehicle Type], $A14, Custom_Stock_MPG[Scenario], Input_Scenario_Modeled), SUMIFS(Vehicle_Projections[Vehicle Stock],Vehicle_Projections[Year],Calculations!X$4,Vehicle_Projections[Technology Type], $B14, Vehicle_Projections[Vehicle Type], $A14, Vehicle_Projections[Scenario], Input_Scenario_Modeled)) -> 0.975489 | Y14: =IF(Input_Scenario_Modeled="Custom", SUMIFS(Custom_Stock_MPG[Vehicle Stock],Custom_Stock_MPG[Year],Calculations!Y$4, Custom_Stock_MPG[[ Technology Type]], $B14, Custom_Stock_MPG[Vehicle Type], $A14, Custom_Stock_MPG[Scenario], Input_Scenario_Modeled), SUMIFS(Vehicle_Projections[Vehicle Stock],Vehicle_Projections[Year],Calculations!Y$4,Vehicle_Projections[Technology Type], $B14, Vehicle_Projections[Vehicle Type], $A14, Vehicle_Projections[Scenario], Input_Scenario_Modeled)) -> 1.016525 | Z14: =IF(Input_Scenario_Modeled="Custom", SUMIFS(Custom_Stock_MPG[Vehicle Stock],Custom_Stock_MPG[Year],Calculations!Z$4, Custom_Stock_MPG[[ Technology Type]], $B14, Custom_Stock_MPG[Vehicle Type], $A14, Custom_Stock_MPG[Scenario], Input_Scenario_Modeled), SUMIFS(Vehicle_Projections[Vehicle Stock],Vehicle_Projections[Year],Calculations!Z$4,Vehicle_Projections[Technology Type], $B14, Vehicle_Projections[Vehicle Type], $A14, Vehicle_Projections[Scenario], Input_Scenario_Modeled)) -> 1.059218 | AA14: =IF(Input_Scenario_Modeled="Custom", SUMIFS(Custom_Stock_MPG[Vehicle Stock],Custom_Stock_MPG[Year],Calculations!AA$4, Custom_Stock_MPG[[ Technology Type]], $B14, Custom_Stock_MPG[Vehicle Type], $A14, Custom_Stock_MPG[Scenario], Input_Scenario_Modeled), SUMIFS(Vehicle_Projections[Vehicle Stock],Vehicle_Projections[Year],Calculations!AA$4,Vehicle_Projections[Technology Type], $B14, Vehicle_Projections[Vehicle Type], $A14, Vehicle_Projections[Scenario], Input_Scenario_Modeled)) -> 1.102973 | AB14: =IF(Input_Scenario_Modeled="Custom", SUMIFS(Custom_Stock_MPG[Vehicle Stock],Custom_Stock_MPG[Year],Calculations!AB$4, Custom_Stock_MPG[[ Technology Type]], $B14, Custom_Stock_MPG[Vehicle Type], $A14, Custom_Stock_MPG[Scenario], Input_Scenario_Modeled), SUMIFS(Vehicle_Projections[Vehicle Stock],Vehicle_Projections[Year],Calculations!AB$4,Vehicle_Projections[Technology Type], $B14, Vehicle_Projections[Vehicle Type], $A14, Vehicle_Projections[Scenario], Input_Scenario_Modeled)) -> 1.148615 | AC14: =IF(Input_Scenario_Modeled="Custom", SUMIFS(Custom_Stock_MPG[Vehicle Stock],Custom_Stock_MPG[Year],Calculations!AC$4, Custom_Stock_MPG[[ Technology Type]], $B14, Custom_Stock_MPG[Vehicle Type], $A14, Custom_Stock_MPG[Scenario], Input_Scenario_Modeled), SUMIFS(Vehicle_Projections[Vehicle Stock],Vehicle_Projections[Year],Calculations!AC$4,Vehicle_Projections[Technology Type], $B14, Vehicle_Projections[Vehicle Type], $A14, Vehicle_Projections[Scenario], Input_Scenario_Modeled)) -> 1.194934 | AD14: =IF(Input_Scenario_Modeled="Custom", SUMIFS(Custom_Stock_MPG[Vehicle Stock],Custom_Stock_MPG[Year],Calculations!AD$4, Custom_Stock_MPG[[ Technology Type]], $B14, Custom_Stock_MPG[Vehicle Type], $A14, Custom_Stock_MPG[Scenario], Input_Scenario_Modeled), SUMIFS(Vehicle_Projections[Vehicle Stock],Vehicle_Projections[Year],Calculations!AD$4,Vehicle_Projections[Technology Type], $B14, Vehicle_Projections[Vehicle Type], $A14, Vehicle_Projections[Scenario], Input_Scenario_Modeled)) -> 1.241822 | AE14: =IF(Input_Scenario_Modeled="Custom", SUMIFS(Custom_Stock_MPG[Vehicle Stock],Custom_Stock_MPG[Year],Calculations!AE$4, Custom_Stock_MPG[[ Technology Type]], $B14, Custom_Stock_MPG[Vehicle Type], $A14, Custom_Stock_MPG[Scenario], Input_Scenario_Modeled), SUMIFS(Vehicle_Projections[Vehicle Stock],Vehicle_Projections[Year],Calculations!AE$4,Vehicle_Projections[Technology Type], $B14, Vehicle_Projections[Vehicle Type], $A14, Vehicle_Projections[Scenario], Input_Scenario_Modeled)) -> 1.289206 | AF14: =IF(Input_Scenario_Modeled="Custom", SUMIFS(Custom_Stock_MPG[Vehicle Stock],Custom_Stock_MPG[Year],Calculations!AF$4, Custom_Stock_MPG[[ Technology Type]], $B14, Custom_Stock_MPG[Vehicle Type], $A14, Custom_Stock_MPG[Scenario], Input_Scenario_Modeled), SUMIFS(Vehicle_Projections[Vehicle Stock],Vehicle_Projections[Year],Calculations!AF$4,Vehicle_Projections[Technology Type], $B14, Vehicle_Projections[Vehicle Type], $A14, Vehicle_Projections[Scenario], Input_Scenario_Modeled)) -> 1.335494 | AG14: =IF(Input_Scenario_Modeled="Custom", SUMIFS(Custom_Stock_MPG[Vehicle Stock],Custom_Stock_MPG[Year],Calculations!AG$4, Custom_Stock_MPG[[ Technology Type]], $B14, Custom_Stock_MPG[Vehicle Type], $A14, Custom_Stock_MPG[Scenario], Input_Scenario_Modeled), SUMIFS(Vehicle_Projections[Vehicle Stock],Vehicle_Projections[Year],Calculations!AG$4,Vehicle_Projections[Technology Type], $B14, Vehicle_Projections[Vehicle Type], $A14, Vehicle_Projections[Scenario], Input_Scenario_Modeled)) -> 1.381613 | AH14: =IF(Input_Scenario_Modeled="Custom", SUMIFS(Custom_Stock_MPG[Vehicle Stock],Custom_Stock_MPG[Year],Calculations!AH$4, Custom_Stock_MPG[[ Technology Type]], $B14, Custom_Stock_MPG[Vehicle Type], $A14, Custom_Stock_MPG[Scenario], Input_Scenario_Modeled), SUMIFS(Vehicle_Projections[Vehicle Stock],Vehicle_Projections[Year],Calculations!AH$4,Vehicle_Projections[Technology Type], $B14, Vehicle_Projections[Vehicle Type], $A14, Vehicle_Projections[Scenario], Input_Scenario_Modeled)) -> 1.426919 | AI14: =IF(Input_Scenario_Modeled="Custom", SUMIFS(Custom_Stock_MPG[Vehicle Stock],Custom_Stock_MPG[Year],Calculations!AI$4, Custom_Stock_MPG[[ Technology Type]], $B14, Custom_Stock_MPG[Vehicle Type], $A14, Custom_Stock_MPG[Scenario], Input_Scenario_Modeled), SUMIFS(Vehicle_Projections[Vehicle Stock],Vehicle_Projections[Year],Calculations!AI$4,Vehicle_Projections[Technology Type], $B14, Vehicle_Projections[Vehicle Type], $A14, Vehicle_Projections[Scenario], Input_Scenario_Modeled)) -> 1.470883 | AJ14: =IF(Input_Scenario_Modeled="Custom", SUMIFS(Custom_Stock_MPG[Vehicle Stock],Custom_Stock_MPG[Year],Calculations!AJ$4, Custom_Stock_MPG[[ Technology Type]], $B14, Custom_Stock_MPG[Vehicle Type], $A14, Custom_Stock_MPG[Scenario], Input_Scenario_Modeled), SUMIFS(Vehicle_Projections[Vehicle Stock],Vehicle_Projections[Year],Calculations!AJ$4,Vehicle_Projections[Technology Type], $B14, Vehicle_Projections[Vehicle Type], $A14, Vehicle_Projections[Scenario], Input_Scenario_Modeled)) -> 1.513304
A15: Light Trucks | B15: Gasoline ICE Vehicles | C15: Gasoline | D15: Stock | E15: =IF(Input_Scenario_Modeled="Custom", SUMIFS(Custom_Stock_MPG[Vehicle Stock],Custom_Stock_MPG[Year],Calculations!E$4, Custom_Stock_MPG[[ Technology Type]], $B15, Custom_Stock_MPG[Vehicle Type], $A15, Custom_Stock_MPG[Scenario], Input_Scenario_Modeled), SUMIFS(Vehicle_Projections[Vehicle Stock],Vehicle_Projections[Year],Calculations!E$4,Vehicle_Projections[Technology Type], $B15, Vehicle_Projections[Vehicle Type], $A15, Vehicle_Projections[Scenario], Input_Scenario_Modeled)) -> 106.130341 | F15: =IF(Input_Scenario_Modeled="Custom", SUMIFS(Custom_Stock_MPG[Vehicle Stock],Custom_Stock_MPG[Year],Calculations!F$4, Custom_Stock_MPG[[ Technology Type]], $B15, Custom_Stock_MPG[Vehicle Type], $A15, Custom_Stock_MPG[Scenario], Input_Scenario_Modeled), SUMIFS(Vehicle_Projections[Vehicle Stock],Vehicle_Projections[Year],Calculations!F$4,Vehicle_Projections[Technology Type], $B15, Vehicle_Projections[Vehicle Type], $A15, Vehicle_Projections[Scenario], Input_Scenario_Modeled)) -> 107.117836 | G15: =IF(Input_Scenario_Modeled="Custom", SUMIFS(Custom_Stock_MPG[Vehicle Stock],Custom_Stock_MPG[Year],Calculations!G$4, Custom_Stock_MPG[[ Technology Type]], $B15, Custom_Stock_MPG[Vehicle Type], $A15, Custom_Stock_MPG[Scenario], Input_Scenario_Modeled), SUMIFS(Vehicle_Projections[Vehicle Stock],Vehicle_Projections[Year],Calculations!G$4,Vehicle_Projections[Technology Type], $B15, Vehicle_Projections[Vehicle Type], $A15, Vehicle_Projections[Scenario], Input_Scenario_Modeled)) -> 108.288231 | H15: =IF(Input_Scenario_Modeled="Custom", SUMIFS(Custom_Stock_MPG[Vehicle Stock],Custom_Stock_MPG[Year],Calculations!H$4, Custom_Stock_MPG[[ Technology Type]], $B15, Custom_Stock_MPG[Vehicle Type], $A15, Custom_Stock_MPG[Scenario], Input_Scenario_Modeled), SUMIFS(Vehicle_Projections[Vehicle Stock],Vehicle_Projections[Year],Calculations!H$4,Vehicle_Projections[Technology Type], $B15, Vehicle_Projections[Vehicle Type], $A15, Vehicle_Projections[Scenario], Input_Scenario_Modeled)) -> 109.593132 | I15: =IF(Input_Scenario_Modeled="Custom", SUMIFS(Custom_Stock_MPG[Vehicle Stock],Custom_Stock_MPG[Year],Calculations!I$4, Custom_Stock_MPG[[ Technology Type]], $B15, Custom_Stock_MPG[Vehicle Type], $A15, Custom_Stock_MPG[Scenario], Input_Scenario_Modeled), SUMIFS(Vehicle_Projections[Vehicle Stock],Vehicle_Projections[Year],Calculations!I$4,Vehicle_Projections[Technology Type], $B15, Vehicle_Projections[Vehicle Type], $A15, Vehicle_Projections[Scenario], Input_Scenario_Modeled)) -> 111.108971 | J15: =IF(Input_Scenario_Modeled="Custom", SUMIFS(Custom_Stock_MPG[Vehicle Stock],Custom_Stock_MPG[Year],Calculations!J$4, Custom_Stock_MPG[[ Technology Type]], $B15, Custom_Stock_MPG[Vehicle Type], $A15, Custom_Stock_MPG[Scenario], Input_Scenario_Modeled), SUMIFS(Vehicle_Projections[Vehicle Stock],Vehicle_Projections[Year],Calculations!J$4,Vehicle_Projections[Technology Type], $B15, Vehicle_Projections[Vehicle Type], $A15, Vehicle_Projections[Scenario], Input_Scenario_Modeled)) -> 112.797142 | K15: =IF(Input_Scenario_Modeled="Custom", SUMIFS(Custom_Stock_MPG[Vehicle Stock],Custom_Stock_MPG[Year],Calculations!K$4, Custom_Stock_MPG[[ Technology Type]], $B15, Custom_Stock_MPG[Vehicle Type], $A15, Custom_Stock_MPG[Scenario], Input_Scenario_Modeled), SUMIFS(Vehicle_Projections[Vehicle Stock],Vehicle_Projections[Year],Calculations!K$4,Vehicle_Projections[Technology Type], $B15, Vehicle_Projections[Vehicle Type], $A15, Vehicle_Projections[Scenario], Input_Scenario_Modeled)) -> 114.501457 | L15: =IF(Input_Scenario_Modeled="Custom", SUMIFS(Custom_Stock_MPG[Vehicle Stock],Custom_Stock_MPG[Year],Calculations!L$4, Custom_Stock_MPG[[ Technology Type]], $B15, Custom_Stock_MPG[Vehicle Type], $A15, Custom_Stock_MPG[Scenario], Input_Scenario_Modeled), SUMIFS(Vehicle_Projections[Vehicle Stock],Vehicle_Projections[Year],Calculations!L$4,Vehicle_Projections[Technology Type], $B15, Vehicle_Projections[Vehicle Type], $A15, Vehicle_Projections[Scenario], Input_Scenario_Modeled)) -> 116.147202 | M15: =IF(Input_Scenario_Modeled="Custom", SUMIFS(Custom_Stock_MPG[Vehicle Stock],Custom_Stock_MPG[Year],Calculations!M$4, Custom_Stock_MPG[[ Technology Type]], $B15, Custom_Stock_MPG[Vehicle Type], $A15, Custom_Stock_MPG[Scenario], Input_Scenario_Modeled), SUMIFS(Vehicle_Projections[Vehicle Stock],Vehicle_Projections[Year],Calculations!M$4,Vehicle_Projections[Technology Type], $B15, Vehicle_Projections[Vehicle Type], $A15, Vehicle_Projections[Scenario], Input_Scenario_Modeled)) -> 117.662895 | N15: =IF(Input_Scenario_Modeled="Custom", SUMIFS(Custom_Stock_MPG[Vehicle Stock],Custom_Stock_MPG[Year],Calculations!N$4, Custom_Stock_MPG[[ Technology Type]], $B15, Custom_Stock_MPG[Vehicle Type], $A15, Custom_Stock_MPG[Scenario], Input_Scenario_Modeled), SUMIFS(Vehicle_Projections[Vehicle Stock],Vehicle_Projections[Year],Calculations!N$4,Vehicle_Projections[Technology Type], $B15, Vehicle_Projections[Vehicle Type], $A15, Vehicle_Projections[Scenario], Input_Scenario_Modeled)) -> 119.020294 | O15: =IF(Input_Scenario_Modeled="Custom", SUMIFS(Custom_Stock_MPG[Vehicle Stock],Custom_Stock_MPG[Year],Calculations!O$4, Custom_Stock_MPG[[ Technology Type]], $B15, Custom_Stock_MPG[Vehicle Type], $A15, Custom_Stock_MPG[Scenario], Input_Scenario_Modeled), SUMIFS(Vehicle_Projections[Vehicle Stock],Vehicle_Projections[Year],Calculations!O$4,Vehicle_Projections[Technology Type], $B15, Vehicle_Projections[Vehicle Type], $A15, Vehicle_Projections[Scenario], Input_Scenario_Modeled)) -> 120.180473 | P15: =IF(Input_Scenario_Modeled="Custom", SUMIFS(Custom_Stock_MPG[Vehicle Stock],Custom_Stock_MPG[Year],Calculations!P$4, Custom_Stock_MPG[[ Technology Type]], $B15, Custom_Stock_MPG[Vehicle Type], $A15, Custom_Stock_MPG[Scenario], Input_Scenario_Modeled), SUMIFS(Vehicle_Projections[Vehicle Stock],Vehicle_Projections[Year],Calculations!P$4,Vehicle_Projections[Technology Type], $B15, Vehicle_Projections[Vehicle Type], $A15, Vehicle_Projections[Scenario], Input_Scenario_Modeled)) -> 121.083443 | Q15: =IF(Input_Scenario_Modeled="Custom", SUMIFS(Custom_Stock_MPG[Vehicle Stock],Custom_Stock_MPG[Year],Calculations!Q$4, Custom_Stock_MPG[[ Technology Type]], $B15, Custom_Stock_MPG[Vehicle Type], $A15, Custom_Stock_MPG[Scenario], Input_Scenario_Modeled), SUMIFS(Vehicle_Projections[Vehicle Stock],Vehicle_Projections[Year],Calculations!Q$4,Vehicle_Projections[Technology Type], $B15, Vehicle_Projections[Vehicle Type], $A15, Vehicle_Projections[Scenario], Input_Scenario_Modeled)) -> 121.774307 | R15: =IF(Input_Scenario_Modeled="Custom", SUMIFS(Custom_Stock_MPG[Vehicle Stock],Custom_Stock_MPG[Year],Calculations!R$4, Custom_Stock_MPG[[ Technology Type]], $B15, Custom_Stock_MPG[Vehicle Type], $A15, Custom_Stock_MPG[Scenario], Input_Scenario_Modeled), SUMIFS(Vehicle_Projections[Vehicle Stock],Vehicle_Projections[Year],Calculations!R$4,Vehicle_Projections[Technology Type], $B15, Vehicle_Projections[Vehicle Type], $A15, Vehicle_Projections[Scenario], Input_Scenario_Modeled)) -> 122.263672 | S15: =IF(Input_Scenario_Modeled="Custom", SUMIFS(Custom_Stock_MPG[Vehicle Stock],Custom_Stock_MPG[Year],Calculations!S$4, Custom_Stock_MPG[[ Technology Type]], $B15, Custom_Stock_MPG[Vehicle Type], $A15, Custom_Stock_MPG[Scenario], Input_Scenario_Modeled), SUMIFS(Vehicle_Projections[Vehicle Stock],Vehicle_Projections[Year],Calculations!S$4,Vehicle_Projections[Technology Type], $B15, Vehicle_Projections[Vehicle Type], $A15, Vehicle_Projections[Scenario], Input_Scenario_Modeled)) -> 122.525681 | T15: =IF(Input_Scenario_Modeled="Custom", SUMIFS(Custom_Stock_MPG[Vehicle Stock],Custom_Stock_MPG[Year],Calculations!T$4, Custom_Stock_MPG[[ Technology Type]], $B15, Custom_Stock_MPG[Vehicle Type], $A15, Custom_Stock_MPG[Scenario], Input_Scenario_Modeled), SUMIFS(Vehicle_Projections[Vehicle Stock],Vehicle_Projections[Year],Calculations!T$4,Vehicle_Projections[Technology Type], $B15, Vehicle_Projections[Vehicle Type], $A15, Vehicle_Projections[Scenario], Input_Scenario_Modeled)) -> 122.548401 | U15: =IF(Input_Scenario_Modeled="Custom", SUMIFS(Custom_Stock_MPG[Vehicle Stock],Custom_Stock_MPG[Year],Calculations!U$4, Custom_Stock_MPG[[ Technology Type]], $B15, Custom_Stock_MPG[Vehicle Type], $A15, Custom_Stock_MPG[Scenario], Input_Scenario_Modeled), SUMIFS(Vehicle_Projections[Vehicle Stock],Vehicle_Projections[Year],Calculations!U$4,Vehicle_Projections[Technology Type], $B15, Vehicle_Projections[Vehicle Type], $A15, Vehicle_Projections[Scenario], Input_Scenario_Modeled)) -> 122.365128 | V15: =IF(Input_Scenario_Modeled="Custom", SUMIFS(Custom_Stock_MPG[Vehicle Stock],Custom_Stock_MPG[Year],Calculations!V$4, Custom_Stock_MPG[[ Technology Type]], $B15, Custom_Stock_MPG[Vehicle Type], $A15, Custom_Stock_MPG[Scenario], Input_Scenario_Modeled), SUMIFS(Vehicle_Projections[Vehicle Stock],Vehicle_Projections[Year],Calculations!V$4,Vehicle_Projections[Technology Type], $B15, Vehicle_Projections[Vehicle Type], $A15, Vehicle_Projections[Scenario], Input_Scenario_Modeled)) -> 122.018181 | W15: =IF(Input_Scenario_Modeled="Custom", SUMIFS(Custom_Stock_MPG[Vehicle Stock],Custom_Stock_MPG[Year],Calculations!W$4, Custom_Stock_MPG[[ Technology Type]], $B15, Custom_Stock_MPG[Vehicle Type], $A15, Custom_Stock_MPG[Scenario], Input_Scenario_Modeled), SUMIFS(Vehicle_Projections[Vehicle Stock],Vehicle_Projections[Year],Calculations!W$4,Vehicle_Projections[Technology Type], $B15, Vehicle_Projections[Vehicle Type], $A15, Vehicle_Projections[Scenario], Input_Scenario_Modeled)) -> 121.549759 | X15: =IF(Input_Scenario_Modeled="Custom", SUMIFS(Custom_Stock_MPG[Vehicle Stock],Custom_Stock_MPG[Year],Calculations!X$4, Custom_Stock_MPG[[ Technology Type]], $B15, Custom_Stock_MPG[Vehicle Type], $A15, Custom_Stock_MPG[Scenario], Input_Scenario_Modeled), SUMIFS(Vehicle_Projections[Vehicle Stock],Vehicle_Projections[Year],Calculations!X$4,Vehicle_Projections[Technology Type], $B15, Vehicle_Projections[Vehicle Type], $A15, Vehicle_Projections[Scenario], Input_Scenario_Modeled)) -> 120.985565 | Y15: =IF(Input_Scenario_Modeled="Custom", SUMIFS(Custom_Stock_MPG[Vehicle Stock],Custom_Stock_MPG[Year],Calculations!Y$4, Custom_Stock_MPG[[ Technology Type]], $B15, Custom_Stock_MPG[Vehicle Type], $A15, Custom_Stock_MPG[Scenario], Input_Scenario_Modeled), SUMIFS(Vehicle_Projections[Vehicle Stock],Vehicle_Projections[Year],Calculations!Y$4,Vehicle_Projections[Technology Type], $B15, Vehicle_Projections[Vehicle Type], $A15, Vehicle_Projections[Scenario], Input_Scenario_Modeled)) -> 120.33567 | Z15: =IF(Input_Scenario_Modeled="Custom", SUMIFS(Custom_Stock_MPG[Vehicle Stock],Custom_Stock_MPG[Year],Calculations!Z$4, Custom_Stock_MPG[[ Technology Type]], $B15, Custom_Stock_MPG[Vehicle Type], $A15, Custom_Stock_MPG[Scenario], Input_Scenario_Modeled), SUMIFS(Vehicle_Projections[Vehicle Stock],Vehicle_Projections[Year],Calculations!Z$4,Vehicle_Projections[Technology Type], $B15, Vehicle_Projections[Vehicle Type], $A15, Vehicle_Projections[Scenario], Input_Scenario_Modeled)) -> 119.630692 | AA15: =IF(Input_Scenario_Modeled="Custom", SUMIFS(Custom_Stock_MPG[Vehicle Stock],Custom_Stock_MPG[Year],Calculations!AA$4, Custom_Stock_MPG[[ Technology Type]], $B15, Custom_Stock_MPG[Vehicle Type], $A15, Custom_Stock_MPG[Scenario], Input_Scenario_Modeled), SUMIFS(Vehicle_Projections[Vehicle Stock],Vehicle_Projections[Year],Calculations!AA$4,Vehicle_Projections[Technology Type], $B15, Vehicle_Projections[Vehicle Type], $A15, Vehicle_Projections[Scenario], Input_Scenario_Modeled)) -> 118.915253 | AB15: =IF(Input_Scenario_Modeled="Custom", SUMIFS(Custom_Stock_MPG[Vehicle Stock],Custom_Stock_MPG[Year],Calculations!AB$4, Custom_Stock_MPG[[ Technology Type]], $B15, Custom_Stock_MPG[Vehicle Type], $A15, Custom_Stock_MPG[Scenario], Input_Scenario_Modeled), SUMIFS(Vehicle_Projections[Vehicle Stock],Vehicle_Projections[Year],Calculations!AB$4,Vehicle_Projections[Technology Type], $B15, Vehicle_Projections[Vehicle Type], $A15, Vehicle_Projections[Scenario], Input_Scenario_Modeled)) -> 118.181015 | AC15: =IF(Input_Scenario_Modeled="Custom", SUMIFS(Custom_Stock_MPG[Vehicle Stock],Custom_Stock_MPG[Year],Calculations!AC$4, Custom_Stock_MPG[[ Technology Type]], $B15, Custom_Stock_MPG[Vehicle Type], $A15, Custom_Stock_MPG[Scenario], Input_Scenario_Modeled), SUMIFS(Vehicle_Projections[Vehicle Stock],Vehicle_Projections[Year],Calculations!AC$4,Vehicle_Projections[Technology Type], $B15, Vehicle_Projections[Vehicle Type], $A15, Vehicle_Projections[Scenario], Input_Scenario_Modeled)) -> 117.432915 | AD15: =IF(Input_Scenario_Modeled="Custom", SUMIFS(Custom_Stock_MPG[Vehicle Stock],Custom_Stock_MPG[Year],Calculations!AD$4, Custom_Stock_MPG[[ Technology Type]], $B15, Custom_Stock_MPG[Vehicle Type], $A15, Custom_Stock_MPG[Scenario], Input_Scenario_Modeled), SUMIFS(Vehicle_Projections[Vehicle Stock],Vehicle_Projections[Year],Calculations!AD$4,Vehicle_Projections[Technology Type], $B15, Vehicle_Projections[Vehicle Type], $A15, Vehicle_Projections[Scenario], Input_Scenario_Modeled)) -> 116.708931 | AE15: =IF(Input_Scenario_Modeled="Custom", SUMIFS(Custom_Stock_MPG[Vehicle Stock],Custom_Stock_MPG[Year],Calculations!AE$4, Custom_Stock_MPG[[ Technology Type]], $B15, Custom_Stock_MPG[Vehicle Type], $A15, Custom_Stock_MPG[Scenario], Input_Scenario_Modeled), SUMIFS(Vehicle_Projections[Vehicle Stock],Vehicle_Projections[Year],Calculations!AE$4,Vehicle_Projections[Technology Type], $B15, Vehicle_Projections[Vehicle Type], $A15, Vehicle_Projections[Scenario], Input_Scenario_Modeled)) -> 116.007751 | AF15: =IF(Input_Scenario_Modeled="Custom", SUMIFS(Custom_Stock_MPG[Vehicle Stock],Custom_Stock_MPG[Year],Calculations!AF$4, Custom_Stock_MPG[[ Technology Type]], $B15, Custom_Stock_MPG[Vehicle Type], $A15, Custom_Stock_MPG[Scenario], Input_Scenario_Modeled), SUMIFS(Vehicle_Projections[Vehicle Stock],Vehicle_Projections[Year],Calculations!AF$4,Vehicle_Projections[Technology Type], $B15, Vehicle_Projections[Vehicle Type], $A15, Vehicle_Projections[Scenario], Input_Scenario_Modeled)) -> 115.357414 | AG15: =IF(Input_Scenario_Modeled="Custom", SUMIFS(Custom_Stock_MPG[Vehicle Stock],Custom_Stock_MPG[Year],Calculations!AG$4, Custom_Stock_MPG[[ Technology Type]], $B15, Custom_Stock_MPG[Vehicle Type], $A15, Custom_Stock_MPG[Scenario], Input_Scenario_Modeled), SUMIFS(Vehicle_Projections[Vehicle Stock],Vehicle_Projections[Year],Calculations!AG$4,Vehicle_Projections[Technology Type], $B15, Vehicle_Projections[Vehicle Type], $A15, Vehicle_Projections[Scenario], Input_Scenario_Modeled)) -> 114.730209 | AH15: =IF(Input_Scenario_Modeled="Custom", SUMIFS(Custom_Stock_MPG[Vehicle Stock],Custom_Stock_MPG[Year],Calculations!AH$4, Custom_Stock_MPG[[ Technology Type]], $B15, Custom_Stock_MPG[Vehicle Type], $A15, Custom_Stock_MPG[Scenario], Input_Scenario_Modeled), SUMIFS(Vehicle_Projections[Vehicle Stock],Vehicle_Projections[Year],Calculations!AH$4,Vehicle_Projections[Technology Type], $B15, Vehicle_Projections[Vehicle Type], $A15, Vehicle_Projections[Scenario], Input_Scenario_Modeled)) -> 114.135139 | AI15: =IF(Input_Scenario_Modeled="Custom", SUMIFS(Custom_Stock_MPG[Vehicle Stock],Custom_Stock_MPG[Year],Calculations!AI$4, Custom_Stock_MPG[[ Technology Type]], $B15, Custom_Stock_MPG[Vehicle Type], $A15, Custom_Stock_MPG[Scenario], Input_Scenario_Modeled), SUMIFS(Vehicle_Projections[Vehicle Stock],Vehicle_Projections[Year],Calculations!AI$4,Vehicle_Projections[Technology Type], $B15, Vehicle_Projections[Vehicle Type], $A15, Vehicle_Projections[Scenario], Input_Scenario_Modeled)) -> 113.575684 | AJ15: =IF(Input_Scenario_Modeled="Custom", SUMIFS(Custom_Stock_MPG[Vehicle Stock],Custom_Stock_MPG[Year],Calculations!AJ$4, Custom_Stock_MPG[[ Technology Type]], $B15, Custom_Stock_MPG[Vehicle Type], $A15, Custom_Stock_MPG[Scenario], Input_Scenario_Modeled), SUMIFS(Vehicle_Projections[Vehicle Stock],Vehicle_Projections[Year],Calculations!AJ$4,Vehicle_Projections[Technology Type], $B15, Vehicle_Projections[Vehicle Type], $A15, Vehicle_Projections[Scenario], Input_Scenario_Modeled)) -> 113.059967
A16: Light Trucks | B16: Ethanol-Flex Fuel ICE | C16: Gasoline | D16: Stock | E16: =IF(Input_Scenario_Modeled="Custom", SUMIFS(Custom_Stock_MPG[Vehicle Stock],Custom_Stock_MPG[Year],Calculations!E$4, Custom_Stock_MPG[[ Technology Type]], $B16, Custom_Stock_MPG[Vehicle Type], $A16, Custom_Stock_MPG[Scenario], Input_Scenario_Modeled), SUMIFS(Vehicle_Projections[Vehicle Stock],Vehicle_Projections[Year],Calculations!E$4,Vehicle_Projections[Technology Type], $B16, Vehicle_Projections[Vehicle Type], $A16, Vehicle_Projections[Scenario], Input_Scenario_Modeled)) -> 15.253917 | F16: =IF(Input_Scenario_Modeled="Custom", SUMIFS(Custom_Stock_MPG[Vehicle Stock],Custom_Stock_MPG[Year],Calculations!F$4, Custom_Stock_MPG[[ Technology Type]], $B16, Custom_Stock_MPG[Vehicle Type], $A16, Custom_Stock_MPG[Scenario], Input_Scenario_Modeled), SUMIFS(Vehicle_Projections[Vehicle Stock],Vehicle_Projections[Year],Calculations!F$4,Vehicle_Projections[Technology Type], $B16, Vehicle_Projections[Vehicle Type], $A16, Vehicle_Projections[Scenario], Input_Scenario_Modeled)) -> 15.331124 | G16: =IF(Input_Scenario_Modeled="Custom", SUMIFS(Custom_Stock_MPG[Vehicle Stock],Custom_Stock_MPG[Year],Calculations!G$4, Custom_Stock_MPG[[ Technology Type]], $B16, Custom_Stock_MPG[Vehicle Type], $A16, Custom_Stock_MPG[Scenario], Input_Scenario_Modeled), SUMIFS(Vehicle_Projections[Vehicle Stock],Vehicle_Projections[Year],Calculations!G$4,Vehicle_Projections[Technology Type], $B16, Vehicle_Projections[Vehicle Type], $A16, Vehicle_Projections[Scenario], Input_Scenario_Modeled)) -> 15.291395 | H16: =IF(Input_Scenario_Modeled="Custom", SUMIFS(Custom_Stock_MPG[Vehicle Stock],Custom_Stock_MPG[Year],Calculations!H$4, Custom_Stock_MPG[[ Technology Type]], $B16, Custom_Stock_MPG[Vehicle Type], $A16, Custom_Stock_MPG[Scenario], Input_Scenario_Modeled), SUMIFS(Vehicle_Projections[Vehicle Stock],Vehicle_Projections[Year],Calculations!H$4,Vehicle_Projections[Technology Type], $B16, Vehicle_Projections[Vehicle Type], $A16, Vehicle_Projections[Scenario], Input_Scenario_Modeled)) -> 15.196456 | I16: =IF(Input_Scenario_Modeled="Custom", SUMIFS(Custom_Stock_MPG[Vehicle Stock],Custom_Stock_MPG[Year],Calculations!I$4, Custom_Stock_MPG[[ Technology Type]], $B16, Custom_Stock_MPG[Vehicle Type], $A16, Custom_Stock_MPG[Scenario], Input_Scenario_Modeled), SUMIFS(Vehicle_Projections[Vehicle Stock],Vehicle_Projections[Year],Calculations!I$4,Vehicle_Projections[Technology Type], $B16, Vehicle_Projections[Vehicle Type], $A16, Vehicle_Projections[Scenario], Input_Scenario_Modeled)) -> 15.058516 | J16: =IF(Input_Scenario_Modeled="Custom", SUMIFS(Custom_Stock_MPG[Vehicle Stock],Custom_Stock_MPG[Year],Calculations!J$4, Custom_Stock_MPG[[ Technology Type]], $B16, Custom_Stock_MPG[Vehicle Type], $A16, Custom_Stock_MPG[Scenario], Input_Scenario_Modeled), SUMIFS(Vehicle_Projections[Vehicle Stock],Vehicle_Projections[Year],Calculations!J$4,Vehicle_Projections[Technology Type], $B16, Vehicle_Projections[Vehicle Type], $A16, Vehicle_Projections[Scenario], Input_Scenario_Modeled)) -> 14.873129 | K16: =IF(Input_Scenario_Modeled="Custom", SUMIFS(Custom_Stock_MPG[Vehicle Stock],Custom_Stock_MPG[Year],Calculations!K$4, Custom_Stock_MPG[[ Technology Type]], $B16, Custom_Stock_MPG[Vehicle Type], $A16, Custom_Stock_MPG[Scenario], Input_Scenario_Modeled), SUMIFS(Vehicle_Projections[Vehicle Stock],Vehicle_Projections[Year],Calculations!K$4,Vehicle_Projections[Technology Type], $B16, Vehicle_Projections[Vehicle Type], $A16, Vehicle_Projections[Scenario], Input_Scenario_Modeled)) -> 14.647388 | L16: =IF(Input_Scenario_Modeled="Custom", SUMIFS(Custom_Stock_MPG[Vehicle Stock],Custom_Stock_MPG[Year],Calculations!L$4, Custom_Stock_MPG[[ Technology Type]], $B16, Custom_Stock_MPG[Vehicle Type], $A16, Custom_Stock_MPG[Scenario], Input_Scenario_Modeled), SUMIFS(Vehicle_Projections[Vehicle Stock],Vehicle_Projections[Year],Calculations!L$4,Vehicle_Projections[Technology Type], $B16, Vehicle_Projections[Vehicle Type], $A16, Vehicle_Projections[Scenario], Input_Scenario_Modeled)) -> 14.39424 | M16: =IF(Input_Scenario_Modeled="Custom", SUMIFS(Custom_Stock_MPG[Vehicle Stock],Custom_Stock_MPG[Year],Calculations!M$4, Custom_Stock_MPG[[ Technology Type]], $B16, Custom_Stock_MPG[Vehicle Type], $A16, Custom_Stock_MPG[Scenario], Input_Scenario_Modeled), SUMIFS(Vehicle_Projections[Vehicle Stock],Vehicle_Projections[Year],Calculations!M$4,Vehicle_Projections[Technology Type], $B16, Vehicle_Projections[Vehicle Type], $A16, Vehicle_Projections[Scenario], Input_Scenario_Modeled)) -> 14.120316 | N16: =IF(Input_Scenario_Modeled="Custom", SUMIFS(Custom_Stock_MPG[Vehicle Stock],Custom_Stock_MPG[Year],Calculations!N$4, Custom_Stock_MPG[[ Technology Type]], $B16, Custom_Stock_MPG[Vehicle Type], $A16, Custom_Stock_MPG[Scenario], Input_Scenario_Modeled), SUMIFS(Vehicle_Projections[Vehicle Stock],Vehicle_Projections[Year],Calculations!N$4,Vehicle_Projections[Technology Type], $B16, Vehicle_Projections[Vehicle Type], $A16, Vehicle_Projections[Scenario], Input_Scenario_Modeled)) -> 13.838643 | O16: =IF(Input_Scenario_Modeled="Custom", SUMIFS(Custom_Stock_MPG[Vehicle Stock],Custom_Stock_MPG[Year],Calculations!O$4, Custom_Stock_MPG[[ Technology Type]], $B16, Custom_Stock_MPG[Vehicle Type], $A16, Custom_Stock_MPG[Scenario], Input_Scenario_Modeled), SUMIFS(Vehicle_Projections[Vehicle Stock],Vehicle_Projections[Year],Calculations!O$4,Vehicle_Projections[Technology Type], $B16, Vehicle_Projections[Vehicle Type], $A16, Vehicle_Projections[Scenario], Input_Scenario_Modeled)) -> 13.561067 | P16: =IF(Input_Scenario_Modeled="Custom", SUMIFS(Custom_Stock_MPG[Vehicle Stock],Custom_Stock_MPG[Year],Calculations!P$4, Custom_Stock_MPG[[ Technology Type]], $B16, Custom_Stock_MPG[Vehicle Type], $A16, Custom_Stock_MPG[Scenario], Input_Scenario_Modeled), SUMIFS(Vehicle_Projections[Vehicle Stock],Vehicle_Projections[Year],Calculations!P$4,Vehicle_Projections[Technology Type], $B16, Vehicle_Projections[Vehicle Type], $A16, Vehicle_Projections[Scenario], Input_Scenario_Modeled)) -> 13.287451 | Q16: =IF(Input_Scenario_Modeled="Custom", SUMIFS(Custom_Stock_MPG[Vehicle Stock],Custom_Stock_MPG[Year],Calculations!Q$4, Custom_Stock_MPG[[ Technology Type]], $B16, Custom_Stock_MPG[Vehicle Type], $A16, Custom_Stock_MPG[Scenario], Input_Scenario_Modeled), SUMIFS(Vehicle_Projections[Vehicle Stock],Vehicle_Projections[Year],Calculations!Q$4,Vehicle_Projections[Technology Type], $B16, Vehicle_Projections[Vehicle Type], $A16, Vehicle_Projections[Scenario], Input_Scenario_Modeled)) -> 13.010576 | R16: =IF(Input_Scenario_Modeled="Custom", SUMIFS(Custom_Stock_MPG[Vehicle Stock],Custom_Stock_MPG[Year],Calculations!R$4, Custom_Stock_MPG[[ Technology Type]], $B16, Custom_Stock_MPG[Vehicle Type], $A16, Custom_Stock_MPG[Scenario], Input_Scenario_Modeled), SUMIFS(Vehicle_Projections[Vehicle Stock],Vehicle_Projections[Year],Calculations!R$4,Vehicle_Projections[Technology Type], $B16, Vehicle_Projections[Vehicle Type], $A16, Vehicle_Projections[Scenario], Input_Scenario_Modeled)) -> 12.734076 | S16: =IF(Input_Scenario_Modeled="Custom", SUMIFS(Custom_Stock_MPG[Vehicle Stock],Custom_Stock_MPG[Year],Calculations!S$4, Custom_Stock_MPG[[ Technology Type]], $B16, Custom_Stock_MPG[Vehicle Type], $A16, Custom_Stock_MPG[Scenario], Input_Scenario_Modeled), SUMIFS(Vehicle_Projections[Vehicle Stock],Vehicle_Projections[Year],Calculations!S$4,Vehicle_Projections[Technology Type], $B16, Vehicle_Projections[Vehicle Type], $A16, Vehicle_Projections[Scenario], Input_Scenario_Modeled)) -> 12.46225 | T16: =IF(Input_Scenario_Modeled="Custom", SUMIFS(Custom_Stock_MPG[Vehicle Stock],Custom_Stock_MPG[Year],Calculations!T$4, Custom_Stock_MPG[[ Technology Type]], $B16, Custom_Stock_MPG[Vehicle Type], $A16, Custom_Stock_MPG[Scenario], Input_Scenario_Modeled), SUMIFS(Vehicle_Projections[Vehicle Stock],Vehicle_Projections[Year],Calculations!T$4,Vehicle_Projections[Technology Type], $B16, Vehicle_Projections[Vehicle Type], $A16, Vehicle_Projections[Scenario], Input_Scenario_Modeled)) -> 12.197708 | U16: =IF(Input_Scenario_Modeled="Custom", SUMIFS(Custom_Stock_MPG[Vehicle Stock],Custom_Stock_MPG[Year],Calculations!U$4, Custom_Stock_MPG[[ Technology Type]], $B16, Custom_Stock_MPG[Vehicle Type], $A16, Custom_Stock_MPG[Scenario], Input_Scenario_Modeled), SUMIFS(Vehicle_Projections[Vehicle Stock],Vehicle_Projections[Year],Calculations!U$4,Vehicle_Projections[Technology Type], $B16, Vehicle_Projections[Vehicle Type], $A16, Vehicle_Projections[Scenario], Input_Scenario_Modeled)) -> 11.943912 | V16: =IF(Input_Scenario_Modeled="Custom", SUMIFS(Custom_Stock_MPG[Vehicle Stock],Custom_Stock_MPG[Year],Calculations!V$4, Custom_Stock_MPG[[ Technology Type]], $B16, Custom_Stock_MPG[Vehicle Type], $A16, Custom_Stock_MPG[Scenario], Input_Scenario_Modeled), SUMIFS(Vehicle_Projections[Vehicle Stock],Vehicle_Projections[Year],Calculations!V$4,Vehicle_Projections[Technology Type], $B16, Vehicle_Projections[Vehicle Type], $A16, Vehicle_Projections[Scenario], Input_Scenario_Modeled)) -> 11.708338 | W16: =IF(Input_Scenario_Modeled="Custom", SUMIFS(Custom_Stock_MPG[Vehicle Stock],Custom_Stock_MPG[Year],Calculations!W$4, Custom_Stock_MPG[[ Technology Type]], $B16, Custom_Stock_MPG[Vehicle Type], $A16, Custom_Stock_MPG[Scenario], Input_Scenario_Modeled), SUMIFS(Vehicle_Projections[Vehicle Stock],Vehicle_Projections[Year],Calculations!W$4,Vehicle_Projections[Technology Type], $B16, Vehicle_Projections[Vehicle Type], $A16, Vehicle_Projections[Scenario], Input_Scenario_Modeled)) -> 11.494101 | X16: =IF(Input_Scenario_Modeled="Custom", SUMIFS(Custom_Stock_MPG[Vehicle Stock],Custom_Stock_MPG[Year],Calculations!X$4, Custom_Stock_MPG[[ Technology Type]], $B16, Custom_Stock_MPG[Vehicle Type], $A16, Custom_Stock_MPG[Scenario], Input_Scenario_Modeled), SUMIFS(Vehicle_Projections[Vehicle Stock],Vehicle_Projections[Year],Calculations!X$4,Vehicle_Projections[Technology Type], $B16, Vehicle_Projections[Vehicle Type], $A16, Vehicle_Projections[Scenario], Input_Scenario_Modeled)) -> 11.29549 | Y16: =IF(Input_Scenario_Modeled="Custom", SUMIFS(Custom_Stock_MPG[Vehicle Stock],Custom_Stock_MPG[Year],Calculations!Y$4, Custom_Stock_MPG[[ Technology Type]], $B16, Custom_Stock_MPG[Vehicle Type], $A16, Custom_Stock_MPG[Scenario], Input_Scenario_Modeled), SUMIFS(Vehicle_Projections[Vehicle Stock],Vehicle_Projections[Year],Calculations!Y$4,Vehicle_Projections[Technology Type], $B16, Vehicle_Projections[Vehicle Type], $A16, Vehicle_Projections[Scenario], Input_Scenario_Modeled)) -> 11.117741 | Z16: =IF(Input_Scenario_Modeled="Custom", SUMIFS(Custom_Stock_MPG[Vehicle Stock],Custom_Stock_MPG[Year],Calculations!Z$4, Custom_Stock_MPG[[ Technology Type]], $B16, Custom_Stock_MPG[Vehicle Type], $A16, Custom_Stock_MPG[Scenario], Input_Scenario_Modeled), SUMIFS(Vehicle_Projections[Vehicle Stock],Vehicle_Projections[Year],Calculations!Z$4,Vehicle_Projections[Technology Type], $B16, Vehicle_Projections[Vehicle Type], $A16, Vehicle_Projections[Scenario], Input_Scenario_Modeled)) -> 10.961445 | AA16: =IF(Input_Scenario_Modeled="Custom", SUMIFS(Custom_Stock_MPG[Vehicle Stock],Custom_Stock_MPG[Year],Calculations!AA$4, Custom_Stock_MPG[[ Technology Type]], $B16, Custom_Stock_MPG[Vehicle Type], $A16, Custom_Stock_MPG[Scenario], Input_Scenario_Modeled), SUMIFS(Vehicle_Projections[Vehicle Stock],Vehicle_Projections[Year],Calculations!AA$4,Vehicle_Projections[Technology Type], $B16, Vehicle_Projections[Vehicle Type], $A16, Vehicle_Projections[Scenario], Input_Scenario_Modeled)) -> 10.819258 | AB16: =IF(Input_Scenario_Modeled="Custom", SUMIFS(Custom_Stock_MPG[Vehicle Stock],Custom_Stock_MPG[Year],Calculations!AB$4, Custom_Stock_MPG[[ Technology Type]], $B16, Custom_Stock_MPG[Vehicle Type], $A16, Custom_Stock_MPG[Scenario], Input_Scenario_Modeled), SUMIFS(Vehicle_Projections[Vehicle Stock],Vehicle_Projections[Year],Calculations!AB$4,Vehicle_Projections[Technology Type], $B16, Vehicle_Projections[Vehicle Type], $A16, Vehicle_Projections[Scenario], Input_Scenario_Modeled)) -> 10.687566 | AC16: =IF(Input_Scenario_Modeled="Custom", SUMIFS(Custom_Stock_MPG[Vehicle Stock],Custom_Stock_MPG[Year],Calculations!AC$4, Custom_Stock_MPG[[ Technology Type]], $B16, Custom_Stock_MPG[Vehicle Type], $A16, Custom_Stock_MPG[Scenario], Input_Scenario_Modeled), SUMIFS(Vehicle_Projections[Vehicle Stock],Vehicle_Projections[Year],Calculations!AC$4,Vehicle_Projections[Technology Type], $B16, Vehicle_Projections[Vehicle Type], $A16, Vehicle_Projections[Scenario], Input_Scenario_Modeled)) -> 10.563585 | AD16: =IF(Input_Scenario_Modeled="Custom", SUMIFS(Custom_Stock_MPG[Vehicle Stock],Custom_Stock_MPG[Year],Calculations!AD$4, Custom_Stock_MPG[[ Technology Type]], $B16, Custom_Stock_MPG[Vehicle Type], $A16, Custom_Stock_MPG[Scenario], Input_Scenario_Modeled), SUMIFS(Vehicle_Projections[Vehicle Stock],Vehicle_Projections[Year],Calculations!AD$4,Vehicle_Projections[Technology Type], $B16, Vehicle_Projections[Vehicle Type], $A16, Vehicle_Projections[Scenario], Input_Scenario_Modeled)) -> 10.448607 | AE16: =IF(Input_Scenario_Modeled="Custom", SUMIFS(Custom_Stock_MPG[Vehicle Stock],Custom_Stock_MPG[Year],Calculations!AE$4, Custom_Stock_MPG[[ Technology Type]], $B16, Custom_Stock_MPG[Vehicle Type], $A16, Custom_Stock_MPG[Scenario], Input_Scenario_Modeled), SUMIFS(Vehicle_Projections[Vehicle Stock],Vehicle_Projections[Year],Calculations!AE$4,Vehicle_Projections[Technology Type], $B16, Vehicle_Projections[Vehicle Type], $A16, Vehicle_Projections[Scenario], Input_Scenario_Modeled)) -> 10.341664 | AF16: =IF(Input_Scenario_Modeled="Custom", SUMIFS(Custom_Stock_MPG[Vehicle Stock],Custom_Stock_MPG[Year],Calculations!AF$4, Custom_Stock_MPG[[ Technology Type]], $B16, Custom_Stock_MPG[Vehicle Type], $A16, Custom_Stock_MPG[Scenario], Input_Scenario_Modeled), SUMIFS(Vehicle_Projections[Vehicle Stock],Vehicle_Projections[Year],Calculations!AF$4,Vehicle_Projections[Technology Type], $B16, Vehicle_Projections[Vehicle Type], $A16, Vehicle_Projections[Scenario], Input_Scenario_Modeled)) -> 10.243971 | AG16: =IF(Input_Scenario_Modeled="Custom", SUMIFS(Custom_Stock_MPG[Vehicle Stock],Custom_Stock_MPG[Year],Calculations!AG$4, Custom_Stock_MPG[[ Technology Type]], $B16, Custom_Stock_MPG[Vehicle Type], $A16, Custom_Stock_MPG[Scenario], Input_Scenario_Modeled), SUMIFS(Vehicle_Projections[Vehicle Stock],Vehicle_Projections[Year],Calculations!AG$4,Vehicle_Projections[Technology Type], $B16, Vehicle_Projections[Vehicle Type], $A16, Vehicle_Projections[Scenario], Input_Scenario_Modeled)) -> 10.152886 | AH16: =IF(Input_Scenario_Modeled="Custom", SUMIFS(Custom_Stock_MPG[Vehicle Stock],Custom_Stock_MPG[Year],Calculations!AH$4, Custom_Stock_MPG[[ Technology Type]], $B16, Custom_Stock_MPG[Vehicle Type], $A16, Custom_Stock_MPG[Scenario], Input_Scenario_Modeled), SUMIFS(Vehicle_Projections[Vehicle Stock],Vehicle_Projections[Year],Calculations!AH$4,Vehicle_Projections[Technology Type], $B16, Vehicle_Projections[Vehicle Type], $A16, Vehicle_Projections[Scenario], Input_Scenario_Modeled)) -> 10.06862 | AI16: =IF(Input_Scenario_Modeled="Custom", SUMIFS(Custom_Stock_MPG[Vehicle Stock],Custom_Stock_MPG[Year],Calculations!AI$4, Custom_Stock_MPG[[ Technology Type]], $B16, Custom_Stock_MPG[Vehicle Type], $A16, Custom_Stock_MPG[Scenario], Input_Scenario_Modeled), SUMIFS(Vehicle_Projections[Vehicle Stock],Vehicle_Projections[Year],Calculations!AI$4,Vehicle_Projections[Technology Type], $B16, Vehicle_Projections[Vehicle Type], $A16, Vehicle_Projections[Scenario], Input_Scenario_Modeled)) -> 9.991046 | AJ16: =IF(Input_Scenario_Modeled="Custom", SUMIFS(Custom_Stock_MPG[Vehicle Stock],Custom_Stock_MPG[Year],Calculations!AJ$4, Custom_Stock_MPG[[ Technology Type]], $B16, Custom_Stock_MPG[Vehicle Type], $A16, Custom_Stock_MPG[Scenario], Input_Scenario_Modeled), SUMIFS(Vehicle_Projections[Vehicle Stock],Vehicle_Projections[Year],Calculations!AJ$4,Vehicle_Projections[Technology Type], $B16, Vehicle_Projections[Vehicle Type], $A16, Vehicle_Projections[Scenario], Input_Scenario_Modeled)) -> 9.920511
A17: Light Trucks | B17: Electric-Gasoline Hybrid | C17: Gasoline | D17: Stock | E17: =IF(Input_Scenario_Modeled="Custom", SUMIFS(Custom_Stock_MPG[Vehicle Stock],Custom_Stock_MPG[Year],Calculations!E$4, Custom_Stock_MPG[[ Technology Type]], $B17, Custom_Stock_MPG[Vehicle Type], $A17, Custom_Stock_MPG[Scenario], Input_Scenario_Modeled), SUMIFS(Vehicle_Projections[Vehicle Stock],Vehicle_Projections[Year],Calculations!E$4,Vehicle_Projections[Technology Type], $B17, Vehicle_Projections[Vehicle Type], $A17, Vehicle_Projections[Scenario], Input_Scenario_Modeled)) -> 0.88118 | F17: =IF(Input_Scenario_Modeled="Custom", SUMIFS(Custom_Stock_MPG[Vehicle Stock],Custom_Stock_MPG[Year],Calculations!F$4, Custom_Stock_MPG[[ Technology Type]], $B17, Custom_Stock_MPG[Vehicle Type], $A17, Custom_Stock_MPG[Scenario], Input_Scenario_Modeled), SUMIFS(Vehicle_Projections[Vehicle Stock],Vehicle_Projections[Year],Calculations!F$4,Vehicle_Projections[Technology Type], $B17, Vehicle_Projections[Vehicle Type], $A17, Vehicle_Projections[Scenario], Input_Scenario_Modeled)) -> 1.134483 | G17: =IF(Input_Scenario_Modeled="Custom", SUMIFS(Custom_Stock_MPG[Vehicle Stock],Custom_Stock_MPG[Year],Calculations!G$4, Custom_Stock_MPG[[ Technology Type]], $B17, Custom_Stock_MPG[Vehicle Type], $A17, Custom_Stock_MPG[Scenario], Input_Scenario_Modeled), SUMIFS(Vehicle_Projections[Vehicle Stock],Vehicle_Projections[Year],Calculations!G$4,Vehicle_Projections[Technology Type], $B17, Vehicle_Projections[Vehicle Type], $A17, Vehicle_Projections[Scenario], Input_Scenario_Modeled)) -> 1.394274 | H17: =IF(Input_Scenario_Modeled="Custom", SUMIFS(Custom_Stock_MPG[Vehicle Stock],Custom_Stock_MPG[Year],Calculations!H$4, Custom_Stock_MPG[[ Technology Type]], $B17, Custom_Stock_MPG[Vehicle Type], $A17, Custom_Stock_MPG[Scenario], Input_Scenario_Modeled), SUMIFS(Vehicle_Projections[Vehicle Stock],Vehicle_Projections[Year],Calculations!H$4,Vehicle_Projections[Technology Type], $B17, Vehicle_Projections[Vehicle Type], $A17, Vehicle_Projections[Scenario], Input_Scenario_Modeled)) -> 1.661692 | I17: =IF(Input_Scenario_Modeled="Custom", SUMIFS(Custom_Stock_MPG[Vehicle Stock],Custom_Stock_MPG[Year],Calculations!I$4, Custom_Stock_MPG[[ Technology Type]], $B17, Custom_Stock_MPG[Vehicle Type], $A17, Custom_Stock_MPG[Scenario], Input_Scenario_Modeled), SUMIFS(Vehicle_Projections[Vehicle Stock],Vehicle_Projections[Year],Calculations!I$4,Vehicle_Projections[Technology Type], $B17, Vehicle_Projections[Vehicle Type], $A17, Vehicle_Projections[Scenario], Input_Scenario_Modeled)) -> 1.941232 | J17: =IF(Input_Scenario_Modeled="Custom", SUMIFS(Custom_Stock_MPG[Vehicle Stock],Custom_Stock_MPG[Year],Calculations!J$4, Custom_Stock_MPG[[ Technology Type]], $B17, Custom_Stock_MPG[Vehicle Type], $A17, Custom_Stock_MPG[Scenario], Input_Scenario_Modeled), SUMIFS(Vehicle_Projections[Vehicle Stock],Vehicle_Projections[Year],Calculations!J$4,Vehicle_Projections[Technology Type], $B17, Vehicle_Projections[Vehicle Type], $A17, Vehicle_Projections[Scenario], Input_Scenario_Modeled)) -> 2.237549 | K17: =IF(Input_Scenario_Modeled="Custom", SUMIFS(Custom_Stock_MPG[Vehicle Stock],Custom_Stock_MPG[Year],Calculations!K$4, Custom_Stock_MPG[[ Technology Type]], $B17, Custom_Stock_MPG[Vehicle Type], $A17, Custom_Stock_MPG[Scenario], Input_Scenario_Modeled), SUMIFS(Vehicle_Projections[Vehicle Stock],Vehicle_Projections[Year],Calculations!K$4,Vehicle_Projections[Technology Type], $B17, Vehicle_Projections[Vehicle Type], $A17, Vehicle_Projections[Scenario], Input_Scenario_Modeled)) -> 2.523726 | L17: =IF(Input_Scenario_Modeled="Custom", SUMIFS(Custom_Stock_MPG[Vehicle Stock],Custom_Stock_MPG[Year],Calculations!L$4, Custom_Stock_MPG[[ Technology Type]], $B17, Custom_Stock_MPG[Vehicle Type], $A17, Custom_Stock_MPG[Scenario], Input_Scenario_Modeled), SUMIFS(Vehicle_Projections[Vehicle Stock],Vehicle_Projections[Year],Calculations!L$4,Vehicle_Projections[Technology Type], $B17, Vehicle_Projections[Vehicle Type], $A17, Vehicle_Projections[Scenario], Input_Scenario_Modeled)) -> 2.822001 | M17: =IF(Input_Scenario_Modeled="Custom", SUMIFS(Custom_Stock_MPG[Vehicle Stock],Custom_Stock_MPG[Year],Calculations!M$4, Custom_Stock_MPG[[ Technology Type]], $B17, Custom_Stock_MPG[Vehicle Type], $A17, Custom_Stock_MPG[Scenario], Input_Scenario_Modeled), SUMIFS(Vehicle_Projections[Vehicle Stock],Vehicle_Projections[Year],Calculations!M$4,Vehicle_Projections[Technology Type], $B17, Vehicle_Projections[Vehicle Type], $A17, Vehicle_Projections[Scenario], Input_Scenario_Modeled)) -> 3.124904 | N17: =IF(Input_Scenario_Modeled="Custom", SUMIFS(Custom_Stock_MPG[Vehicle Stock],Custom_Stock_MPG[Year],Calculations!N$4, Custom_Stock_MPG[[ Technology Type]], $B17, Custom_Stock_MPG[Vehicle Type], $A17, Custom_Stock_MPG[Scenario], Input_Scenario_Modeled), SUMIFS(Vehicle_Projections[Vehicle Stock],Vehicle_Projections[Year],Calculations!N$4,Vehicle_Projections[Technology Type], $B17, Vehicle_Projections[Vehicle Type], $A17, Vehicle_Projections[Scenario], Input_Scenario_Modeled)) -> 3.424798 | O17: =IF(Input_Scenario_Modeled="Custom", SUMIFS(Custom_Stock_MPG[Vehicle Stock],Custom_Stock_MPG[Year],Calculations!O$4, Custom_Stock_MPG[[ Technology Type]], $B17, Custom_Stock_MPG[Vehicle Type], $A17, Custom_Stock_MPG[Scenario], Input_Scenario_Modeled), SUMIFS(Vehicle_Projections[Vehicle Stock],Vehicle_Projections[Year],Calculations!O$4,Vehicle_Projections[Technology Type], $B17, Vehicle_Projections[Vehicle Type], $A17, Vehicle_Projections[Scenario], Input_Scenario_Modeled)) -> 3.718814 | P17: =IF(Input_Scenario_Modeled="Custom", SUMIFS(Custom_Stock_MPG[Vehicle Stock],Custom_Stock_MPG[Year],Calculations!P$4, Custom_Stock_MPG[[ Technology Type]], $B17, Custom_Stock_MPG[Vehicle Type], $A17, Custom_Stock_MPG[Scenario], Input_Scenario_Modeled), SUMIFS(Vehicle_Projections[Vehicle Stock],Vehicle_Projections[Year],Calculations!P$4,Vehicle_Projections[Technology Type], $B17, Vehicle_Projections[Vehicle Type], $A17, Vehicle_Projections[Scenario], Input_Scenario_Modeled)) -> 4.001438 | Q17: =IF(Input_Scenario_Modeled="Custom", SUMIFS(Custom_Stock_MPG[Vehicle Stock],Custom_Stock_MPG[Year],Calculations!Q$4, Custom_Stock_MPG[[ Technology Type]], $B17, Custom_Stock_MPG[Vehicle Type], $A17, Custom_Stock_MPG[Scenario], Input_Scenario_Modeled), SUMIFS(Vehicle_Projections[Vehicle Stock],Vehicle_Projections[Year],Calculations!Q$4,Vehicle_Projections[Technology Type], $B17, Vehicle_Projections[Vehicle Type], $A17, Vehicle_Projections[Scenario], Input_Scenario_Modeled)) -> 4.276383 | R17: =IF(Input_Scenario_Modeled="Custom", SUMIFS(Custom_Stock_MPG[Vehicle Stock],Custom_Stock_MPG[Year],Calculations!R$4, Custom_Stock_MPG[[ Technology Type]], $B17, Custom_Stock_MPG[Vehicle Type], $A17, Custom_Stock_MPG[Scenario], Input_Scenario_Modeled), SUMIFS(Vehicle_Projections[Vehicle Stock],Vehicle_Projections[Year],Calculations!R$4,Vehicle_Projections[Technology Type], $B17, Vehicle_Projections[Vehicle Type], $A17, Vehicle_Projections[Scenario], Input_Scenario_Modeled)) -> 4.543469 | S17: =IF(Input_Scenario_Modeled="Custom", SUMIFS(Custom_Stock_MPG[Vehicle Stock],Custom_Stock_MPG[Year],Calculations!S$4, Custom_Stock_MPG[[ Technology Type]], $B17, Custom_Stock_MPG[Vehicle Type], $A17, Custom_Stock_MPG[Scenario], Input_Scenario_Modeled), SUMIFS(Vehicle_Projections[Vehicle Stock],Vehicle_Projections[Year],Calculations!S$4,Vehicle_Projections[Technology Type], $B17, Vehicle_Projections[Vehicle Type], $A17, Vehicle_Projections[Scenario], Input_Scenario_Modeled)) -> 4.800695 | T17: =IF(Input_Scenario_Modeled="Custom", SUMIFS(Custom_Stock_MPG[Vehicle Stock],Custom_Stock_MPG[Year],Calculations!T$4, Custom_Stock_MPG[[ Technology Type]], $B17, Custom_Stock_MPG[Vehicle Type], $A17, Custom_Stock_MPG[Scenario], Input_Scenario_Modeled), SUMIFS(Vehicle_Projections[Vehicle Stock],Vehicle_Projections[Year],Calculations!T$4,Vehicle_Projections[Technology Type], $B17, Vehicle_Projections[Vehicle Type], $A17, Vehicle_Projections[Scenario], Input_Scenario_Modeled)) -> 5.04769 | U17: =IF(Input_Scenario_Modeled="Custom", SUMIFS(Custom_Stock_MPG[Vehicle Stock],Custom_Stock_MPG[Year],Calculations!U$4, Custom_Stock_MPG[[ Technology Type]], $B17, Custom_Stock_MPG[Vehicle Type], $A17, Custom_Stock_MPG[Scenario], Input_Scenario_Modeled), SUMIFS(Vehicle_Projections[Vehicle Stock],Vehicle_Projections[Year],Calculations!U$4,Vehicle_Projections[Technology Type], $B17, Vehicle_Projections[Vehicle Type], $A17, Vehicle_Projections[Scenario], Input_Scenario_Modeled)) -> 5.286295 | V17: =IF(Input_Scenario_Modeled="Custom", SUMIFS(Custom_Stock_MPG[Vehicle Stock],Custom_Stock_MPG[Year],Calculations!V$4, Custom_Stock_MPG[[ Technology Type]], $B17, Custom_Stock_MPG[Vehicle Type], $A17, Custom_Stock_MPG[Scenario], Input_Scenario_Modeled), SUMIFS(Vehicle_Projections[Vehicle Stock],Vehicle_Projections[Year],Calculations!V$4,Vehicle_Projections[Technology Type], $B17, Vehicle_Projections[Vehicle Type], $A17, Vehicle_Projections[Scenario], Input_Scenario_Modeled)) -> 5.518821 | W17: =IF(Input_Scenario_Modeled="Custom", SUMIFS(Custom_Stock_MPG[Vehicle Stock],Custom_Stock_MPG[Year],Calculations!W$4, Custom_Stock_MPG[[ Technology Type]], $B17, Custom_Stock_MPG[Vehicle Type], $A17, Custom_Stock_MPG[Scenario], Input_Scenario_Modeled), SUMIFS(Vehicle_Projections[Vehicle Stock],Vehicle_Projections[Year],Calculations!W$4,Vehicle_Projections[Technology Type], $B17, Vehicle_Projections[Vehicle Type], $A17, Vehicle_Projections[Scenario], Input_Scenario_Modeled)) -> 5.745317 | X17: =IF(Input_Scenario_Modeled="Custom", SUMIFS(Custom_Stock_MPG[Vehicle Stock],Custom_Stock_MPG[Year],Calculations!X$4, Custom_Stock_MPG[[ Technology Type]], $B17, Custom_Stock_MPG[Vehicle Type], $A17, Custom_Stock_MPG[Scenario], Input_Scenario_Modeled), SUMIFS(Vehicle_Projections[Vehicle Stock],Vehicle_Projections[Year],Calculations!X$4,Vehicle_Projections[Technology Type], $B17, Vehicle_Projections[Vehicle Type], $A17, Vehicle_Projections[Scenario], Input_Scenario_Modeled)) -> 5.966416 | Y17: =IF(Input_Scenario_Modeled="Custom", SUMIFS(Custom_Stock_MPG[Vehicle Stock],Custom_Stock_MPG[Year],Calculations!Y$4, Custom_Stock_MPG[[ Technology Type]], $B17, Custom_Stock_MPG[Vehicle Type], $A17, Custom_Stock_MPG[Scenario], Input_Scenario_Modeled), SUMIFS(Vehicle_Projections[Vehicle Stock],Vehicle_Projections[Year],Calculations!Y$4,Vehicle_Projections[Technology Type], $B17, Vehicle_Projections[Vehicle Type], $A17, Vehicle_Projections[Scenario], Input_Scenario_Modeled)) -> 6.181643 | Z17: =IF(Input_Scenario_Modeled="Custom", SUMIFS(Custom_Stock_MPG[Vehicle Stock],Custom_Stock_MPG[Year],Calculations!Z$4, Custom_Stock_MPG[[ Technology Type]], $B17, Custom_Stock_MPG[Vehicle Type], $A17, Custom_Stock_MPG[Scenario], Input_Scenario_Modeled), SUMIFS(Vehicle_Projections[Vehicle Stock],Vehicle_Projections[Year],Calculations!Z$4,Vehicle_Projections[Technology Type], $B17, Vehicle_Projections[Vehicle Type], $A17, Vehicle_Projections[Scenario], Input_Scenario_Modeled)) -> 6.391329 | AA17: =IF(Input_Scenario_Modeled="Custom", SUMIFS(Custom_Stock_MPG[Vehicle Stock],Custom_Stock_MPG[Year],Calculations!AA$4, Custom_Stock_MPG[[ Technology Type]], $B17, Custom_Stock_MPG[Vehicle Type], $A17, Custom_Stock_MPG[Scenario], Input_Scenario_Modeled), SUMIFS(Vehicle_Projections[Vehicle Stock],Vehicle_Projections[Year],Calculations!AA$4,Vehicle_Projections[Technology Type], $B17, Vehicle_Projections[Vehicle Type], $A17, Vehicle_Projections[Scenario], Input_Scenario_Modeled)) -> 6.596159 | AB17: =IF(Input_Scenario_Modeled="Custom", SUMIFS(Custom_Stock_MPG[Vehicle Stock],Custom_Stock_MPG[Year],Calculations!AB$4, Custom_Stock_MPG[[ Technology Type]], $B17, Custom_Stock_MPG[Vehicle Type], $A17, Custom_Stock_MPG[Scenario], Input_Scenario_Modeled), SUMIFS(Vehicle_Projections[Vehicle Stock],Vehicle_Projections[Year],Calculations!AB$4,Vehicle_Projections[Technology Type], $B17, Vehicle_Projections[Vehicle Type], $A17, Vehicle_Projections[Scenario], Input_Scenario_Modeled)) -> 6.795852 | AC17: =IF(Input_Scenario_Modeled="Custom", SUMIFS(Custom_Stock_MPG[Vehicle Stock],Custom_Stock_MPG[Year],Calculations!AC$4, Custom_Stock_MPG[[ Technology Type]], $B17, Custom_Stock_MPG[Vehicle Type], $A17, Custom_Stock_MPG[Scenario], Input_Scenario_Modeled), SUMIFS(Vehicle_Projections[Vehicle Stock],Vehicle_Projections[Year],Calculations!AC$4,Vehicle_Projections[Technology Type], $B17, Vehicle_Projections[Vehicle Type], $A17, Vehicle_Projections[Scenario], Input_Scenario_Modeled)) -> 6.991902 | AD17: =IF(Input_Scenario_Modeled="Custom", SUMIFS(Custom_Stock_MPG[Vehicle Stock],Custom_Stock_MPG[Year],Calculations!AD$4, Custom_Stock_MPG[[ Technology Type]], $B17, Custom_Stock_MPG[Vehicle Type], $A17, Custom_Stock_MPG[Scenario], Input_Scenario_Modeled), SUMIFS(Vehicle_Projections[Vehicle Stock],Vehicle_Projections[Year],Calculations!AD$4,Vehicle_Projections[Technology Type], $B17, Vehicle_Projections[Vehicle Type], $A17, Vehicle_Projections[Scenario], Input_Scenario_Modeled)) -> 7.187031 | AE17: =IF(Input_Scenario_Modeled="Custom", SUMIFS(Custom_Stock_MPG[Vehicle Stock],Custom_Stock_MPG[Year],Calculations!AE$4, Custom_Stock_MPG[[ Technology Type]], $B17, Custom_Stock_MPG[Vehicle Type], $A17, Custom_Stock_MPG[Scenario], Input_Scenario_Modeled), SUMIFS(Vehicle_Projections[Vehicle Stock],Vehicle_Projections[Year],Calculations!AE$4,Vehicle_Projections[Technology Type], $B17, Vehicle_Projections[Vehicle Type], $A17, Vehicle_Projections[Scenario], Input_Scenario_Modeled)) -> 7.382211 | AF17: =IF(Input_Scenario_Modeled="Custom", SUMIFS(Custom_Stock_MPG[Vehicle Stock],Custom_Stock_MPG[Year],Calculations!AF$4, Custom_Stock_MPG[[ Technology Type]], $B17, Custom_Stock_MPG[Vehicle Type], $A17, Custom_Stock_MPG[Scenario], Input_Scenario_Modeled), SUMIFS(Vehicle_Projections[Vehicle Stock],Vehicle_Projections[Year],Calculations!AF$4,Vehicle_Projections[Technology Type], $B17, Vehicle_Projections[Vehicle Type], $A17, Vehicle_Projections[Scenario], Input_Scenario_Modeled)) -> 7.578397 | AG17: =IF(Input_Scenario_Modeled="Custom", SUMIFS(Custom_Stock_MPG[Vehicle Stock],Custom_Stock_MPG[Year],Calculations!AG$4, Custom_Stock_MPG[[ Technology Type]], $B17, Custom_Stock_MPG[Vehicle Type], $A17, Custom_Stock_MPG[Scenario], Input_Scenario_Modeled), SUMIFS(Vehicle_Projections[Vehicle Stock],Vehicle_Projections[Year],Calculations!AG$4,Vehicle_Projections[Technology Type], $B17, Vehicle_Projections[Vehicle Type], $A17, Vehicle_Projections[Scenario], Input_Scenario_Modeled)) -> 7.775839 | AH17: =IF(Input_Scenario_Modeled="Custom", SUMIFS(Custom_Stock_MPG[Vehicle Stock],Custom_Stock_MPG[Year],Calculations!AH$4, Custom_Stock_MPG[[ Technology Type]], $B17, Custom_Stock_MPG[Vehicle Type], $A17, Custom_Stock_MPG[Scenario], Input_Scenario_Modeled), SUMIFS(Vehicle_Projections[Vehicle Stock],Vehicle_Projections[Year],Calculations!AH$4,Vehicle_Projections[Technology Type], $B17, Vehicle_Projections[Vehicle Type], $A17, Vehicle_Projections[Scenario], Input_Scenario_Modeled)) -> 7.974508 | AI17: =IF(Input_Scenario_Modeled="Custom", SUMIFS(Custom_Stock_MPG[Vehicle Stock],Custom_Stock_MPG[Year],Calculations!AI$4, Custom_Stock_MPG[[ Technology Type]], $B17, Custom_Stock_MPG[Vehicle Type], $A17, Custom_Stock_MPG[Scenario], Input_Scenario_Modeled), SUMIFS(Vehicle_Projections[Vehicle Stock],Vehicle_Projections[Year],Calculations!AI$4,Vehicle_Projections[Technology Type], $B17, Vehicle_Projections[Vehicle Type], $A17, Vehicle_Projections[Scenario], Input_Scenario_Modeled)) -> 8.174852 | AJ17: =IF(Input_Scenario_Modeled="Custom", SUMIFS(Custom_Stock_MPG[Vehicle Stock],Custom_Stock_MPG[Year],Calculations!AJ$4, Custom_Stock_MPG[[ Technology Type]], $B17, Custom_Stock_MPG[Vehicle Type], $A17, Custom_Stock_MPG[Scenario], Input_Scenario_Modeled), SUMIFS(Vehicle_Projections[Vehicle Stock],Vehicle_Projections[Year],Calculations!AJ$4,Vehicle_Projections[Technology Type], $B17, Vehicle_Projections[Vehicle Type], $A17, Vehicle_Projections[Scenario], Input_Scenario_Modeled)) -> 8.377818
A18: Light Trucks | B18: TDI Diesel ICE | C18: Diesel | D18: Stock | E18: =IF(Input_Scenario_Modeled="Custom", SUMIFS(Custom_Stock_MPG[Vehicle Stock],Custom_Stock_MPG[Year],Calculations!E$4, Custom_Stock_MPG[[ Technology Type]], $B18, Custom_Stock_MPG[Vehicle Type], $A18, Custom_Stock_MPG[Scenario], Input_Scenario_Modeled), SUMIFS(Vehicle_Projections[Vehicle Stock],Vehicle_Projections[Year],Calculations!E$4,Vehicle_Projections[Technology Type], $B18, Vehicle_Projections[Vehicle Type], $A18, Vehicle_Projections[Scenario], Input_Scenario_Modeled)) -> 0.543859 | F18: =IF(Input_Scenario_Modeled="Custom", SUMIFS(Custom_Stock_MPG[Vehicle Stock],Custom_Stock_MPG[Year],Calculations!F$4, Custom_Stock_MPG[[ Technology Type]], $B18, Custom_Stock_MPG[Vehicle Type], $A18, Custom_Stock_MPG[Scenario], Input_Scenario_Modeled), SUMIFS(Vehicle_Projections[Vehicle Stock],Vehicle_Projections[Year],Calculations!F$4,Vehicle_Projections[Technology Type], $B18, Vehicle_Projections[Vehicle Type], $A18, Vehicle_Projections[Scenario], Input_Scenario_Modeled)) -> 0.625458 | G18: =IF(Input_Scenario_Modeled="Custom", SUMIFS(Custom_Stock_MPG[Vehicle Stock],Custom_Stock_MPG[Year],Calculations!G$4, Custom_Stock_MPG[[ Technology Type]], $B18, Custom_Stock_MPG[Vehicle Type], $A18, Custom_Stock_MPG[Scenario], Input_Scenario_Modeled), SUMIFS(Vehicle_Projections[Vehicle Stock],Vehicle_Projections[Year],Calculations!G$4,Vehicle_Projections[Technology Type], $B18, Vehicle_Projections[Vehicle Type], $A18, Vehicle_Projections[Scenario], Input_Scenario_Modeled)) -> 0.728676 | H18: =IF(Input_Scenario_Modeled="Custom", SUMIFS(Custom_Stock_MPG[Vehicle Stock],Custom_Stock_MPG[Year],Calculations!H$4, Custom_Stock_MPG[[ Technology Type]], $B18, Custom_Stock_MPG[Vehicle Type], $A18, Custom_Stock_MPG[Scenario], Input_Scenario_Modeled), SUMIFS(Vehicle_Projections[Vehicle Stock],Vehicle_Projections[Year],Calculations!H$4,Vehicle_Projections[Technology Type], $B18, Vehicle_Projections[Vehicle Type], $A18, Vehicle_Projections[Scenario], Input_Scenario_Modeled)) -> 0.854298 | I18: =IF(Input_Scenario_Modeled="Custom", SUMIFS(Custom_Stock_MPG[Vehicle Stock],Custom_Stock_MPG[Year],Calculations!I$4, Custom_Stock_MPG[[ Technology Type]], $B18, Custom_Stock_MPG[Vehicle Type], $A18, Custom_Stock_MPG[Scenario], Input_Scenario_Modeled), SUMIFS(Vehicle_Projections[Vehicle Stock],Vehicle_Projections[Year],Calculations!I$4,Vehicle_Projections[Technology Type], $B18, Vehicle_Projections[Vehicle Type], $A18, Vehicle_Projections[Scenario], Input_Scenario_Modeled)) -> 0.977869 | J18: =IF(Input_Scenario_Modeled="Custom", SUMIFS(Custom_Stock_MPG[Vehicle Stock],Custom_Stock_MPG[Year],Calculations!J$4, Custom_Stock_MPG[[ Technology Type]], $B18, Custom_Stock_MPG[Vehicle Type], $A18, Custom_Stock_MPG[Scenario], Input_Scenario_Modeled), SUMIFS(Vehicle_Projections[Vehicle Stock],Vehicle_Projections[Year],Calculations!J$4,Vehicle_Projections[Technology Type], $B18, Vehicle_Projections[Vehicle Type], $A18, Vehicle_Projections[Scenario], Input_Scenario_Modeled)) -> 1.090088 | K18: =IF(Input_Scenario_Modeled="Custom", SUMIFS(Custom_Stock_MPG[Vehicle Stock],Custom_Stock_MPG[Year],Calculations!K$4, Custom_Stock_MPG[[ Technology Type]], $B18, Custom_Stock_MPG[Vehicle Type], $A18, Custom_Stock_MPG[Scenario], Input_Scenario_Modeled), SUMIFS(Vehicle_Projections[Vehicle Stock],Vehicle_Projections[Year],Calculations!K$4,Vehicle_Projections[Technology Type], $B18, Vehicle_Projections[Vehicle Type], $A18, Vehicle_Projections[Scenario], Input_Scenario_Modeled)) -> 1.200252 | L18: =IF(Input_Scenario_Modeled="Custom", SUMIFS(Custom_Stock_MPG[Vehicle Stock],Custom_Stock_MPG[Year],Calculations!L$4, Custom_Stock_MPG[[ Technology Type]], $B18, Custom_Stock_MPG[Vehicle Type], $A18, Custom_Stock_MPG[Scenario], Input_Scenario_Modeled), SUMIFS(Vehicle_Projections[Vehicle Stock],Vehicle_Projections[Year],Calculations!L$4,Vehicle_Projections[Technology Type], $B18, Vehicle_Projections[Vehicle Type], $A18, Vehicle_Projections[Scenario], Input_Scenario_Modeled)) -> 1.303776 | M18: =IF(Input_Scenario_Modeled="Custom", SUMIFS(Custom_Stock_MPG[Vehicle Stock],Custom_Stock_MPG[Year],Calculations!M$4, Custom_Stock_MPG[[ Technology Type]], $B18, Custom_Stock_MPG[Vehicle Type], $A18, Custom_Stock_MPG[Scenario], Input_Scenario_Modeled), SUMIFS(Vehicle_Projections[Vehicle Stock],Vehicle_Projections[Year],Calculations!M$4,Vehicle_Projections[Technology Type], $B18, Vehicle_Projections[Vehicle Type], $A18, Vehicle_Projections[Scenario], Input_Scenario_Modeled)) -> 1.404174 | N18: =IF(Input_Scenario_Modeled="Custom", SUMIFS(Custom_Stock_MPG[Vehicle Stock],Custom_Stock_MPG[Year],Calculations!N$4, Custom_Stock_MPG[[ Technology Type]], $B18, Custom_Stock_MPG[Vehicle Type], $A18, Custom_Stock_MPG[Scenario], Input_Scenario_Modeled), SUMIFS(Vehicle_Projections[Vehicle Stock],Vehicle_Projections[Year],Calculations!N$4,Vehicle_Projections[Technology Type], $B18, Vehicle_Projections[Vehicle Type], $A18, Vehicle_Projections[Scenario], Input_Scenario_Modeled)) -> 1.496801 | O18: =IF(Input_Scenario_Modeled="Custom", SUMIFS(Custom_Stock_MPG[Vehicle Stock],Custom_Stock_MPG[Year],Calculations!O$4, Custom_Stock_MPG[[ Technology Type]], $B18, Custom_Stock_MPG[Vehicle Type], $A18, Custom_Stock_MPG[Scenario], Input_Scenario_Modeled), SUMIFS(Vehicle_Projections[Vehicle Stock],Vehicle_Projections[Year],Calculations!O$4,Vehicle_Projections[Technology Type], $B18, Vehicle_Projections[Vehicle Type], $A18, Vehicle_Projections[Scenario], Input_Scenario_Modeled)) -> 1.584095 | P18: =IF(Input_Scenario_Modeled="Custom", SUMIFS(Custom_Stock_MPG[Vehicle Stock],Custom_Stock_MPG[Year],Calculations!P$4, Custom_Stock_MPG[[ Technology Type]], $B18, Custom_Stock_MPG[Vehicle Type], $A18, Custom_Stock_MPG[Scenario], Input_Scenario_Modeled), SUMIFS(Vehicle_Projections[Vehicle Stock],Vehicle_Projections[Year],Calculations!P$4,Vehicle_Projections[Technology Type], $B18, Vehicle_Projections[Vehicle Type], $A18, Vehicle_Projections[Scenario], Input_Scenario_Modeled)) -> 1.666662 | Q18: =IF(Input_Scenario_Modeled="Custom", SUMIFS(Custom_Stock_MPG[Vehicle Stock],Custom_Stock_MPG[Year],Calculations!Q$4, Custom_Stock_MPG[[ Technology Type]], $B18, Custom_Stock_MPG[Vehicle Type], $A18, Custom_Stock_MPG[Scenario], Input_Scenario_Modeled), SUMIFS(Vehicle_Projections[Vehicle Stock],Vehicle_Projections[Year],Calculations!Q$4,Vehicle_Projections[Technology Type], $B18, Vehicle_Projections[Vehicle Type], $A18, Vehicle_Projections[Scenario], Input_Scenario_Modeled)) -> 1.740737 | R18: =IF(Input_Scenario_Modeled="Custom", SUMIFS(Custom_Stock_MPG[Vehicle Stock],Custom_Stock_MPG[Year],Calculations!R$4, Custom_Stock_MPG[[ Technology Type]], $B18, Custom_Stock_MPG[Vehicle Type], $A18, Custom_Stock_MPG[Scenario], Input_Scenario_Modeled), SUMIFS(Vehicle_Projections[Vehicle Stock],Vehicle_Projections[Year],Calculations!R$4,Vehicle_Projections[Technology Type], $B18, Vehicle_Projections[Vehicle Type], $A18, Vehicle_Projections[Scenario], Input_Scenario_Modeled)) -> 1.807281 | S18: =IF(Input_Scenario_Modeled="Custom", SUMIFS(Custom_Stock_MPG[Vehicle Stock],Custom_Stock_MPG[Year],Calculations!S$4, Custom_Stock_MPG[[ Technology Type]], $B18, Custom_Stock_MPG[Vehicle Type], $A18, Custom_Stock_MPG[Scenario], Input_Scenario_Modeled), SUMIFS(Vehicle_Projections[Vehicle Stock],Vehicle_Projections[Year],Calculations!S$4,Vehicle_Projections[Technology Type], $B18, Vehicle_Projections[Vehicle Type], $A18, Vehicle_Projections[Scenario], Input_Scenario_Modeled)) -> 1.864874 | T18: =IF(Input_Scenario_Modeled="Custom", SUMIFS(Custom_Stock_MPG[Vehicle Stock],Custom_Stock_MPG[Year],Calculations!T$4, Custom_Stock_MPG[[ Technology Type]], $B18, Custom_Stock_MPG[Vehicle Type], $A18, Custom_Stock_MPG[Scenario], Input_Scenario_Modeled), SUMIFS(Vehicle_Projections[Vehicle Stock],Vehicle_Projections[Year],Calculations!T$4,Vehicle_Projections[Technology Type], $B18, Vehicle_Projections[Vehicle Type], $A18, Vehicle_Projections[Scenario], Input_Scenario_Modeled)) -> 1.915186 | U18: =IF(Input_Scenario_Modeled="Custom", SUMIFS(Custom_Stock_MPG[Vehicle Stock],Custom_Stock_MPG[Year],Calculations!U$4, Custom_Stock_MPG[[ Technology Type]], $B18, Custom_Stock_MPG[Vehicle Type], $A18, Custom_Stock_MPG[Scenario], Input_Scenario_Modeled), SUMIFS(Vehicle_Projections[Vehicle Stock],Vehicle_Projections[Year],Calculations!U$4,Vehicle_Projections[Technology Type], $B18, Vehicle_Projections[Vehicle Type], $A18, Vehicle_Projections[Scenario], Input_Scenario_Modeled)) -> 1.957504 | V18: =IF(Input_Scenario_Modeled="Custom", SUMIFS(Custom_Stock_MPG[Vehicle Stock],Custom_Stock_MPG[Year],Calculations!V$4, Custom_Stock_MPG[[ Technology Type]], $B18, Custom_Stock_MPG[Vehicle Type], $A18, Custom_Stock_MPG[Scenario], Input_Scenario_Modeled), SUMIFS(Vehicle_Projections[Vehicle Stock],Vehicle_Projections[Year],Calculations!V$4,Vehicle_Projections[Technology Type], $B18, Vehicle_Projections[Vehicle Type], $A18, Vehicle_Projections[Scenario], Input_Scenario_Modeled)) -> 1.992719 | W18: =IF(Input_Scenario_Modeled="Custom", SUMIFS(Custom_Stock_MPG[Vehicle Stock],Custom_Stock_MPG[Year],Calculations!W$4, Custom_Stock_MPG[[ Technology Type]], $B18, Custom_Stock_MPG[Vehicle Type], $A18, Custom_Stock_MPG[Scenario], Input_Scenario_Modeled), SUMIFS(Vehicle_Projections[Vehicle Stock],Vehicle_Projections[Year],Calculations!W$4,Vehicle_Projections[Technology Type], $B18, Vehicle_Projections[Vehicle Type], $A18, Vehicle_Projections[Scenario], Input_Scenario_Modeled)) -> 2.021697 | X18: =IF(Input_Scenario_Modeled="Custom", SUMIFS(Custom_Stock_MPG[Vehicle Stock],Custom_Stock_MPG[Year],Calculations!X$4, Custom_Stock_MPG[[ Technology Type]], $B18, Custom_Stock_MPG[Vehicle Type], $A18, Custom_Stock_MPG[Scenario], Input_Scenario_Modeled), SUMIFS(Vehicle_Projections[Vehicle Stock],Vehicle_Projections[Year],Calculations!X$4,Vehicle_Projections[Technology Type], $B18, Vehicle_Projections[Vehicle Type], $A18, Vehicle_Projections[Scenario], Input_Scenario_Modeled)) -> 2.046996 | Y18: =IF(Input_Scenario_Modeled="Custom", SUMIFS(Custom_Stock_MPG[Vehicle Stock],Custom_Stock_MPG[Year],Calculations!Y$4, Custom_Stock_MPG[[ Technology Type]], $B18, Custom_Stock_MPG[Vehicle Type], $A18, Custom_Stock_MPG[Scenario], Input_Scenario_Modeled), SUMIFS(Vehicle_Projections[Vehicle Stock],Vehicle_Projections[Year],Calculations!Y$4,Vehicle_Projections[Technology Type], $B18, Vehicle_Projections[Vehicle Type], $A18, Vehicle_Projections[Scenario], Input_Scenario_Modeled)) -> 2.068253 | Z18: =IF(Input_Scenario_Modeled="Custom", SUMIFS(Custom_Stock_MPG[Vehicle Stock],Custom_Stock_MPG[Year],Calculations!Z$4, Custom_Stock_MPG[[ Technology Type]], $B18, Custom_Stock_MPG[Vehicle Type], $A18, Custom_Stock_MPG[Scenario], Input_Scenario_Modeled), SUMIFS(Vehicle_Projections[Vehicle Stock],Vehicle_Projections[Year],Calculations!Z$4,Vehicle_Projections[Technology Type], $B18, Vehicle_Projections[Vehicle Type], $A18, Vehicle_Projections[Scenario], Input_Scenario_Modeled)) -> 2.085866 | AA18: =IF(Input_Scenario_Modeled="Custom", SUMIFS(Custom_Stock_MPG[Vehicle Stock],Custom_Stock_MPG[Year],Calculations!AA$4, Custom_Stock_MPG[[ Technology Type]], $B18, Custom_Stock_MPG[Vehicle Type], $A18, Custom_Stock_MPG[Scenario], Input_Scenario_Modeled), SUMIFS(Vehicle_Projections[Vehicle Stock],Vehicle_Projections[Year],Calculations!AA$4,Vehicle_Projections[Technology Type], $B18, Vehicle_Projections[Vehicle Type], $A18, Vehicle_Projections[Scenario], Input_Scenario_Modeled)) -> 2.100237 | AB18: =IF(Input_Scenario_Modeled="Custom", SUMIFS(Custom_Stock_MPG[Vehicle Stock],Custom_Stock_MPG[Year],Calculations!AB$4, Custom_Stock_MPG[[ Technology Type]], $B18, Custom_Stock_MPG[Vehicle Type], $A18, Custom_Stock_MPG[Scenario], Input_Scenario_Modeled), SUMIFS(Vehicle_Projections[Vehicle Stock],Vehicle_Projections[Year],Calculations!AB$4,Vehicle_Projections[Technology Type], $B18, Vehicle_Projections[Vehicle Type], $A18, Vehicle_Projections[Scenario], Input_Scenario_Modeled)) -> 2.110989 | AC18: =IF(Input_Scenario_Modeled="Custom", SUMIFS(Custom_Stock_MPG[Vehicle Stock],Custom_Stock_MPG[Year],Calculations!AC$4, Custom_Stock_MPG[[ Technology Type]], $B18, Custom_Stock_MPG[Vehicle Type], $A18, Custom_Stock_MPG[Scenario], Input_Scenario_Modeled), SUMIFS(Vehicle_Projections[Vehicle Stock],Vehicle_Projections[Year],Calculations!AC$4,Vehicle_Projections[Technology Type], $B18, Vehicle_Projections[Vehicle Type], $A18, Vehicle_Projections[Scenario], Input_Scenario_Modeled)) -> 2.119017 | AD18: =IF(Input_Scenario_Modeled="Custom", SUMIFS(Custom_Stock_MPG[Vehicle Stock],Custom_Stock_MPG[Year],Calculations!AD$4, Custom_Stock_MPG[[ Technology Type]], $B18, Custom_Stock_MPG[Vehicle Type], $A18, Custom_Stock_MPG[Scenario], Input_Scenario_Modeled), SUMIFS(Vehicle_Projections[Vehicle Stock],Vehicle_Projections[Year],Calculations!AD$4,Vehicle_Projections[Technology Type], $B18, Vehicle_Projections[Vehicle Type], $A18, Vehicle_Projections[Scenario], Input_Scenario_Modeled)) -> 2.125086 | AE18: =IF(Input_Scenario_Modeled="Custom", SUMIFS(Custom_Stock_MPG[Vehicle Stock],Custom_Stock_MPG[Year],Calculations!AE$4, Custom_Stock_MPG[[ Technology Type]], $B18, Custom_Stock_MPG[Vehicle Type], $A18, Custom_Stock_MPG[Scenario], Input_Scenario_Modeled), SUMIFS(Vehicle_Projections[Vehicle Stock],Vehicle_Projections[Year],Calculations!AE$4,Vehicle_Projections[Technology Type], $B18, Vehicle_Projections[Vehicle Type], $A18, Vehicle_Projections[Scenario], Input_Scenario_Modeled)) -> 2.128615 | AF18: =IF(Input_Scenario_Modeled="Custom", SUMIFS(Custom_Stock_MPG[Vehicle Stock],Custom_Stock_MPG[Year],Calculations!AF$4, Custom_Stock_MPG[[ Technology Type]], $B18, Custom_Stock_MPG[Vehicle Type], $A18, Custom_Stock_MPG[Scenario], Input_Scenario_Modeled), SUMIFS(Vehicle_Projections[Vehicle Stock],Vehicle_Projections[Year],Calculations!AF$4,Vehicle_Projections[Technology Type], $B18, Vehicle_Projections[Vehicle Type], $A18, Vehicle_Projections[Scenario], Input_Scenario_Modeled)) -> 2.131484 | AG18: =IF(Input_Scenario_Modeled="Custom", SUMIFS(Custom_Stock_MPG[Vehicle Stock],Custom_Stock_MPG[Year],Calculations!AG$4, Custom_Stock_MPG[[ Technology Type]], $B18, Custom_Stock_MPG[Vehicle Type], $A18, Custom_Stock_MPG[Scenario], Input_Scenario_Modeled), SUMIFS(Vehicle_Projections[Vehicle Stock],Vehicle_Projections[Year],Calculations!AG$4,Vehicle_Projections[Technology Type], $B18, Vehicle_Projections[Vehicle Type], $A18, Vehicle_Projections[Scenario], Input_Scenario_Modeled)) -> 2.134495 | AH18: =IF(Input_Scenario_Modeled="Custom", SUMIFS(Custom_Stock_MPG[Vehicle Stock],Custom_Stock_MPG[Year],Calculations!AH$4, Custom_Stock_MPG[[ Technology Type]], $B18, Custom_Stock_MPG[Vehicle Type], $A18, Custom_Stock_MPG[Scenario], Input_Scenario_Modeled), SUMIFS(Vehicle_Projections[Vehicle Stock],Vehicle_Projections[Year],Calculations!AH$4,Vehicle_Projections[Technology Type], $B18, Vehicle_Projections[Vehicle Type], $A18, Vehicle_Projections[Scenario], Input_Scenario_Modeled)) -> 2.136828 | AI18: =IF(Input_Scenario_Modeled="Custom", SUMIFS(Custom_Stock_MPG[Vehicle Stock],Custom_Stock_MPG[Year],Calculations!AI$4, Custom_Stock_MPG[[ Technology Type]], $B18, Custom_Stock_MPG[Vehicle Type], $A18, Custom_Stock_MPG[Scenario], Input_Scenario_Modeled), SUMIFS(Vehicle_Projections[Vehicle Stock],Vehicle_Projections[Year],Calculations!AI$4,Vehicle_Projections[Technology Type], $B18, Vehicle_Projections[Vehicle Type], $A18, Vehicle_Projections[Scenario], Input_Scenario_Modeled)) -> 2.138355 | AJ18: =IF(Input_Scenario_Modeled="Custom", SUMIFS(Custom_Stock_MPG[Vehicle Stock],Custom_Stock_MPG[Year],Calculations!AJ$4, Custom_Stock_MPG[[ Technology Type]], $B18, Custom_Stock_MPG[Vehicle Type], $A18, Custom_Stock_MPG[Scenario], Input_Scenario_Modeled), SUMIFS(Vehicle_Projections[Vehicle Stock],Vehicle_Projections[Year],Calculations!AJ$4,Vehicle_Projections[Technology Type], $B18, Vehicle_Projections[Vehicle Type], $A18, Vehicle_Projections[Scenario], Input_Scenario_Modeled)) -> 2.139128
A19: Light Trucks | B19: Electric-Diesel Hybrid | C19: Diesel | D19: Stock | E19: =IF(Input_Scenario_Modeled="Custom", SUMIFS(Custom_Stock_MPG[Vehicle Stock],Custom_Stock_MPG[Year],Calculations!E$4, Custom_Stock_MPG[[ Technology Type]], $B19, Custom_Stock_MPG[Vehicle Type], $A19, Custom_Stock_MPG[Scenario], Input_Scenario_Modeled), SUMIFS(Vehicle_Projections[Vehicle Stock],Vehicle_Projections[Year],Calculations!E$4,Vehicle_Projections[Technology Type], $B19, Vehicle_Projections[Vehicle Type], $A19, Vehicle_Projections[Scenario], Input_Scenario_Modeled)) -> 0 | F19: =IF(Input_Scenario_Modeled="Custom", SUMIFS(Custom_Stock_MPG[Vehicle Stock],Custom_Stock_MPG[Year],Calculations!F$4, Custom_Stock_MPG[[ Technology Type]], $B19, Custom_Stock_MPG[Vehicle Type], $A19, Custom_Stock_MPG[Scenario], Input_Scenario_Modeled), SUMIFS(Vehicle_Projections[Vehicle Stock],Vehicle_Projections[Year],Calculations!F$4,Vehicle_Projections[Technology Type], $B19, Vehicle_Projections[Vehicle Type], $A19, Vehicle_Projections[Scenario], Input_Scenario_Modeled)) -> 0 | G19: =IF(Input_Scenario_Modeled="Custom", SUMIFS(Custom_Stock_MPG[Vehicle Stock],Custom_Stock_MPG[Year],Calculations!G$4, Custom_Stock_MPG[[ Technology Type]], $B19, Custom_Stock_MPG[Vehicle Type], $A19, Custom_Stock_MPG[Scenario], Input_Scenario_Modeled), SUMIFS(Vehicle_Projections[Vehicle Stock],Vehicle_Projections[Year],Calculations!G$4,Vehicle_Projections[Technology Type], $B19, Vehicle_Projections[Vehicle Type], $A19, Vehicle_Projections[Scenario], Input_Scenario_Modeled)) -> 0 | H19: =IF(Input_Scenario_Modeled="Custom", SUMIFS(Custom_Stock_MPG[Vehicle Stock],Custom_Stock_MPG[Year],Calculations!H$4, Custom_Stock_MPG[[ Technology Type]], $B19, Custom_Stock_MPG[Vehicle Type], $A19, Custom_Stock_MPG[Scenario], Input_Scenario_Modeled), SUMIFS(Vehicle_Projections[Vehicle Stock],Vehicle_Projections[Year],Calculations!H$4,Vehicle_Projections[Technology Type], $B19, Vehicle_Projections[Vehicle Type], $A19, Vehicle_Projections[Scenario], Input_Scenario_Modeled)) -> 0 | I19: =IF(Input_Scenario_Modeled="Custom", SUMIFS(Custom_Stock_MPG[Vehicle Stock],Custom_Stock_MPG[Year],Calculations!I$4, Custom_Stock_MPG[[ Technology Type]], $B19, Custom_Stock_MPG[Vehicle Type], $A19, Custom_Stock_MPG[Scenario], Input_Scenario_Modeled), SUMIFS(Vehicle_Projections[Vehicle Stock],Vehicle_Projections[Year],Calculations!I$4,Vehicle_Projections[Technology Type], $B19, Vehicle_Projections[Vehicle Type], $A19, Vehicle_Projections[Scenario], Input_Scenario_Modeled)) -> 0 | J19: =IF(Input_Scenario_Modeled="Custom", SUMIFS(Custom_Stock_MPG[Vehicle Stock],Custom_Stock_MPG[Year],Calculations!J$4, Custom_Stock_MPG[[ Technology Type]], $B19, Custom_Stock_MPG[Vehicle Type], $A19, Custom_Stock_MPG[Scenario], Input_Scenario_Modeled), SUMIFS(Vehicle_Projections[Vehicle Stock],Vehicle_Projections[Year],Calculations!J$4,Vehicle_Projections[Technology Type], $B19, Vehicle_Projections[Vehicle Type], $A19, Vehicle_Projections[Scenario], Input_Scenario_Modeled)) -> 0 | K19: =IF(Input_Scenario_Modeled="Custom", SUMIFS(Custom_Stock_MPG[Vehicle Stock],Custom_Stock_MPG[Year],Calculations!K$4, Custom_Stock_MPG[[ Technology Type]], $B19, Custom_Stock_MPG[Vehicle Type], $A19, Custom_Stock_MPG[Scenario], Input_Scenario_Modeled), SUMIFS(Vehicle_Projections[Vehicle Stock],Vehicle_Projections[Year],Calculations!K$4,Vehicle_Projections[Technology Type], $B19, Vehicle_Projections[Vehicle Type], $A19, Vehicle_Projections[Scenario], Input_Scenario_Modeled)) -> 0 | L19: =IF(Input_Scenario_Modeled="Custom", SUMIFS(Custom_Stock_MPG[Vehicle Stock],Custom_Stock_MPG[Year],Calculations!L$4, Custom_Stock_MPG[[ Technology Type]], $B19, Custom_Stock_MPG[Vehicle Type], $A19, Custom_Stock_MPG[Scenario], Input_Scenario_Modeled), SUMIFS(Vehicle_Projections[Vehicle Stock],Vehicle_Projections[Year],Calculations!L$4,Vehicle_Projections[Technology Type], $B19, Vehicle_Projections[Vehicle Type], $A19, Vehicle_Projections[Scenario], Input_Scenario_Modeled)) -> 1.5e-05 | M19: =IF(Input_Scenario_Modeled="Custom", SUMIFS(Custom_Stock_MPG[Vehicle Stock],Custom_Stock_MPG[Year],Calculations!M$4, Custom_Stock_MPG[[ Technology Type]], $B19, Custom_Stock_MPG[Vehicle Type], $A19, Custom_Stock_MPG[Scenario], Input_Scenario_Modeled), SUMIFS(Vehicle_Projections[Vehicle Stock],Vehicle_Projections[Year],Calculations!M$4,Vehicle_Projections[Technology Type], $B19, Vehicle_Projections[Vehicle Type], $A19, Vehicle_Projections[Scenario], Input_Scenario_Modeled)) -> 3.5e-05 | N19: =IF(Input_Scenario_Modeled="Custom", SUMIFS(Custom_Stock_MPG[Vehicle Stock],Custom_Stock_MPG[Year],Calculations!N$4, Custom_Stock_MPG[[ Technology Type]], $B19, Custom_Stock_MPG[Vehicle Type], $A19, Custom_Stock_MPG[Scenario], Input_Scenario_Modeled), SUMIFS(Vehicle_Projections[Vehicle Stock],Vehicle_Projections[Year],Calculations!N$4,Vehicle_Projections[Technology Type], $B19, Vehicle_Projections[Vehicle Type], $A19, Vehicle_Projections[Scenario], Input_Scenario_Modeled)) -> 6e-05 | O19: =IF(Input_Scenario_Modeled="Custom", SUMIFS(Custom_Stock_MPG[Vehicle Stock],Custom_Stock_MPG[Year],Calculations!O$4, Custom_Stock_MPG[[ Technology Type]], $B19, Custom_Stock_MPG[Vehicle Type], $A19, Custom_Stock_MPG[Scenario], Input_Scenario_Modeled), SUMIFS(Vehicle_Projections[Vehicle Stock],Vehicle_Projections[Year],Calculations!O$4,Vehicle_Projections[Technology Type], $B19, Vehicle_Projections[Vehicle Type], $A19, Vehicle_Projections[Scenario], Input_Scenario_Modeled)) -> 9.2e-05 | P19: =IF(Input_Scenario_Modeled="Custom", SUMIFS(Custom_Stock_MPG[Vehicle Stock],Custom_Stock_MPG[Year],Calculations!P$4, Custom_Stock_MPG[[ Technology Type]], $B19, Custom_Stock_MPG[Vehicle Type], $A19, Custom_Stock_MPG[Scenario], Input_Scenario_Modeled), SUMIFS(Vehicle_Projections[Vehicle Stock],Vehicle_Projections[Year],Calculations!P$4,Vehicle_Projections[Technology Type], $B19, Vehicle_Projections[Vehicle Type], $A19, Vehicle_Projections[Scenario], Input_Scenario_Modeled)) -> 0.000134 | Q19: =IF(Input_Scenario_Modeled="Custom", SUMIFS(Custom_Stock_MPG[Vehicle Stock],Custom_Stock_MPG[Year],Calculations!Q$4, Custom_Stock_MPG[[ Technology Type]], $B19, Custom_Stock_MPG[Vehicle Type], $A19, Custom_Stock_MPG[Scenario], Input_Scenario_Modeled), SUMIFS(Vehicle_Projections[Vehicle Stock],Vehicle_Projections[Year],Calculations!Q$4,Vehicle_Projections[Technology Type], $B19, Vehicle_Projections[Vehicle Type], $A19, Vehicle_Projections[Scenario], Input_Scenario_Modeled)) -> 0.000186 | R19: =IF(Input_Scenario_Modeled="Custom", SUMIFS(Custom_Stock_MPG[Vehicle Stock],Custom_Stock_MPG[Year],Calculations!R$4, Custom_Stock_MPG[[ Technology Type]], $B19, Custom_Stock_MPG[Vehicle Type], $A19, Custom_Stock_MPG[Scenario], Input_Scenario_Modeled), SUMIFS(Vehicle_Projections[Vehicle Stock],Vehicle_Projections[Year],Calculations!R$4,Vehicle_Projections[Technology Type], $B19, Vehicle_Projections[Vehicle Type], $A19, Vehicle_Projections[Scenario], Input_Scenario_Modeled)) -> 0.000251 | S19: =IF(Input_Scenario_Modeled="Custom", SUMIFS(Custom_Stock_MPG[Vehicle Stock],Custom_Stock_MPG[Year],Calculations!S$4, Custom_Stock_MPG[[ Technology Type]], $B19, Custom_Stock_MPG[Vehicle Type], $A19, Custom_Stock_MPG[Scenario], Input_Scenario_Modeled), SUMIFS(Vehicle_Projections[Vehicle Stock],Vehicle_Projections[Year],Calculations!S$4,Vehicle_Projections[Technology Type], $B19, Vehicle_Projections[Vehicle Type], $A19, Vehicle_Projections[Scenario], Input_Scenario_Modeled)) -> 0.000329 | T19: =IF(Input_Scenario_Modeled="Custom", SUMIFS(Custom_Stock_MPG[Vehicle Stock],Custom_Stock_MPG[Year],Calculations!T$4, Custom_Stock_MPG[[ Technology Type]], $B19, Custom_Stock_MPG[Vehicle Type], $A19, Custom_Stock_MPG[Scenario], Input_Scenario_Modeled), SUMIFS(Vehicle_Projections[Vehicle Stock],Vehicle_Projections[Year],Calculations!T$4,Vehicle_Projections[Technology Type], $B19, Vehicle_Projections[Vehicle Type], $A19, Vehicle_Projections[Scenario], Input_Scenario_Modeled)) -> 0.000424 | U19: =IF(Input_Scenario_Modeled="Custom", SUMIFS(Custom_Stock_MPG[Vehicle Stock],Custom_Stock_MPG[Year],Calculations!U$4, Custom_Stock_MPG[[ Technology Type]], $B19, Custom_Stock_MPG[Vehicle Type], $A19, Custom_Stock_MPG[Scenario], Input_Scenario_Modeled), SUMIFS(Vehicle_Projections[Vehicle Stock],Vehicle_Projections[Year],Calculations!U$4,Vehicle_Projections[Technology Type], $B19, Vehicle_Projections[Vehicle Type], $A19, Vehicle_Projections[Scenario], Input_Scenario_Modeled)) -> 0.000538 | V19: =IF(Input_Scenario_Modeled="Custom", SUMIFS(Custom_Stock_MPG[Vehicle Stock],Custom_Stock_MPG[Year],Calculations!V$4, Custom_Stock_MPG[[ Technology Type]], $B19, Custom_Stock_MPG[Vehicle Type], $A19, Custom_Stock_MPG[Scenario], Input_Scenario_Modeled), SUMIFS(Vehicle_Projections[Vehicle Stock],Vehicle_Projections[Year],Calculations!V$4,Vehicle_Projections[Technology Type], $B19, Vehicle_Projections[Vehicle Type], $A19, Vehicle_Projections[Scenario], Input_Scenario_Modeled)) -> 0.000673 | W19: =IF(Input_Scenario_Modeled="Custom", SUMIFS(Custom_Stock_MPG[Vehicle Stock],Custom_Stock_MPG[Year],Calculations!W$4, Custom_Stock_MPG[[ Technology Type]], $B19, Custom_Stock_MPG[Vehicle Type], $A19, Custom_Stock_MPG[Scenario], Input_Scenario_Modeled), SUMIFS(Vehicle_Projections[Vehicle Stock],Vehicle_Projections[Year],Calculations!W$4,Vehicle_Projections[Technology Type], $B19, Vehicle_Projections[Vehicle Type], $A19, Vehicle_Projections[Scenario], Input_Scenario_Modeled)) -> 0.00083 | X19: =IF(Input_Scenario_Modeled="Custom", SUMIFS(Custom_Stock_MPG[Vehicle Stock],Custom_Stock_MPG[Year],Calculations!X$4, Custom_Stock_MPG[[ Technology Type]], $B19, Custom_Stock_MPG[Vehicle Type], $A19, Custom_Stock_MPG[Scenario], Input_Scenario_Modeled), SUMIFS(Vehicle_Projections[Vehicle Stock],Vehicle_Projections[Year],Calculations!X$4,Vehicle_Projections[Technology Type], $B19, Vehicle_Projections[Vehicle Type], $A19, Vehicle_Projections[Scenario], Input_Scenario_Modeled)) -> 0.00101 | Y19: =IF(Input_Scenario_Modeled="Custom", SUMIFS(Custom_Stock_MPG[Vehicle Stock],Custom_Stock_MPG[Year],Calculations!Y$4, Custom_Stock_MPG[[ Technology Type]], $B19, Custom_Stock_MPG[Vehicle Type], $A19, Custom_Stock_MPG[Scenario], Input_Scenario_Modeled), SUMIFS(Vehicle_Projections[Vehicle Stock],Vehicle_Projections[Year],Calculations!Y$4,Vehicle_Projections[Technology Type], $B19, Vehicle_Projections[Vehicle Type], $A19, Vehicle_Projections[Scenario], Input_Scenario_Modeled)) -> 0.001212 | Z19: =IF(Input_Scenario_Modeled="Custom", SUMIFS(Custom_Stock_MPG[Vehicle Stock],Custom_Stock_MPG[Year],Calculations!Z$4, Custom_Stock_MPG[[ Technology Type]], $B19, Custom_Stock_MPG[Vehicle Type], $A19, Custom_Stock_MPG[Scenario], Input_Scenario_Modeled), SUMIFS(Vehicle_Projections[Vehicle Stock],Vehicle_Projections[Year],Calculations!Z$4,Vehicle_Projections[Technology Type], $B19, Vehicle_Projections[Vehicle Type], $A19, Vehicle_Projections[Scenario], Input_Scenario_Modeled)) -> 0.001434 | AA19: =IF(Input_Scenario_Modeled="Custom", SUMIFS(Custom_Stock_MPG[Vehicle Stock],Custom_Stock_MPG[Year],Calculations!AA$4, Custom_Stock_MPG[[ Technology Type]], $B19, Custom_Stock_MPG[Vehicle Type], $A19, Custom_Stock_MPG[Scenario], Input_Scenario_Modeled), SUMIFS(Vehicle_Projections[Vehicle Stock],Vehicle_Projections[Year],Calculations!AA$4,Vehicle_Projections[Technology Type], $B19, Vehicle_Projections[Vehicle Type], $A19, Vehicle_Projections[Scenario], Input_Scenario_Modeled)) -> 0.001673 | AB19: =IF(Input_Scenario_Modeled="Custom", SUMIFS(Custom_Stock_MPG[Vehicle Stock],Custom_Stock_MPG[Year],Calculations!AB$4, Custom_Stock_MPG[[ Technology Type]], $B19, Custom_Stock_MPG[Vehicle Type], $A19, Custom_Stock_MPG[Scenario], Input_Scenario_Modeled), SUMIFS(Vehicle_Projections[Vehicle Stock],Vehicle_Projections[Year],Calculations!AB$4,Vehicle_Projections[Technology Type], $B19, Vehicle_Projections[Vehicle Type], $A19, Vehicle_Projections[Scenario], Input_Scenario_Modeled)) -> 0.001926 | AC19: =IF(Input_Scenario_Modeled="Custom", SUMIFS(Custom_Stock_MPG[Vehicle Stock],Custom_Stock_MPG[Year],Calculations!AC$4, Custom_Stock_MPG[[ Technology Type]], $B19, Custom_Stock_MPG[Vehicle Type], $A19, Custom_Stock_MPG[Scenario], Input_Scenario_Modeled), SUMIFS(Vehicle_Projections[Vehicle Stock],Vehicle_Projections[Year],Calculations!AC$4,Vehicle_Projections[Technology Type], $B19, Vehicle_Projections[Vehicle Type], $A19, Vehicle_Projections[Scenario], Input_Scenario_Modeled)) -> 0.002189 | AD19: =IF(Input_Scenario_Modeled="Custom", SUMIFS(Custom_Stock_MPG[Vehicle Stock],Custom_Stock_MPG[Year],Calculations!AD$4, Custom_Stock_MPG[[ Technology Type]], $B19, Custom_Stock_MPG[Vehicle Type], $A19, Custom_Stock_MPG[Scenario], Input_Scenario_Modeled), SUMIFS(Vehicle_Projections[Vehicle Stock],Vehicle_Projections[Year],Calculations!AD$4,Vehicle_Projections[Technology Type], $B19, Vehicle_Projections[Vehicle Type], $A19, Vehicle_Projections[Scenario], Input_Scenario_Modeled)) -> 0.002459 | AE19: =IF(Input_Scenario_Modeled="Custom", SUMIFS(Custom_Stock_MPG[Vehicle Stock],Custom_Stock_MPG[Year],Calculations!AE$4, Custom_Stock_MPG[[ Technology Type]], $B19, Custom_Stock_MPG[Vehicle Type], $A19, Custom_Stock_MPG[Scenario], Input_Scenario_Modeled), SUMIFS(Vehicle_Projections[Vehicle Stock],Vehicle_Projections[Year],Calculations!AE$4,Vehicle_Projections[Technology Type], $B19, Vehicle_Projections[Vehicle Type], $A19, Vehicle_Projections[Scenario], Input_Scenario_Modeled)) -> 0.002733 | AF19: =IF(Input_Scenario_Modeled="Custom", SUMIFS(Custom_Stock_MPG[Vehicle Stock],Custom_Stock_MPG[Year],Calculations!AF$4, Custom_Stock_MPG[[ Technology Type]], $B19, Custom_Stock_MPG[Vehicle Type], $A19, Custom_Stock_MPG[Scenario], Input_Scenario_Modeled), SUMIFS(Vehicle_Projections[Vehicle Stock],Vehicle_Projections[Year],Calculations!AF$4,Vehicle_Projections[Technology Type], $B19, Vehicle_Projections[Vehicle Type], $A19, Vehicle_Projections[Scenario], Input_Scenario_Modeled)) -> 0.003008 | AG19: =IF(Input_Scenario_Modeled="Custom", SUMIFS(Custom_Stock_MPG[Vehicle Stock],Custom_Stock_MPG[Year],Calculations!AG$4, Custom_Stock_MPG[[ Technology Type]], $B19, Custom_Stock_MPG[Vehicle Type], $A19, Custom_Stock_MPG[Scenario], Input_Scenario_Modeled), SUMIFS(Vehicle_Projections[Vehicle Stock],Vehicle_Projections[Year],Calculations!AG$4,Vehicle_Projections[Technology Type], $B19, Vehicle_Projections[Vehicle Type], $A19, Vehicle_Projections[Scenario], Input_Scenario_Modeled)) -> 0.003279 | AH19: =IF(Input_Scenario_Modeled="Custom", SUMIFS(Custom_Stock_MPG[Vehicle Stock],Custom_Stock_MPG[Year],Calculations!AH$4, Custom_Stock_MPG[[ Technology Type]], $B19, Custom_Stock_MPG[Vehicle Type], $A19, Custom_Stock_MPG[Scenario], Input_Scenario_Modeled), SUMIFS(Vehicle_Projections[Vehicle Stock],Vehicle_Projections[Year],Calculations!AH$4,Vehicle_Projections[Technology Type], $B19, Vehicle_Projections[Vehicle Type], $A19, Vehicle_Projections[Scenario], Input_Scenario_Modeled)) -> 0.003545 | AI19: =IF(Input_Scenario_Modeled="Custom", SUMIFS(Custom_Stock_MPG[Vehicle Stock],Custom_Stock_MPG[Year],Calculations!AI$4, Custom_Stock_MPG[[ Technology Type]], $B19, Custom_Stock_MPG[Vehicle Type], $A19, Custom_Stock_MPG[Scenario], Input_Scenario_Modeled), SUMIFS(Vehicle_Projections[Vehicle Stock],Vehicle_Projections[Year],Calculations!AI$4,Vehicle_Projections[Technology Type], $B19, Vehicle_Projections[Vehicle Type], $A19, Vehicle_Projections[Scenario], Input_Scenario_Modeled)) -> 0.003802 | AJ19: =IF(Input_Scenario_Modeled="Custom", SUMIFS(Custom_Stock_MPG[Vehicle Stock],Custom_Stock_MPG[Year],Calculations!AJ$4, Custom_Stock_MPG[[ Technology Type]], $B19, Custom_Stock_MPG[Vehicle Type], $A19, Custom_Stock_MPG[Scenario], Input_Scenario_Modeled), SUMIFS(Vehicle_Projections[Vehicle Stock],Vehicle_Projections[Year],Calculations!AJ$4,Vehicle_Projections[Technology Type], $B19, Vehicle_Projections[Vehicle Type], $A19, Vehicle_Projections[Scenario], Input_Scenario_Modeled)) -> 0.004051
A20: Light Trucks | B20: 100 Mile Electric Vehicle | C20: Electricity | D20: Stock | E20: =IF(Input_Scenario_Modeled="Custom", SUMIFS(Custom_Stock_MPG[Vehicle Stock],Custom_Stock_MPG[Year],Calculations!E$4, Custom_Stock_MPG[[ Technology Type]], $B20, Custom_Stock_MPG[Vehicle Type], $A20, Custom_Stock_MPG[Scenario], Input_Scenario_Modeled), SUMIFS(Vehicle_Projections[Vehicle Stock],Vehicle_Projections[Year],Calculations!E$4,Vehicle_Projections[Technology Type], $B20, Vehicle_Projections[Vehicle Type], $A20, Vehicle_Projections[Scenario], Input_Scenario_Modeled)) -> 0.000176 | F20: =IF(Input_Scenario_Modeled="Custom", SUMIFS(Custom_Stock_MPG[Vehicle Stock],Custom_Stock_MPG[Year],Calculations!F$4, Custom_Stock_MPG[[ Technology Type]], $B20, Custom_Stock_MPG[Vehicle Type], $A20, Custom_Stock_MPG[Scenario], Input_Scenario_Modeled), SUMIFS(Vehicle_Projections[Vehicle Stock],Vehicle_Projections[Year],Calculations!F$4,Vehicle_Projections[Technology Type], $B20, Vehicle_Projections[Vehicle Type], $A20, Vehicle_Projections[Scenario], Input_Scenario_Modeled)) -> 0.000402 | G20: =IF(Input_Scenario_Modeled="Custom", SUMIFS(Custom_Stock_MPG[Vehicle Stock],Custom_Stock_MPG[Year],Calculations!G$4, Custom_Stock_MPG[[ Technology Type]], $B20, Custom_Stock_MPG[Vehicle Type], $A20, Custom_Stock_MPG[Scenario], Input_Scenario_Modeled), SUMIFS(Vehicle_Projections[Vehicle Stock],Vehicle_Projections[Year],Calculations!G$4,Vehicle_Projections[Technology Type], $B20, Vehicle_Projections[Vehicle Type], $A20, Vehicle_Projections[Scenario], Input_Scenario_Modeled)) -> 0.000699 | H20: =IF(Input_Scenario_Modeled="Custom", SUMIFS(Custom_Stock_MPG[Vehicle Stock],Custom_Stock_MPG[Year],Calculations!H$4, Custom_Stock_MPG[[ Technology Type]], $B20, Custom_Stock_MPG[Vehicle Type], $A20, Custom_Stock_MPG[Scenario], Input_Scenario_Modeled), SUMIFS(Vehicle_Projections[Vehicle Stock],Vehicle_Projections[Year],Calculations!H$4,Vehicle_Projections[Technology Type], $B20, Vehicle_Projections[Vehicle Type], $A20, Vehicle_Projections[Scenario], Input_Scenario_Modeled)) -> 0.001083 | I20: =IF(Input_Scenario_Modeled="Custom", SUMIFS(Custom_Stock_MPG[Vehicle Stock],Custom_Stock_MPG[Year],Calculations!I$4, Custom_Stock_MPG[[ Technology Type]], $B20, Custom_Stock_MPG[Vehicle Type], $A20, Custom_Stock_MPG[Scenario], Input_Scenario_Modeled), SUMIFS(Vehicle_Projections[Vehicle Stock],Vehicle_Projections[Year],Calculations!I$4,Vehicle_Projections[Technology Type], $B20, Vehicle_Projections[Vehicle Type], $A20, Vehicle_Projections[Scenario], Input_Scenario_Modeled)) -> 0.001583 | J20: =IF(Input_Scenario_Modeled="Custom", SUMIFS(Custom_Stock_MPG[Vehicle Stock],Custom_Stock_MPG[Year],Calculations!J$4, Custom_Stock_MPG[[ Technology Type]], $B20, Custom_Stock_MPG[Vehicle Type], $A20, Custom_Stock_MPG[Scenario], Input_Scenario_Modeled), SUMIFS(Vehicle_Projections[Vehicle Stock],Vehicle_Projections[Year],Calculations!J$4,Vehicle_Projections[Technology Type], $B20, Vehicle_Projections[Vehicle Type], $A20, Vehicle_Projections[Scenario], Input_Scenario_Modeled)) -> 0.002229 | K20: =IF(Input_Scenario_Modeled="Custom", SUMIFS(Custom_Stock_MPG[Vehicle Stock],Custom_Stock_MPG[Year],Calculations!K$4, Custom_Stock_MPG[[ Technology Type]], $B20, Custom_Stock_MPG[Vehicle Type], $A20, Custom_Stock_MPG[Scenario], Input_Scenario_Modeled), SUMIFS(Vehicle_Projections[Vehicle Stock],Vehicle_Projections[Year],Calculations!K$4,Vehicle_Projections[Technology Type], $B20, Vehicle_Projections[Vehicle Type], $A20, Vehicle_Projections[Scenario], Input_Scenario_Modeled)) -> 0.003052 | L20: =IF(Input_Scenario_Modeled="Custom", SUMIFS(Custom_Stock_MPG[Vehicle Stock],Custom_Stock_MPG[Year],Calculations!L$4, Custom_Stock_MPG[[ Technology Type]], $B20, Custom_Stock_MPG[Vehicle Type], $A20, Custom_Stock_MPG[Scenario], Input_Scenario_Modeled), SUMIFS(Vehicle_Projections[Vehicle Stock],Vehicle_Projections[Year],Calculations!L$4,Vehicle_Projections[Technology Type], $B20, Vehicle_Projections[Vehicle Type], $A20, Vehicle_Projections[Scenario], Input_Scenario_Modeled)) -> 0.004075 | M20: =IF(Input_Scenario_Modeled="Custom", SUMIFS(Custom_Stock_MPG[Vehicle Stock],Custom_Stock_MPG[Year],Calculations!M$4, Custom_Stock_MPG[[ Technology Type]], $B20, Custom_Stock_MPG[Vehicle Type], $A20, Custom_Stock_MPG[Scenario], Input_Scenario_Modeled), SUMIFS(Vehicle_Projections[Vehicle Stock],Vehicle_Projections[Year],Calculations!M$4,Vehicle_Projections[Technology Type], $B20, Vehicle_Projections[Vehicle Type], $A20, Vehicle_Projections[Scenario], Input_Scenario_Modeled)) -> 0.005322 | N20: =IF(Input_Scenario_Modeled="Custom", SUMIFS(Custom_Stock_MPG[Vehicle Stock],Custom_Stock_MPG[Year],Calculations!N$4, Custom_Stock_MPG[[ Technology Type]], $B20, Custom_Stock_MPG[Vehicle Type], $A20, Custom_Stock_MPG[Scenario], Input_Scenario_Modeled), SUMIFS(Vehicle_Projections[Vehicle Stock],Vehicle_Projections[Year],Calculations!N$4,Vehicle_Projections[Technology Type], $B20, Vehicle_Projections[Vehicle Type], $A20, Vehicle_Projections[Scenario], Input_Scenario_Modeled)) -> 0.00682 | O20: =IF(Input_Scenario_Modeled="Custom", SUMIFS(Custom_Stock_MPG[Vehicle Stock],Custom_Stock_MPG[Year],Calculations!O$4, Custom_Stock_MPG[[ Technology Type]], $B20, Custom_Stock_MPG[Vehicle Type], $A20, Custom_Stock_MPG[Scenario], Input_Scenario_Modeled), SUMIFS(Vehicle_Projections[Vehicle Stock],Vehicle_Projections[Year],Calculations!O$4,Vehicle_Projections[Technology Type], $B20, Vehicle_Projections[Vehicle Type], $A20, Vehicle_Projections[Scenario], Input_Scenario_Modeled)) -> 0.008588 | P20: =IF(Input_Scenario_Modeled="Custom", SUMIFS(Custom_Stock_MPG[Vehicle Stock],Custom_Stock_MPG[Year],Calculations!P$4, Custom_Stock_MPG[[ Technology Type]], $B20, Custom_Stock_MPG[Vehicle Type], $A20, Custom_Stock_MPG[Scenario], Input_Scenario_Modeled), SUMIFS(Vehicle_Projections[Vehicle Stock],Vehicle_Projections[Year],Calculations!P$4,Vehicle_Projections[Technology Type], $B20, Vehicle_Projections[Vehicle Type], $A20, Vehicle_Projections[Scenario], Input_Scenario_Modeled)) -> 0.010619 | Q20: =IF(Input_Scenario_Modeled="Custom", SUMIFS(Custom_Stock_MPG[Vehicle Stock],Custom_Stock_MPG[Year],Calculations!Q$4, Custom_Stock_MPG[[ Technology Type]], $B20, Custom_Stock_MPG[Vehicle Type], $A20, Custom_Stock_MPG[Scenario], Input_Scenario_Modeled), SUMIFS(Vehicle_Projections[Vehicle Stock],Vehicle_Projections[Year],Calculations!Q$4,Vehicle_Projections[Technology Type], $B20, Vehicle_Projections[Vehicle Type], $A20, Vehicle_Projections[Scenario], Input_Scenario_Modeled)) -> 0.012912 | R20: =IF(Input_Scenario_Modeled="Custom", SUMIFS(Custom_Stock_MPG[Vehicle Stock],Custom_Stock_MPG[Year],Calculations!R$4, Custom_Stock_MPG[[ Technology Type]], $B20, Custom_Stock_MPG[Vehicle Type], $A20, Custom_Stock_MPG[Scenario], Input_Scenario_Modeled), SUMIFS(Vehicle_Projections[Vehicle Stock],Vehicle_Projections[Year],Calculations!R$4,Vehicle_Projections[Technology Type], $B20, Vehicle_Projections[Vehicle Type], $A20, Vehicle_Projections[Scenario], Input_Scenario_Modeled)) -> 0.015461 | S20: =IF(Input_Scenario_Modeled="Custom", SUMIFS(Custom_Stock_MPG[Vehicle Stock],Custom_Stock_MPG[Year],Calculations!S$4, Custom_Stock_MPG[[ Technology Type]], $B20, Custom_Stock_MPG[Vehicle Type], $A20, Custom_Stock_MPG[Scenario], Input_Scenario_Modeled), SUMIFS(Vehicle_Projections[Vehicle Stock],Vehicle_Projections[Year],Calculations!S$4,Vehicle_Projections[Technology Type], $B20, Vehicle_Projections[Vehicle Type], $A20, Vehicle_Projections[Scenario], Input_Scenario_Modeled)) -> 0.018225 | T20: =IF(Input_Scenario_Modeled="Custom", SUMIFS(Custom_Stock_MPG[Vehicle Stock],Custom_Stock_MPG[Year],Calculations!T$4, Custom_Stock_MPG[[ Technology Type]], $B20, Custom_Stock_MPG[Vehicle Type], $A20, Custom_Stock_MPG[Scenario], Input_Scenario_Modeled), SUMIFS(Vehicle_Projections[Vehicle Stock],Vehicle_Projections[Year],Calculations!T$4,Vehicle_Projections[Technology Type], $B20, Vehicle_Projections[Vehicle Type], $A20, Vehicle_Projections[Scenario], Input_Scenario_Modeled)) -> 0.021164 | U20: =IF(Input_Scenario_Modeled="Custom", SUMIFS(Custom_Stock_MPG[Vehicle Stock],Custom_Stock_MPG[Year],Calculations!U$4, Custom_Stock_MPG[[ Technology Type]], $B20, Custom_Stock_MPG[Vehicle Type], $A20, Custom_Stock_MPG[Scenario], Input_Scenario_Modeled), SUMIFS(Vehicle_Projections[Vehicle Stock],Vehicle_Projections[Year],Calculations!U$4,Vehicle_Projections[Technology Type], $B20, Vehicle_Projections[Vehicle Type], $A20, Vehicle_Projections[Scenario], Input_Scenario_Modeled)) -> 0.02425 | V20: =IF(Input_Scenario_Modeled="Custom", SUMIFS(Custom_Stock_MPG[Vehicle Stock],Custom_Stock_MPG[Year],Calculations!V$4, Custom_Stock_MPG[[ Technology Type]], $B20, Custom_Stock_MPG[Vehicle Type], $A20, Custom_Stock_MPG[Scenario], Input_Scenario_Modeled), SUMIFS(Vehicle_Projections[Vehicle Stock],Vehicle_Projections[Year],Calculations!V$4,Vehicle_Projections[Technology Type], $B20, Vehicle_Projections[Vehicle Type], $A20, Vehicle_Projections[Scenario], Input_Scenario_Modeled)) -> 0.027451 | W20: =IF(Input_Scenario_Modeled="Custom", SUMIFS(Custom_Stock_MPG[Vehicle Stock],Custom_Stock_MPG[Year],Calculations!W$4, Custom_Stock_MPG[[ Technology Type]], $B20, Custom_Stock_MPG[Vehicle Type], $A20, Custom_Stock_MPG[Scenario], Input_Scenario_Modeled), SUMIFS(Vehicle_Projections[Vehicle Stock],Vehicle_Projections[Year],Calculations!W$4,Vehicle_Projections[Technology Type], $B20, Vehicle_Projections[Vehicle Type], $A20, Vehicle_Projections[Scenario], Input_Scenario_Modeled)) -> 0.030735 | X20: =IF(Input_Scenario_Modeled="Custom", SUMIFS(Custom_Stock_MPG[Vehicle Stock],Custom_Stock_MPG[Year],Calculations!X$4, Custom_Stock_MPG[[ Technology Type]], $B20, Custom_Stock_MPG[Vehicle Type], $A20, Custom_Stock_MPG[Scenario], Input_Scenario_Modeled), SUMIFS(Vehicle_Projections[Vehicle Stock],Vehicle_Projections[Year],Calculations!X$4,Vehicle_Projections[Technology Type], $B20, Vehicle_Projections[Vehicle Type], $A20, Vehicle_Projections[Scenario], Input_Scenario_Modeled)) -> 0.034059 | Y20: =IF(Input_Scenario_Modeled="Custom", SUMIFS(Custom_Stock_MPG[Vehicle Stock],Custom_Stock_MPG[Year],Calculations!Y$4, Custom_Stock_MPG[[ Technology Type]], $B20, Custom_Stock_MPG[Vehicle Type], $A20, Custom_Stock_MPG[Scenario], Input_Scenario_Modeled), SUMIFS(Vehicle_Projections[Vehicle Stock],Vehicle_Projections[Year],Calculations!Y$4,Vehicle_Projections[Technology Type], $B20, Vehicle_Projections[Vehicle Type], $A20, Vehicle_Projections[Scenario], Input_Scenario_Modeled)) -> 0.037374 | Z20: =IF(Input_Scenario_Modeled="Custom", SUMIFS(Custom_Stock_MPG[Vehicle Stock],Custom_Stock_MPG[Year],Calculations!Z$4, Custom_Stock_MPG[[ Technology Type]], $B20, Custom_Stock_MPG[Vehicle Type], $A20, Custom_Stock_MPG[Scenario], Input_Scenario_Modeled), SUMIFS(Vehicle_Projections[Vehicle Stock],Vehicle_Projections[Year],Calculations!Z$4,Vehicle_Projections[Technology Type], $B20, Vehicle_Projections[Vehicle Type], $A20, Vehicle_Projections[Scenario], Input_Scenario_Modeled)) -> 0.040652 | AA20: =IF(Input_Scenario_Modeled="Custom", SUMIFS(Custom_Stock_MPG[Vehicle Stock],Custom_Stock_MPG[Year],Calculations!AA$4, Custom_Stock_MPG[[ Technology Type]], $B20, Custom_Stock_MPG[Vehicle Type], $A20, Custom_Stock_MPG[Scenario], Input_Scenario_Modeled), SUMIFS(Vehicle_Projections[Vehicle Stock],Vehicle_Projections[Year],Calculations!AA$4,Vehicle_Projections[Technology Type], $B20, Vehicle_Projections[Vehicle Type], $A20, Vehicle_Projections[Scenario], Input_Scenario_Modeled)) -> 0.043871 | AB20: =IF(Input_Scenario_Modeled="Custom", SUMIFS(Custom_Stock_MPG[Vehicle Stock],Custom_Stock_MPG[Year],Calculations!AB$4, Custom_Stock_MPG[[ Technology Type]], $B20, Custom_Stock_MPG[Vehicle Type], $A20, Custom_Stock_MPG[Scenario], Input_Scenario_Modeled), SUMIFS(Vehicle_Projections[Vehicle Stock],Vehicle_Projections[Year],Calculations!AB$4,Vehicle_Projections[Technology Type], $B20, Vehicle_Projections[Vehicle Type], $A20, Vehicle_Projections[Scenario], Input_Scenario_Modeled)) -> 0.046986 | AC20: =IF(Input_Scenario_Modeled="Custom", SUMIFS(Custom_Stock_MPG[Vehicle Stock],Custom_Stock_MPG[Year],Calculations!AC$4, Custom_Stock_MPG[[ Technology Type]], $B20, Custom_Stock_MPG[Vehicle Type], $A20, Custom_Stock_MPG[Scenario], Input_Scenario_Modeled), SUMIFS(Vehicle_Projections[Vehicle Stock],Vehicle_Projections[Year],Calculations!AC$4,Vehicle_Projections[Technology Type], $B20, Vehicle_Projections[Vehicle Type], $A20, Vehicle_Projections[Scenario], Input_Scenario_Modeled)) -> 0.049985 | AD20: =IF(Input_Scenario_Modeled="Custom", SUMIFS(Custom_Stock_MPG[Vehicle Stock],Custom_Stock_MPG[Year],Calculations!AD$4, Custom_Stock_MPG[[ Technology Type]], $B20, Custom_Stock_MPG[Vehicle Type], $A20, Custom_Stock_MPG[Scenario], Input_Scenario_Modeled), SUMIFS(Vehicle_Projections[Vehicle Stock],Vehicle_Projections[Year],Calculations!AD$4,Vehicle_Projections[Technology Type], $B20, Vehicle_Projections[Vehicle Type], $A20, Vehicle_Projections[Scenario], Input_Scenario_Modeled)) -> 0.052872 | AE20: =IF(Input_Scenario_Modeled="Custom", SUMIFS(Custom_Stock_MPG[Vehicle Stock],Custom_Stock_MPG[Year],Calculations!AE$4, Custom_Stock_MPG[[ Technology Type]], $B20, Custom_Stock_MPG[Vehicle Type], $A20, Custom_Stock_MPG[Scenario], Input_Scenario_Modeled), SUMIFS(Vehicle_Projections[Vehicle Stock],Vehicle_Projections[Year],Calculations!AE$4,Vehicle_Projections[Technology Type], $B20, Vehicle_Projections[Vehicle Type], $A20, Vehicle_Projections[Scenario], Input_Scenario_Modeled)) -> 0.05564 | AF20: =IF(Input_Scenario_Modeled="Custom", SUMIFS(Custom_Stock_MPG[Vehicle Stock],Custom_Stock_MPG[Year],Calculations!AF$4, Custom_Stock_MPG[[ Technology Type]], $B20, Custom_Stock_MPG[Vehicle Type], $A20, Custom_Stock_MPG[Scenario], Input_Scenario_Modeled), SUMIFS(Vehicle_Projections[Vehicle Stock],Vehicle_Projections[Year],Calculations!AF$4,Vehicle_Projections[Technology Type], $B20, Vehicle_Projections[Vehicle Type], $A20, Vehicle_Projections[Scenario], Input_Scenario_Modeled)) -> 0.058302 | AG20: =IF(Input_Scenario_Modeled="Custom", SUMIFS(Custom_Stock_MPG[Vehicle Stock],Custom_Stock_MPG[Year],Calculations!AG$4, Custom_Stock_MPG[[ Technology Type]], $B20, Custom_Stock_MPG[Vehicle Type], $A20, Custom_Stock_MPG[Scenario], Input_Scenario_Modeled), SUMIFS(Vehicle_Projections[Vehicle Stock],Vehicle_Projections[Year],Calculations!AG$4,Vehicle_Projections[Technology Type], $B20, Vehicle_Projections[Vehicle Type], $A20, Vehicle_Projections[Scenario], Input_Scenario_Modeled)) -> 0.060847 | AH20: =IF(Input_Scenario_Modeled="Custom", SUMIFS(Custom_Stock_MPG[Vehicle Stock],Custom_Stock_MPG[Year],Calculations!AH$4, Custom_Stock_MPG[[ Technology Type]], $B20, Custom_Stock_MPG[Vehicle Type], $A20, Custom_Stock_MPG[Scenario], Input_Scenario_Modeled), SUMIFS(Vehicle_Projections[Vehicle Stock],Vehicle_Projections[Year],Calculations!AH$4,Vehicle_Projections[Technology Type], $B20, Vehicle_Projections[Vehicle Type], $A20, Vehicle_Projections[Scenario], Input_Scenario_Modeled)) -> 0.063284 | AI20: =IF(Input_Scenario_Modeled="Custom", SUMIFS(Custom_Stock_MPG[Vehicle Stock],Custom_Stock_MPG[Year],Calculations!AI$4, Custom_Stock_MPG[[ Technology Type]], $B20, Custom_Stock_MPG[Vehicle Type], $A20, Custom_Stock_MPG[Scenario], Input_Scenario_Modeled), SUMIFS(Vehicle_Projections[Vehicle Stock],Vehicle_Projections[Year],Calculations!AI$4,Vehicle_Projections[Technology Type], $B20, Vehicle_Projections[Vehicle Type], $A20, Vehicle_Projections[Scenario], Input_Scenario_Modeled)) -> 0.065627 | AJ20: =IF(Input_Scenario_Modeled="Custom", SUMIFS(Custom_Stock_MPG[Vehicle Stock],Custom_Stock_MPG[Year],Calculations!AJ$4, Custom_Stock_MPG[[ Technology Type]], $B20, Custom_Stock_MPG[Vehicle Type], $A20, Custom_Stock_MPG[Scenario], Input_Scenario_Modeled), SUMIFS(Vehicle_Projections[Vehicle Stock],Vehicle_Projections[Year],Calculations!AJ$4,Vehicle_Projections[Technology Type], $B20, Vehicle_Projections[Vehicle Type], $A20, Vehicle_Projections[Scenario], Input_Scenario_Modeled)) -> 0.0679
A21: Light Trucks | B21: 200 Mile Electric Vehicle | C21: Electricity | D21: Stock | E21: =IF(Input_Scenario_Modeled="Custom", SUMIFS(Custom_Stock_MPG[Vehicle Stock],Custom_Stock_MPG[Year],Calculations!E$4, Custom_Stock_MPG[[ Technology Type]], $B21, Custom_Stock_MPG[Vehicle Type], $A21, Custom_Stock_MPG[Scenario], Input_Scenario_Modeled), SUMIFS(Vehicle_Projections[Vehicle Stock],Vehicle_Projections[Year],Calculations!E$4,Vehicle_Projections[Technology Type], $B21, Vehicle_Projections[Vehicle Type], $A21, Vehicle_Projections[Scenario], Input_Scenario_Modeled)) -> 0.05451 | F21: =IF(Input_Scenario_Modeled="Custom", SUMIFS(Custom_Stock_MPG[Vehicle Stock],Custom_Stock_MPG[Year],Calculations!F$4, Custom_Stock_MPG[[ Technology Type]], $B21, Custom_Stock_MPG[Vehicle Type], $A21, Custom_Stock_MPG[Scenario], Input_Scenario_Modeled), SUMIFS(Vehicle_Projections[Vehicle Stock],Vehicle_Projections[Year],Calculations!F$4,Vehicle_Projections[Technology Type], $B21, Vehicle_Projections[Vehicle Type], $A21, Vehicle_Projections[Scenario], Input_Scenario_Modeled)) -> 0.108663 | G21: =IF(Input_Scenario_Modeled="Custom", SUMIFS(Custom_Stock_MPG[Vehicle Stock],Custom_Stock_MPG[Year],Calculations!G$4, Custom_Stock_MPG[[ Technology Type]], $B21, Custom_Stock_MPG[Vehicle Type], $A21, Custom_Stock_MPG[Scenario], Input_Scenario_Modeled), SUMIFS(Vehicle_Projections[Vehicle Stock],Vehicle_Projections[Year],Calculations!G$4,Vehicle_Projections[Technology Type], $B21, Vehicle_Projections[Vehicle Type], $A21, Vehicle_Projections[Scenario], Input_Scenario_Modeled)) -> 0.169265 | H21: =IF(Input_Scenario_Modeled="Custom", SUMIFS(Custom_Stock_MPG[Vehicle Stock],Custom_Stock_MPG[Year],Calculations!H$4, Custom_Stock_MPG[[ Technology Type]], $B21, Custom_Stock_MPG[Vehicle Type], $A21, Custom_Stock_MPG[Scenario], Input_Scenario_Modeled), SUMIFS(Vehicle_Projections[Vehicle Stock],Vehicle_Projections[Year],Calculations!H$4,Vehicle_Projections[Technology Type], $B21, Vehicle_Projections[Vehicle Type], $A21, Vehicle_Projections[Scenario], Input_Scenario_Modeled)) -> 0.23546 | I21: =IF(Input_Scenario_Modeled="Custom", SUMIFS(Custom_Stock_MPG[Vehicle Stock],Custom_Stock_MPG[Year],Calculations!I$4, Custom_Stock_MPG[[ Technology Type]], $B21, Custom_Stock_MPG[Vehicle Type], $A21, Custom_Stock_MPG[Scenario], Input_Scenario_Modeled), SUMIFS(Vehicle_Projections[Vehicle Stock],Vehicle_Projections[Year],Calculations!I$4,Vehicle_Projections[Technology Type], $B21, Vehicle_Projections[Vehicle Type], $A21, Vehicle_Projections[Scenario], Input_Scenario_Modeled)) -> 0.305261 | J21: =IF(Input_Scenario_Modeled="Custom", SUMIFS(Custom_Stock_MPG[Vehicle Stock],Custom_Stock_MPG[Year],Calculations!J$4, Custom_Stock_MPG[[ Technology Type]], $B21, Custom_Stock_MPG[Vehicle Type], $A21, Custom_Stock_MPG[Scenario], Input_Scenario_Modeled), SUMIFS(Vehicle_Projections[Vehicle Stock],Vehicle_Projections[Year],Calculations!J$4,Vehicle_Projections[Technology Type], $B21, Vehicle_Projections[Vehicle Type], $A21, Vehicle_Projections[Scenario], Input_Scenario_Modeled)) -> 0.381332 | K21: =IF(Input_Scenario_Modeled="Custom", SUMIFS(Custom_Stock_MPG[Vehicle Stock],Custom_Stock_MPG[Year],Calculations!K$4, Custom_Stock_MPG[[ Technology Type]], $B21, Custom_Stock_MPG[Vehicle Type], $A21, Custom_Stock_MPG[Scenario], Input_Scenario_Modeled), SUMIFS(Vehicle_Projections[Vehicle Stock],Vehicle_Projections[Year],Calculations!K$4,Vehicle_Projections[Technology Type], $B21, Vehicle_Projections[Vehicle Type], $A21, Vehicle_Projections[Scenario], Input_Scenario_Modeled)) -> 0.458363 | L21: =IF(Input_Scenario_Modeled="Custom", SUMIFS(Custom_Stock_MPG[Vehicle Stock],Custom_Stock_MPG[Year],Calculations!L$4, Custom_Stock_MPG[[ Technology Type]], $B21, Custom_Stock_MPG[Vehicle Type], $A21, Custom_Stock_MPG[Scenario], Input_Scenario_Modeled), SUMIFS(Vehicle_Projections[Vehicle Stock],Vehicle_Projections[Year],Calculations!L$4,Vehicle_Projections[Technology Type], $B21, Vehicle_Projections[Vehicle Type], $A21, Vehicle_Projections[Scenario], Input_Scenario_Modeled)) -> 0.534358 | M21: =IF(Input_Scenario_Modeled="Custom", SUMIFS(Custom_Stock_MPG[Vehicle Stock],Custom_Stock_MPG[Year],Calculations!M$4, Custom_Stock_MPG[[ Technology Type]], $B21, Custom_Stock_MPG[Vehicle Type], $A21, Custom_Stock_MPG[Scenario], Input_Scenario_Modeled), SUMIFS(Vehicle_Projections[Vehicle Stock],Vehicle_Projections[Year],Calculations!M$4,Vehicle_Projections[Technology Type], $B21, Vehicle_Projections[Vehicle Type], $A21, Vehicle_Projections[Scenario], Input_Scenario_Modeled)) -> 0.609973 | N21: =IF(Input_Scenario_Modeled="Custom", SUMIFS(Custom_Stock_MPG[Vehicle Stock],Custom_Stock_MPG[Year],Calculations!N$4, Custom_Stock_MPG[[ Technology Type]], $B21, Custom_Stock_MPG[Vehicle Type], $A21, Custom_Stock_MPG[Scenario], Input_Scenario_Modeled), SUMIFS(Vehicle_Projections[Vehicle Stock],Vehicle_Projections[Year],Calculations!N$4,Vehicle_Projections[Technology Type], $B21, Vehicle_Projections[Vehicle Type], $A21, Vehicle_Projections[Scenario], Input_Scenario_Modeled)) -> 0.686163 | O21: =IF(Input_Scenario_Modeled="Custom", SUMIFS(Custom_Stock_MPG[Vehicle Stock],Custom_Stock_MPG[Year],Calculations!O$4, Custom_Stock_MPG[[ Technology Type]], $B21, Custom_Stock_MPG[Vehicle Type], $A21, Custom_Stock_MPG[Scenario], Input_Scenario_Modeled), SUMIFS(Vehicle_Projections[Vehicle Stock],Vehicle_Projections[Year],Calculations!O$4,Vehicle_Projections[Technology Type], $B21, Vehicle_Projections[Vehicle Type], $A21, Vehicle_Projections[Scenario], Input_Scenario_Modeled)) -> 0.763807 | P21: =IF(Input_Scenario_Modeled="Custom", SUMIFS(Custom_Stock_MPG[Vehicle Stock],Custom_Stock_MPG[Year],Calculations!P$4, Custom_Stock_MPG[[ Technology Type]], $B21, Custom_Stock_MPG[Vehicle Type], $A21, Custom_Stock_MPG[Scenario], Input_Scenario_Modeled), SUMIFS(Vehicle_Projections[Vehicle Stock],Vehicle_Projections[Year],Calculations!P$4,Vehicle_Projections[Technology Type], $B21, Vehicle_Projections[Vehicle Type], $A21, Vehicle_Projections[Scenario], Input_Scenario_Modeled)) -> 0.843976 | Q21: =IF(Input_Scenario_Modeled="Custom", SUMIFS(Custom_Stock_MPG[Vehicle Stock],Custom_Stock_MPG[Year],Calculations!Q$4, Custom_Stock_MPG[[ Technology Type]], $B21, Custom_Stock_MPG[Vehicle Type], $A21, Custom_Stock_MPG[Scenario], Input_Scenario_Modeled), SUMIFS(Vehicle_Projections[Vehicle Stock],Vehicle_Projections[Year],Calculations!Q$4,Vehicle_Projections[Technology Type], $B21, Vehicle_Projections[Vehicle Type], $A21, Vehicle_Projections[Scenario], Input_Scenario_Modeled)) -> 0.926292 | R21: =IF(Input_Scenario_Modeled="Custom", SUMIFS(Custom_Stock_MPG[Vehicle Stock],Custom_Stock_MPG[Year],Calculations!R$4, Custom_Stock_MPG[[ Technology Type]], $B21, Custom_Stock_MPG[Vehicle Type], $A21, Custom_Stock_MPG[Scenario], Input_Scenario_Modeled), SUMIFS(Vehicle_Projections[Vehicle Stock],Vehicle_Projections[Year],Calculations!R$4,Vehicle_Projections[Technology Type], $B21, Vehicle_Projections[Vehicle Type], $A21, Vehicle_Projections[Scenario], Input_Scenario_Modeled)) -> 1.011531 | S21: =IF(Input_Scenario_Modeled="Custom", SUMIFS(Custom_Stock_MPG[Vehicle Stock],Custom_Stock_MPG[Year],Calculations!S$4, Custom_Stock_MPG[[ Technology Type]], $B21, Custom_Stock_MPG[Vehicle Type], $A21, Custom_Stock_MPG[Scenario], Input_Scenario_Modeled), SUMIFS(Vehicle_Projections[Vehicle Stock],Vehicle_Projections[Year],Calculations!S$4,Vehicle_Projections[Technology Type], $B21, Vehicle_Projections[Vehicle Type], $A21, Vehicle_Projections[Scenario], Input_Scenario_Modeled)) -> 1.099019 | T21: =IF(Input_Scenario_Modeled="Custom", SUMIFS(Custom_Stock_MPG[Vehicle Stock],Custom_Stock_MPG[Year],Calculations!T$4, Custom_Stock_MPG[[ Technology Type]], $B21, Custom_Stock_MPG[Vehicle Type], $A21, Custom_Stock_MPG[Scenario], Input_Scenario_Modeled), SUMIFS(Vehicle_Projections[Vehicle Stock],Vehicle_Projections[Year],Calculations!T$4,Vehicle_Projections[Technology Type], $B21, Vehicle_Projections[Vehicle Type], $A21, Vehicle_Projections[Scenario], Input_Scenario_Modeled)) -> 1.188322 | U21: =IF(Input_Scenario_Modeled="Custom", SUMIFS(Custom_Stock_MPG[Vehicle Stock],Custom_Stock_MPG[Year],Calculations!U$4, Custom_Stock_MPG[[ Technology Type]], $B21, Custom_Stock_MPG[Vehicle Type], $A21, Custom_Stock_MPG[Scenario], Input_Scenario_Modeled), SUMIFS(Vehicle_Projections[Vehicle Stock],Vehicle_Projections[Year],Calculations!U$4,Vehicle_Projections[Technology Type], $B21, Vehicle_Projections[Vehicle Type], $A21, Vehicle_Projections[Scenario], Input_Scenario_Modeled)) -> 1.280403 | V21: =IF(Input_Scenario_Modeled="Custom", SUMIFS(Custom_Stock_MPG[Vehicle Stock],Custom_Stock_MPG[Year],Calculations!V$4, Custom_Stock_MPG[[ Technology Type]], $B21, Custom_Stock_MPG[Vehicle Type], $A21, Custom_Stock_MPG[Scenario], Input_Scenario_Modeled), SUMIFS(Vehicle_Projections[Vehicle Stock],Vehicle_Projections[Year],Calculations!V$4,Vehicle_Projections[Technology Type], $B21, Vehicle_Projections[Vehicle Type], $A21, Vehicle_Projections[Scenario], Input_Scenario_Modeled)) -> 1.375682 | W21: =IF(Input_Scenario_Modeled="Custom", SUMIFS(Custom_Stock_MPG[Vehicle Stock],Custom_Stock_MPG[Year],Calculations!W$4, Custom_Stock_MPG[[ Technology Type]], $B21, Custom_Stock_MPG[Vehicle Type], $A21, Custom_Stock_MPG[Scenario], Input_Scenario_Modeled), SUMIFS(Vehicle_Projections[Vehicle Stock],Vehicle_Projections[Year],Calculations!W$4,Vehicle_Projections[Technology Type], $B21, Vehicle_Projections[Vehicle Type], $A21, Vehicle_Projections[Scenario], Input_Scenario_Modeled)) -> 1.473567 | X21: =IF(Input_Scenario_Modeled="Custom", SUMIFS(Custom_Stock_MPG[Vehicle Stock],Custom_Stock_MPG[Year],Calculations!X$4, Custom_Stock_MPG[[ Technology Type]], $B21, Custom_Stock_MPG[Vehicle Type], $A21, Custom_Stock_MPG[Scenario], Input_Scenario_Modeled), SUMIFS(Vehicle_Projections[Vehicle Stock],Vehicle_Projections[Year],Calculations!X$4,Vehicle_Projections[Technology Type], $B21, Vehicle_Projections[Vehicle Type], $A21, Vehicle_Projections[Scenario], Input_Scenario_Modeled)) -> 1.573936 | Y21: =IF(Input_Scenario_Modeled="Custom", SUMIFS(Custom_Stock_MPG[Vehicle Stock],Custom_Stock_MPG[Year],Calculations!Y$4, Custom_Stock_MPG[[ Technology Type]], $B21, Custom_Stock_MPG[Vehicle Type], $A21, Custom_Stock_MPG[Scenario], Input_Scenario_Modeled), SUMIFS(Vehicle_Projections[Vehicle Stock],Vehicle_Projections[Year],Calculations!Y$4,Vehicle_Projections[Technology Type], $B21, Vehicle_Projections[Vehicle Type], $A21, Vehicle_Projections[Scenario], Input_Scenario_Modeled)) -> 1.676328 | Z21: =IF(Input_Scenario_Modeled="Custom", SUMIFS(Custom_Stock_MPG[Vehicle Stock],Custom_Stock_MPG[Year],Calculations!Z$4, Custom_Stock_MPG[[ Technology Type]], $B21, Custom_Stock_MPG[Vehicle Type], $A21, Custom_Stock_MPG[Scenario], Input_Scenario_Modeled), SUMIFS(Vehicle_Projections[Vehicle Stock],Vehicle_Projections[Year],Calculations!Z$4,Vehicle_Projections[Technology Type], $B21, Vehicle_Projections[Vehicle Type], $A21, Vehicle_Projections[Scenario], Input_Scenario_Modeled)) -> 1.779821 | AA21: =IF(Input_Scenario_Modeled="Custom", SUMIFS(Custom_Stock_MPG[Vehicle Stock],Custom_Stock_MPG[Year],Calculations!AA$4, Custom_Stock_MPG[[ Technology Type]], $B21, Custom_Stock_MPG[Vehicle Type], $A21, Custom_Stock_MPG[Scenario], Input_Scenario_Modeled), SUMIFS(Vehicle_Projections[Vehicle Stock],Vehicle_Projections[Year],Calculations!AA$4,Vehicle_Projections[Technology Type], $B21, Vehicle_Projections[Vehicle Type], $A21, Vehicle_Projections[Scenario], Input_Scenario_Modeled)) -> 1.881714 | AB21: =IF(Input_Scenario_Modeled="Custom", SUMIFS(Custom_Stock_MPG[Vehicle Stock],Custom_Stock_MPG[Year],Calculations!AB$4, Custom_Stock_MPG[[ Technology Type]], $B21, Custom_Stock_MPG[Vehicle Type], $A21, Custom_Stock_MPG[Scenario], Input_Scenario_Modeled), SUMIFS(Vehicle_Projections[Vehicle Stock],Vehicle_Projections[Year],Calculations!AB$4,Vehicle_Projections[Technology Type], $B21, Vehicle_Projections[Vehicle Type], $A21, Vehicle_Projections[Scenario], Input_Scenario_Modeled)) -> 1.981902 | AC21: =IF(Input_Scenario_Modeled="Custom", SUMIFS(Custom_Stock_MPG[Vehicle Stock],Custom_Stock_MPG[Year],Calculations!AC$4, Custom_Stock_MPG[[ Technology Type]], $B21, Custom_Stock_MPG[Vehicle Type], $A21, Custom_Stock_MPG[Scenario], Input_Scenario_Modeled), SUMIFS(Vehicle_Projections[Vehicle Stock],Vehicle_Projections[Year],Calculations!AC$4,Vehicle_Projections[Technology Type], $B21, Vehicle_Projections[Vehicle Type], $A21, Vehicle_Projections[Scenario], Input_Scenario_Modeled)) -> 2.079762 | AD21: =IF(Input_Scenario_Modeled="Custom", SUMIFS(Custom_Stock_MPG[Vehicle Stock],Custom_Stock_MPG[Year],Calculations!AD$4, Custom_Stock_MPG[[ Technology Type]], $B21, Custom_Stock_MPG[Vehicle Type], $A21, Custom_Stock_MPG[Scenario], Input_Scenario_Modeled), SUMIFS(Vehicle_Projections[Vehicle Stock],Vehicle_Projections[Year],Calculations!AD$4,Vehicle_Projections[Technology Type], $B21, Vehicle_Projections[Vehicle Type], $A21, Vehicle_Projections[Scenario], Input_Scenario_Modeled)) -> 2.17588 | AE21: =IF(Input_Scenario_Modeled="Custom", SUMIFS(Custom_Stock_MPG[Vehicle Stock],Custom_Stock_MPG[Year],Calculations!AE$4, Custom_Stock_MPG[[ Technology Type]], $B21, Custom_Stock_MPG[Vehicle Type], $A21, Custom_Stock_MPG[Scenario], Input_Scenario_Modeled), SUMIFS(Vehicle_Projections[Vehicle Stock],Vehicle_Projections[Year],Calculations!AE$4,Vehicle_Projections[Technology Type], $B21, Vehicle_Projections[Vehicle Type], $A21, Vehicle_Projections[Scenario], Input_Scenario_Modeled)) -> 2.270606 | AF21: =IF(Input_Scenario_Modeled="Custom", SUMIFS(Custom_Stock_MPG[Vehicle Stock],Custom_Stock_MPG[Year],Calculations!AF$4, Custom_Stock_MPG[[ Technology Type]], $B21, Custom_Stock_MPG[Vehicle Type], $A21, Custom_Stock_MPG[Scenario], Input_Scenario_Modeled), SUMIFS(Vehicle_Projections[Vehicle Stock],Vehicle_Projections[Year],Calculations!AF$4,Vehicle_Projections[Technology Type], $B21, Vehicle_Projections[Vehicle Type], $A21, Vehicle_Projections[Scenario], Input_Scenario_Modeled)) -> 2.363574 | AG21: =IF(Input_Scenario_Modeled="Custom", SUMIFS(Custom_Stock_MPG[Vehicle Stock],Custom_Stock_MPG[Year],Calculations!AG$4, Custom_Stock_MPG[[ Technology Type]], $B21, Custom_Stock_MPG[Vehicle Type], $A21, Custom_Stock_MPG[Scenario], Input_Scenario_Modeled), SUMIFS(Vehicle_Projections[Vehicle Stock],Vehicle_Projections[Year],Calculations!AG$4,Vehicle_Projections[Technology Type], $B21, Vehicle_Projections[Vehicle Type], $A21, Vehicle_Projections[Scenario], Input_Scenario_Modeled)) -> 2.455401 | AH21: =IF(Input_Scenario_Modeled="Custom", SUMIFS(Custom_Stock_MPG[Vehicle Stock],Custom_Stock_MPG[Year],Calculations!AH$4, Custom_Stock_MPG[[ Technology Type]], $B21, Custom_Stock_MPG[Vehicle Type], $A21, Custom_Stock_MPG[Scenario], Input_Scenario_Modeled), SUMIFS(Vehicle_Projections[Vehicle Stock],Vehicle_Projections[Year],Calculations!AH$4,Vehicle_Projections[Technology Type], $B21, Vehicle_Projections[Vehicle Type], $A21, Vehicle_Projections[Scenario], Input_Scenario_Modeled)) -> 2.546025 | AI21: =IF(Input_Scenario_Modeled="Custom", SUMIFS(Custom_Stock_MPG[Vehicle Stock],Custom_Stock_MPG[Year],Calculations!AI$4, Custom_Stock_MPG[[ Technology Type]], $B21, Custom_Stock_MPG[Vehicle Type], $A21, Custom_Stock_MPG[Scenario], Input_Scenario_Modeled), SUMIFS(Vehicle_Projections[Vehicle Stock],Vehicle_Projections[Year],Calculations!AI$4,Vehicle_Projections[Technology Type], $B21, Vehicle_Projections[Vehicle Type], $A21, Vehicle_Projections[Scenario], Input_Scenario_Modeled)) -> 2.635274 | AJ21: =IF(Input_Scenario_Modeled="Custom", SUMIFS(Custom_Stock_MPG[Vehicle Stock],Custom_Stock_MPG[Year],Calculations!AJ$4, Custom_Stock_MPG[[ Technology Type]], $B21, Custom_Stock_MPG[Vehicle Type], $A21, Custom_Stock_MPG[Scenario], Input_Scenario_Modeled), SUMIFS(Vehicle_Projections[Vehicle Stock],Vehicle_Projections[Year],Calculations!AJ$4,Vehicle_Projections[Technology Type], $B21, Vehicle_Projections[Vehicle Type], $A21, Vehicle_Projections[Scenario], Input_Scenario_Modeled)) -> 2.723108
